Organisation Code,Organisation Label,Effective Date,Organisational Unit,Service Division Label,Category Internal Name,Purpose,Detailed Expenditure Code,Payment Date,Transaction Number,Irrecoverable VAT Amount,Amount,Capital Or Revenue,Benificiary Name,Procurement Card
Http://opendatacommunities.org/id/metropolitan-district-council/leeds,Leeds City Council,31/08/2019,Adults and Health,Adaptations,Capital,Furniture And Equipment,5,07/08/2019,1908-07223,0.00,274.52,C,Easiaccess,No
Http://opendatacommunities.org/id/metropolitan-district-council/leeds,Leeds City Council,31/08/2019,Adults and Health,Adaptations,Capital,Furniture And Equipment,5,30/08/2019,1908-07244,0.00,994.18,C,Easiaccess,No
Http://opendatacommunities.org/id/metropolitan-district-council/leeds,Leeds City Council,31/08/2019,Adults and Health,Adaptations,Capital,Furniture And Equipment,5,01/08/2019,1908-17869,0.00,540.76,C,Prism Medical Uk Limited,No
Http://opendatacommunities.org/id/metropolitan-district-council/leeds,Leeds City Council,31/08/2019,Adults and Health,Adaptations,Capital,Furniture And Equipment,5,07/08/2019,1908-17892,0.00,110.79,C,Prism Medical Uk Limited,No
Http://opendatacommunities.org/id/metropolitan-district-council/leeds,Leeds City Council,31/08/2019,Adults and Health,Adaptations,Capital,Furniture And Equipment,5,08/08/2019,1908-17895,0.00,2569.59,C,Prism Medical Uk Limited,No
Http://opendatacommunities.org/id/metropolitan-district-council/leeds,Leeds City Council,31/08/2019,Adults and Health,Adaptations,Capital,Furniture And Equipment,5,08/08/2019,1908-17903,0.00,1084.88,C,Prism Medical Uk Limited,No
Http://opendatacommunities.org/id/metropolitan-district-council/leeds,Leeds City Council,31/08/2019,Adults and Health,Adaptations,Capital,Furniture And Equipment,5,15/08/2019,1908-17925,0.00,607.88,C,Prism Medical Uk Limited,No
Http://opendatacommunities.org/id/metropolitan-district-council/leeds,Leeds City Council,31/08/2019,Adults and Health,Adaptations,Capital,Furniture And Equipment,5,20/08/2019,1908-17943,0.00,1131.15,C,Prism Medical Uk Limited,No
Http://opendatacommunities.org/id/metropolitan-district-council/leeds,Leeds City Council,31/08/2019,Adults and Health,Adaptations,Capital,Furniture And Equipment,5,23/08/2019,1908-18031,0.00,2637.70,C,Prism Medical Uk Limited,No
Http://opendatacommunities.org/id/metropolitan-district-council/leeds,Leeds City Council,31/08/2019,Adults and Health,Adaptations,Capital,Furniture And Equipment,5,27/08/2019,1908-18074,0.00,896.75,C,Prism Medical Uk Limited,No
Http://opendatacommunities.org/id/metropolitan-district-council/leeds,Leeds City Council,31/08/2019,Adults and Health,Adaptations,Capital,Furniture And Equipment,5,30/08/2019,1908-18099,0.00,1252.29,C,Prism Medical Uk Limited,No
Http://opendatacommunities.org/id/metropolitan-district-council/leeds,Leeds City Council,31/08/2019,Adults and Health,Adaptations,Capital,Furniture And Equipment,5,30/08/2019,1908-18100,0.00,1114.40,C,Prism Medical Uk Limited,No
Http://opendatacommunities.org/id/metropolitan-district-council/leeds,Leeds City Council,31/08/2019,Adults and Health,Assessment And Care Management,Employees,Training Costs,71,02/08/2019,1908-00664,0.00,150.00,R,Airedale Community Trading (Act) Ltd,No
Http://opendatacommunities.org/id/metropolitan-district-council/leeds,Leeds City Council,31/08/2019,Adults and Health,Assessment And Care Management,Employees,Training Costs,71,23/08/2019,1908-00665,0.00,120.00,R,Airedale Community Trading (Act) Ltd,No
Http://opendatacommunities.org/id/metropolitan-district-council/leeds,Leeds City Council,31/08/2019,Adults and Health,Assessment And Care Management,Supplies and Services,Office Furniture & Equipment,201,17/07/2019,1908-01473,0.00,24.99,R,Amznmktplace,Yes
Http://opendatacommunities.org/id/metropolitan-district-council/leeds,Leeds City Council,31/08/2019,Adults and Health,Assessment And Care Management,Premises,Cleaning Maintenance & Toiletries,127,11/07/2019,1908-01676,0.00,15.40,R,Amznmktplace Amazon.Co.Uk,Yes
Http://opendatacommunities.org/id/metropolitan-district-council/leeds,Leeds City Council,31/08/2019,Adults and Health,Assessment And Care Management,Supplies and Services,Office Consumables,210,18/07/2019,1908-01700,0.00,16.48,R,Amznmktplace Amazon.Co.Uk,Yes
Http://opendatacommunities.org/id/metropolitan-district-council/leeds,Leeds City Council,31/08/2019,Adults and Health,Assessment And Care Management,Third Party Payments,Residential Care Dementia,571,21/08/2019,1908-01768,0.00,28.29,R,Anchor Trust Simon Marks Court,No
Http://opendatacommunities.org/id/metropolitan-district-council/leeds,Leeds City Council,31/08/2019,Adults and Health,Assessment And Care Management,Supplies and Services,Office Consumables,210,18/07/2019,1908-02250,0.00,25.98,R,Argos Retail Group,Yes
Http://opendatacommunities.org/id/metropolitan-district-council/leeds,Leeds City Council,31/08/2019,Adults and Health,Assessment And Care Management,Supplies and Services,Liquid Waste,235,06/08/2019,1908-03218,0.00,933.00,R,Autograph Promotional Gifts Limited,No
Http://opendatacommunities.org/id/metropolitan-district-council/leeds,Leeds City Council,31/08/2019,Adults and Health,Assessment And Care Management,Third Party Payments,Home Care,568,14/08/2019,1908-03612,0.00,15.94,R,Be Caring Ltd,No
Http://opendatacommunities.org/id/metropolitan-district-council/leeds,Leeds City Council,31/08/2019,Adults and Health,Assessment And Care Management,Third Party Payments,Home Care,568,29/08/2019,1908-03642,0.00,1946.50,R,Be Caring Ltd,No
Http://opendatacommunities.org/id/metropolitan-district-council/leeds,Leeds City Council,31/08/2019,Adults and Health,Assessment And Care Management,Third Party Payments,Residential Care Dementia,571,21/08/2019,1908-03696,0.00,82.00,R,Beech Hall,No
Http://opendatacommunities.org/id/metropolitan-district-council/leeds,Leeds City Council,31/08/2019,Adults and Health,Assessment And Care Management,Third Party Payments,Residential,580,21/08/2019,1908-03697,0.00,39.00,R,Beech Hall,No
Http://opendatacommunities.org/id/metropolitan-district-council/leeds,Leeds City Council,31/08/2019,Adults and Health,Assessment And Care Management,Third Party Payments,Residential Care Dementia,571,21/08/2019,1908-03749,0.00,1795.16,R,Berkley Court,No
Http://opendatacommunities.org/id/metropolitan-district-council/leeds,Leeds City Council,31/08/2019,Adults and Health,Assessment And Care Management,Third Party Payments,Residential,580,21/08/2019,1908-03750,0.00,13.71,R,Berkley Court,No
Http://opendatacommunities.org/id/metropolitan-district-council/leeds,Leeds City Council,31/08/2019,Adults and Health,Assessment And Care Management,Third Party Payments,Residential,580,21/08/2019,1908-04178,0.00,5251.88,R,Bowden Lodge Priory,No
Http://opendatacommunities.org/id/metropolitan-district-council/leeds,Leeds City Council,31/08/2019,Adults and Health,Assessment And Care Management,Third Party Payments,Nursing Home,570,21/08/2019,1908-04196,0.00,2038.60,R,Bradford Independent Health Care Owlett,No
Http://opendatacommunities.org/id/metropolitan-district-council/leeds,Leeds City Council,31/08/2019,Adults and Health,Assessment And Care Management,Third Party Payments,Residential,580,21/08/2019,1908-04272,0.00,1884.48,R,Brighterkind,No
Http://opendatacommunities.org/id/metropolitan-district-council/leeds,Leeds City Council,31/08/2019,Adults and Health,Assessment And Care Management,Premises,Cleaning Agency Recharge,129,09/08/2019,1908-04612,0.00,100.00,R,Business 900 Community Interest Company,No
Http://opendatacommunities.org/id/metropolitan-district-council/leeds,Leeds City Council,31/08/2019,Adults and Health,Assessment And Care Management,Third Party Payments,HCAIT Other,577,16/08/2019,1908-04957,0.00,147.84,R,Care 24-7 Limited,No
Http://opendatacommunities.org/id/metropolitan-district-council/leeds,Leeds City Council,31/08/2019,Adults and Health,Assessment And Care Management,Third Party Payments,Home Care,568,14/08/2019,1908-05015,0.00,155.30,R,Caremark (Leeds),No
Http://opendatacommunities.org/id/metropolitan-district-council/leeds,Leeds City Council,31/08/2019,Adults and Health,Assessment And Care Management,Third Party Payments,HCAIT Community Support,575,14/08/2019,1908-05016,0.00,745.44,R,Caremark (Leeds),No
Http://opendatacommunities.org/id/metropolitan-district-council/leeds,Leeds City Council,31/08/2019,Adults and Health,Assessment And Care Management,Third Party Payments,Home Care,568,15/08/2019,1908-05031,0.00,209.66,R,Carewatch Leeds & Wakefield,No
Http://opendatacommunities.org/id/metropolitan-district-council/leeds,Leeds City Council,31/08/2019,Adults and Health,Assessment And Care Management,Supplies and Services,Other Hired And Contracted Services,265,22/08/2019,1908-05134,0.00,240.00,R,Castle Communication Services,No
Http://opendatacommunities.org/id/metropolitan-district-council/leeds,Leeds City Council,31/08/2019,Adults and Health,Assessment And Care Management,Third Party Payments,Day Centre,564,23/08/2019,1908-05547,0.00,540.00,R,Claro Enterprises,No
Http://opendatacommunities.org/id/metropolitan-district-council/leeds,Leeds City Council,31/08/2019,Adults and Health,Assessment And Care Management,Third Party Payments,Day Centre,564,30/08/2019,1908-05548,0.00,630.00,R,Claro Enterprises,No
Http://opendatacommunities.org/id/metropolitan-district-council/leeds,Leeds City Council,31/08/2019,Adults and Health,Assessment And Care Management,Third Party Payments,Home Care,568,21/08/2019,1908-05717,0.00,1434.71,R,Comfort Call,No
Http://opendatacommunities.org/id/metropolitan-district-council/leeds,Leeds City Council,31/08/2019,Adults and Health,Assessment And Care Management,Third Party Payments,Home Care,568,21/08/2019,1908-05722,0.00,1334.01,R,Comfort Call,No
Http://opendatacommunities.org/id/metropolitan-district-council/leeds,Leeds City Council,31/08/2019,Adults and Health,Assessment And Care Management,Third Party Payments,HCAIT Community Support,575,19/08/2019,1908-06276,0.00,467.64,R,Creative Support Ltd,No
Http://opendatacommunities.org/id/metropolitan-district-council/leeds,Leeds City Council,31/08/2019,Adults and Health,Assessment And Care Management,Third Party Payments,Home Care,568,05/08/2019,1908-07155,0.00,75.74,R,Dynamic Social Support,No
Http://opendatacommunities.org/id/metropolitan-district-council/leeds,Leeds City Council,31/08/2019,Adults and Health,Assessment And Care Management,Support Services,Internal charge from Resources,487,06/08/2019,1908-07800,0.00,160.65,R,Ers Medical,No
Http://opendatacommunities.org/id/metropolitan-district-council/leeds,Leeds City Council,31/08/2019,Adults and Health,Assessment And Care Management,Support Services,Internal charge from Resources,487,23/08/2019,1908-07801,0.00,160.65,R,Ers Medical,No
Http://opendatacommunities.org/id/metropolitan-district-council/leeds,Leeds City Council,31/08/2019,Adults and Health,Assessment And Care Management,Third Party Payments,Home Care,568,01/08/2019,1908-09176,0.00,171.36,R,Grace Homecare Ltd,No
Http://opendatacommunities.org/id/metropolitan-district-council/leeds,Leeds City Council,31/08/2019,Adults and Health,Assessment And Care Management,Third Party Payments,Home Care,568,07/08/2019,1908-09181,0.00,171.36,R,Grace Homecare Ltd,No
Http://opendatacommunities.org/id/metropolitan-district-council/leeds,Leeds City Council,31/08/2019,Adults and Health,Assessment And Care Management,Third Party Payments,Home Care,568,14/08/2019,1908-09185,0.00,171.36,R,Grace Homecare Ltd,No
Http://opendatacommunities.org/id/metropolitan-district-council/leeds,Leeds City Council,31/08/2019,Adults and Health,Assessment And Care Management,Third Party Payments,Home Care,568,20/08/2019,1908-09189,0.00,155.04,R,Grace Homecare Ltd,No
Http://opendatacommunities.org/id/metropolitan-district-council/leeds,Leeds City Council,31/08/2019,Adults and Health,Assessment And Care Management,Third Party Payments,Home Care,568,21/08/2019,1908-09194,0.00,163.20,R,Grace Homecare Ltd,No
Http://opendatacommunities.org/id/metropolitan-district-council/leeds,Leeds City Council,31/08/2019,Adults and Health,Assessment And Care Management,Third Party Payments,Home Care,568,30/08/2019,1908-09619,0.00,134.24,R,Hales Group Ltd,No
Http://opendatacommunities.org/id/metropolitan-district-council/leeds,Leeds City Council,31/08/2019,Adults and Health,Assessment And Care Management,Third Party Payments,Residential,580,21/08/2019,1908-10105,0.00,17.00,R,Headingley Hall Nursing Home,No
Http://opendatacommunities.org/id/metropolitan-district-council/leeds,Leeds City Council,31/08/2019,Adults and Health,Assessment And Care Management,Third Party Payments,Home Care,568,02/08/2019,1908-10448,0.00,40.63,R,Hillcrest Community Ltd,No
Http://opendatacommunities.org/id/metropolitan-district-council/leeds,Leeds City Council,31/08/2019,Adults and Health,Assessment And Care Management,Third Party Payments,Home Care,568,09/08/2019,1908-10451,0.00,40.63,R,Hillcrest Community Ltd,No
Http://opendatacommunities.org/id/metropolitan-district-council/leeds,Leeds City Council,31/08/2019,Adults and Health,Assessment And Care Management,Third Party Payments,Home Care,568,21/08/2019,1908-10454,0.00,39.85,R,Hillcrest Community Ltd,No
Http://opendatacommunities.org/id/metropolitan-district-council/leeds,Leeds City Council,31/08/2019,Adults and Health,Assessment And Care Management,Third Party Payments,Home Care,568,21/08/2019,1908-10456,0.00,40.63,R,Hillcrest Community Ltd,No
Http://opendatacommunities.org/id/metropolitan-district-council/leeds,Leeds City Council,31/08/2019,Adults and Health,Assessment And Care Management,Third Party Payments,Home Care,568,23/08/2019,1908-10459,0.00,40.63,R,Hillcrest Community Ltd,No
Http://opendatacommunities.org/id/metropolitan-district-council/leeds,Leeds City Council,31/08/2019,Adults and Health,Assessment And Care Management,Third Party Payments,Home Care,568,30/08/2019,1908-10462,0.00,40.63,R,Hillcrest Community Ltd,No
Http://opendatacommunities.org/id/metropolitan-district-council/leeds,Leeds City Council,31/08/2019,Adults and Health,Assessment And Care Management,Third Party Payments,Home Care,568,14/08/2019,1908-10727,0.00,704.76,R,Homecare Support,No
Http://opendatacommunities.org/id/metropolitan-district-council/leeds,Leeds City Council,31/08/2019,Adults and Health,Assessment And Care Management,Third Party Payments,Home Care,568,14/08/2019,1908-10730,0.00,704.76,R,Homecare Support,No
Http://opendatacommunities.org/id/metropolitan-district-council/leeds,Leeds City Council,31/08/2019,Adults and Health,Assessment And Care Management,Third Party Payments,Home Care,568,21/08/2019,1908-10738,0.00,3070.74,R,Homecare Support,No
Http://opendatacommunities.org/id/metropolitan-district-council/leeds,Leeds City Council,31/08/2019,Adults and Health,Assessment And Care Management,Third Party Payments,HCAIT Community Support,575,21/08/2019,1908-10739,0.00,201.36,R,Homecare Support,No
Http://opendatacommunities.org/id/metropolitan-district-council/leeds,Leeds City Council,31/08/2019,Adults and Health,Assessment And Care Management,Supplies and Services,Other Hired And Contracted Services,265,23/08/2019,1908-10945,0.00,-2685.00,R,Independence Mobility Limited,No
Http://opendatacommunities.org/id/metropolitan-district-council/leeds,Leeds City Council,31/08/2019,Adults and Health,Assessment And Care Management,Third Party Payments,Residential,580,21/08/2019,1908-12651,0.00,2125.80,R,Larchfield Residential Home,No
Http://opendatacommunities.org/id/metropolitan-district-council/leeds,Leeds City Council,31/08/2019,Adults and Health,Assessment And Care Management,Supplies and Services,Other Hired And Contracted Services,265,17/07/2019,1908-12776,0.00,10.00,R,Leeds And Moortown Furnit,Yes
Http://opendatacommunities.org/id/metropolitan-district-council/leeds,Leeds City Council,31/08/2019,Adults and Health,Assessment And Care Management,Third Party Payments,Services Provided By Other NHS Bodies,522,16/08/2019,1908-12956,0.00,7138.37,R,Leeds Community Healthcare Nhs Trust,No
Http://opendatacommunities.org/id/metropolitan-district-council/leeds,Leeds City Council,31/08/2019,Adults and Health,Assessment And Care Management,Transport,Public Transport Expenses,310,01/08/2019,1908-13076,0.00,38.94,R,Leeds Taxi Owners Limited,No
Http://opendatacommunities.org/id/metropolitan-district-council/leeds,Leeds City Council,31/08/2019,Adults and Health,Assessment And Care Management,Transport,Public Transport Expenses,310,30/08/2019,1908-13080,0.00,50.82,R,Leeds Taxi Owners Limited,No
Http://opendatacommunities.org/id/metropolitan-district-council/leeds,Leeds City Council,31/08/2019,Adults and Health,Assessment And Care Management,Transport,Car Parking Fees,312,23/08/2019,1908-13113,0.00,1156.25,R,Leeds Teaching Hospitals,No
Http://opendatacommunities.org/id/metropolitan-district-council/leeds,Leeds City Council,31/08/2019,Adults and Health,Assessment And Care Management,Third Party Payments,Home Care,568,16/08/2019,1908-13656,0.00,882.76,R,Lotus Home Care Limited,No
Http://opendatacommunities.org/id/metropolitan-district-council/leeds,Leeds City Council,31/08/2019,Adults and Health,Assessment And Care Management,Supplies and Services,Office Consumables,210,20/07/2019,1908-14143,0.00,70.08,R,Lyreco UK Ltd,Yes
Http://opendatacommunities.org/id/metropolitan-district-council/leeds,Leeds City Council,31/08/2019,Adults and Health,Assessment And Care Management,Supplies and Services,Clothing & Uniforms,241,02/08/2019,1908-15128,0.00,46.55,R,Matrix Uniforms,No
Http://opendatacommunities.org/id/metropolitan-district-council/leeds,Leeds City Council,31/08/2019,Adults and Health,Assessment And Care Management,Third Party Payments,Sheltered Accommodation,569,21/08/2019,1908-15242,0.00,3292.20,R,Meadowhurst - Lifeways,No
Http://opendatacommunities.org/id/metropolitan-district-council/leeds,Leeds City Council,31/08/2019,Adults and Health,Assessment And Care Management,Third Party Payments,Day Centre,564,19/08/2019,1908-15584,0.00,1672.00,R,Mind The Gap Ltd,No
Http://opendatacommunities.org/id/metropolitan-district-council/leeds,Leeds City Council,31/08/2019,Adults and Health,Assessment And Care Management,Third Party Payments,HCAIT Other,577,21/08/2019,1908-15669,0.00,320.40,R,Moorcare,No
Http://opendatacommunities.org/id/metropolitan-district-council/leeds,Leeds City Council,31/08/2019,Adults and Health,Assessment And Care Management,Third Party Payments,Residential Care Dementia,571,21/08/2019,1908-15695,0.00,-10383.93,R,Morley Manor Residential Home,No
Http://opendatacommunities.org/id/metropolitan-district-council/leeds,Leeds City Council,31/08/2019,Adults and Health,Assessment And Care Management,Supplies and Services,Other Hired And Contracted Services,265,23/08/2019,1908-16123,0.00,141.00,R,Nite Inn Bed & Breakfast,No
Http://opendatacommunities.org/id/metropolitan-district-council/leeds,Leeds City Council,31/08/2019,Adults and Health,Assessment And Care Management,Third Party Payments,Residential,580,21/08/2019,1908-16584,0.00,194.29,R,Oulton Manor,No
Http://opendatacommunities.org/id/metropolitan-district-council/leeds,Leeds City Council,31/08/2019,Adults and Health,Assessment And Care Management,Premises,Cleaning Maintenance & Toiletries,127,05/07/2019,1908-16815,0.00,1.10,R,P H S Group Plc,Yes
Http://opendatacommunities.org/id/metropolitan-district-council/leeds,Leeds City Council,31/08/2019,Adults and Health,Assessment And Care Management,Employees,Training Costs,71,14/08/2019,1908-17353,0.00,446.88,R,People In Action Leeds Uk,No
Http://opendatacommunities.org/id/metropolitan-district-council/leeds,Leeds City Council,31/08/2019,Adults and Health,Assessment And Care Management,Supplies and Services,Other Hired And Contracted Services,265,21/08/2019,1908-17656,0.00,182.25,R,Pop-In'S,No
Http://opendatacommunities.org/id/metropolitan-district-council/leeds,Leeds City Council,31/08/2019,Adults and Health,Assessment And Care Management,Supplies and Services,Other Hired And Contracted Services,265,07/08/2019,1908-18328,0.00,975.00,R,R D Willis Properties,No
Http://opendatacommunities.org/id/metropolitan-district-council/leeds,Leeds City Council,31/08/2019,Adults and Health,Assessment And Care Management,Supplies and Services,Other Hired And Contracted Services,265,07/08/2019,1908-18329,0.00,975.00,R,R D Willis Properties,No
Http://opendatacommunities.org/id/metropolitan-district-council/leeds,Leeds City Council,31/08/2019,Adults and Health,Assessment And Care Management,Employees,Agency Staff,8,01/07/2019,1908-18660,0.00,178.90,R,Reed Specialist Recrui,Yes
Http://opendatacommunities.org/id/metropolitan-district-council/leeds,Leeds City Council,31/08/2019,Adults and Health,Assessment And Care Management,Employees,Agency Staff,8,01/07/2019,1908-18674,0.00,943.80,R,Reed Specialist Recrui,Yes
Http://opendatacommunities.org/id/metropolitan-district-council/leeds,Leeds City Council,31/08/2019,Adults and Health,Assessment And Care Management,Employees,Agency Staff,8,01/07/2019,1908-18675,0.00,943.80,R,Reed Specialist Recrui,Yes
Http://opendatacommunities.org/id/metropolitan-district-council/leeds,Leeds City Council,31/08/2019,Adults and Health,Assessment And Care Management,Employees,Agency Staff,8,01/07/2019,1908-18677,0.00,5.80,R,Reed Specialist Recrui,Yes
Http://opendatacommunities.org/id/metropolitan-district-council/leeds,Leeds City Council,31/08/2019,Adults and Health,Assessment And Care Management,Employees,Agency Staff,8,01/07/2019,1908-18689,0.00,603.45,R,Reed Specialist Recrui,Yes
Http://opendatacommunities.org/id/metropolitan-district-council/leeds,Leeds City Council,31/08/2019,Adults and Health,Assessment And Care Management,Employees,Agency Staff,8,01/07/2019,1908-18720,0.00,857.94,R,Reed Specialist Recrui,Yes
Http://opendatacommunities.org/id/metropolitan-district-council/leeds,Leeds City Council,31/08/2019,Adults and Health,Assessment And Care Management,Employees,Agency Staff,8,01/07/2019,1908-18738,0.00,943.80,R,Reed Specialist Recrui,Yes
Http://opendatacommunities.org/id/metropolitan-district-council/leeds,Leeds City Council,31/08/2019,Adults and Health,Assessment And Care Management,Employees,Agency Staff,8,01/07/2019,1908-18751,0.00,9.00,R,Reed Specialist Recrui,Yes
Http://opendatacommunities.org/id/metropolitan-district-council/leeds,Leeds City Council,31/08/2019,Adults and Health,Assessment And Care Management,Employees,Agency Staff,8,01/07/2019,1908-18758,0.00,964.72,R,Reed Specialist Recrui,Yes
Http://opendatacommunities.org/id/metropolitan-district-council/leeds,Leeds City Council,31/08/2019,Adults and Health,Assessment And Care Management,Employees,Agency Staff,8,01/07/2019,1908-18773,0.00,777.86,R,Reed Specialist Recrui,Yes
Http://opendatacommunities.org/id/metropolitan-district-council/leeds,Leeds City Council,31/08/2019,Adults and Health,Assessment And Care Management,Employees,Agency Staff,8,01/07/2019,1908-18832,0.00,831.26,R,Reed Specialist Recrui,Yes
Http://opendatacommunities.org/id/metropolitan-district-council/leeds,Leeds City Council,31/08/2019,Adults and Health,Assessment And Care Management,Employees,Agency Staff,8,01/07/2019,1908-18855,0.00,603.45,R,Reed Specialist Recrui,Yes
Http://opendatacommunities.org/id/metropolitan-district-council/leeds,Leeds City Council,31/08/2019,Adults and Health,Assessment And Care Management,Employees,Agency Staff,8,01/07/2019,1908-18872,0.00,943.80,R,Reed Specialist Recrui,Yes
Http://opendatacommunities.org/id/metropolitan-district-council/leeds,Leeds City Council,31/08/2019,Adults and Health,Assessment And Care Management,Employees,Agency Staff,8,01/07/2019,1908-18876,0.00,1007.58,R,Reed Specialist Recrui,Yes
Http://opendatacommunities.org/id/metropolitan-district-council/leeds,Leeds City Council,31/08/2019,Adults and Health,Assessment And Care Management,Employees,Agency Staff,8,01/07/2019,1908-18877,0.00,573.94,R,Reed Specialist Recrui,Yes
Http://opendatacommunities.org/id/metropolitan-district-council/leeds,Leeds City Council,31/08/2019,Adults and Health,Assessment And Care Management,Employees,Agency Staff,8,01/07/2019,1908-18889,0.00,943.80,R,Reed Specialist Recrui,Yes
Http://opendatacommunities.org/id/metropolitan-district-council/leeds,Leeds City Council,31/08/2019,Adults and Health,Assessment And Care Management,Employees,Agency Staff,8,01/07/2019,1908-18892,0.00,943.80,R,Reed Specialist Recrui,Yes
Http://opendatacommunities.org/id/metropolitan-district-council/leeds,Leeds City Council,31/08/2019,Adults and Health,Assessment And Care Management,Employees,Agency Staff,8,01/07/2019,1908-18895,0.00,964.72,R,Reed Specialist Recrui,Yes
Http://opendatacommunities.org/id/metropolitan-district-council/leeds,Leeds City Council,31/08/2019,Adults and Health,Assessment And Care Management,Employees,Agency Staff,8,01/07/2019,1908-18912,0.00,777.86,R,Reed Specialist Recrui,Yes
Http://opendatacommunities.org/id/metropolitan-district-council/leeds,Leeds City Council,31/08/2019,Adults and Health,Assessment And Care Management,Employees,Agency Staff,8,01/07/2019,1908-18920,0.00,964.72,R,Reed Specialist Recrui,Yes
Http://opendatacommunities.org/id/metropolitan-district-council/leeds,Leeds City Council,31/08/2019,Adults and Health,Assessment And Care Management,Employees,Agency Staff,8,01/07/2019,1908-18922,0.00,943.80,R,Reed Specialist Recrui,Yes
Http://opendatacommunities.org/id/metropolitan-district-council/leeds,Leeds City Council,31/08/2019,Adults and Health,Assessment And Care Management,Employees,Agency Staff,8,08/07/2019,1908-18957,0.00,107.55,R,Reed Specialist Recrui,Yes
Http://opendatacommunities.org/id/metropolitan-district-council/leeds,Leeds City Council,31/08/2019,Adults and Health,Assessment And Care Management,Employees,Agency Staff,8,08/07/2019,1908-18973,0.00,943.80,R,Reed Specialist Recrui,Yes
Http://opendatacommunities.org/id/metropolitan-district-council/leeds,Leeds City Council,31/08/2019,Adults and Health,Assessment And Care Management,Employees,Agency Staff,8,08/07/2019,1908-18980,0.00,831.26,R,Reed Specialist Recrui,Yes
Http://opendatacommunities.org/id/metropolitan-district-council/leeds,Leeds City Council,31/08/2019,Adults and Health,Assessment And Care Management,Employees,Agency Staff,8,08/07/2019,1908-18999,0.00,943.80,R,Reed Specialist Recrui,Yes
Http://opendatacommunities.org/id/metropolitan-district-council/leeds,Leeds City Council,31/08/2019,Adults and Health,Assessment And Care Management,Employees,Agency Staff,8,08/07/2019,1908-19010,0.00,382.62,R,Reed Specialist Recrui,Yes
Http://opendatacommunities.org/id/metropolitan-district-council/leeds,Leeds City Council,31/08/2019,Adults and Health,Assessment And Care Management,Employees,Agency Staff,8,08/07/2019,1908-19027,0.00,564.34,R,Reed Specialist Recrui,Yes
Http://opendatacommunities.org/id/metropolitan-district-council/leeds,Leeds City Council,31/08/2019,Adults and Health,Assessment And Care Management,Employees,Agency Staff,8,08/07/2019,1908-19034,0.00,306.10,R,Reed Specialist Recrui,Yes
Http://opendatacommunities.org/id/metropolitan-district-council/leeds,Leeds City Council,31/08/2019,Adults and Health,Assessment And Care Management,Employees,Agency Staff,8,08/07/2019,1908-19079,0.00,943.80,R,Reed Specialist Recrui,Yes
Http://opendatacommunities.org/id/metropolitan-district-council/leeds,Leeds City Council,31/08/2019,Adults and Health,Assessment And Care Management,Employees,Agency Staff,8,08/07/2019,1908-19089,0.00,591.02,R,Reed Specialist Recrui,Yes
Http://opendatacommunities.org/id/metropolitan-district-council/leeds,Leeds City Council,31/08/2019,Adults and Health,Assessment And Care Management,Employees,Agency Staff,8,08/07/2019,1908-19095,0.00,943.80,R,Reed Specialist Recrui,Yes
Http://opendatacommunities.org/id/metropolitan-district-council/leeds,Leeds City Council,31/08/2019,Adults and Health,Assessment And Care Management,Employees,Agency Staff,8,08/07/2019,1908-19098,0.00,10.80,R,Reed Specialist Recrui,Yes
Http://opendatacommunities.org/id/metropolitan-district-council/leeds,Leeds City Council,31/08/2019,Adults and Health,Assessment And Care Management,Employees,Agency Staff,8,08/07/2019,1908-19103,0.00,964.72,R,Reed Specialist Recrui,Yes
Http://opendatacommunities.org/id/metropolitan-district-council/leeds,Leeds City Council,31/08/2019,Adults and Health,Assessment And Care Management,Employees,Agency Staff,8,08/07/2019,1908-19113,0.00,964.72,R,Reed Specialist Recrui,Yes
Http://opendatacommunities.org/id/metropolitan-district-council/leeds,Leeds City Council,31/08/2019,Adults and Health,Assessment And Care Management,Employees,Agency Staff,8,08/07/2019,1908-19115,0.00,765.24,R,Reed Specialist Recrui,Yes
Http://opendatacommunities.org/id/metropolitan-district-council/leeds,Leeds City Council,31/08/2019,Adults and Health,Assessment And Care Management,Employees,Agency Staff,8,08/07/2019,1908-19133,0.00,603.45,R,Reed Specialist Recrui,Yes
Http://opendatacommunities.org/id/metropolitan-district-council/leeds,Leeds City Council,31/08/2019,Adults and Health,Assessment And Care Management,Employees,Agency Staff,8,08/07/2019,1908-19135,0.00,943.80,R,Reed Specialist Recrui,Yes
Http://opendatacommunities.org/id/metropolitan-district-council/leeds,Leeds City Council,31/08/2019,Adults and Health,Assessment And Care Management,Employees,Agency Staff,8,08/07/2019,1908-19147,0.00,964.72,R,Reed Specialist Recrui,Yes
Http://opendatacommunities.org/id/metropolitan-district-council/leeds,Leeds City Council,31/08/2019,Adults and Health,Assessment And Care Management,Employees,Agency Staff,8,08/07/2019,1908-19158,0.00,943.80,R,Reed Specialist Recrui,Yes
Http://opendatacommunities.org/id/metropolitan-district-council/leeds,Leeds City Council,31/08/2019,Adults and Health,Assessment And Care Management,Employees,Agency Staff,8,08/07/2019,1908-19179,0.00,943.80,R,Reed Specialist Recrui,Yes
Http://opendatacommunities.org/id/metropolitan-district-council/leeds,Leeds City Council,31/08/2019,Adults and Health,Assessment And Care Management,Employees,Agency Staff,8,08/07/2019,1908-19187,0.00,764.53,R,Reed Specialist Recrui,Yes
Http://opendatacommunities.org/id/metropolitan-district-council/leeds,Leeds City Council,31/08/2019,Adults and Health,Assessment And Care Management,Employees,Agency Staff,8,15/07/2019,1908-19199,0.00,964.72,R,Reed Specialist Recrui,Yes
Http://opendatacommunities.org/id/metropolitan-district-council/leeds,Leeds City Council,31/08/2019,Adults and Health,Assessment And Care Management,Employees,Agency Staff,8,15/07/2019,1908-19209,0.00,573.94,R,Reed Specialist Recrui,Yes
Http://opendatacommunities.org/id/metropolitan-district-council/leeds,Leeds City Council,31/08/2019,Adults and Health,Assessment And Care Management,Employees,Agency Staff,8,15/07/2019,1908-19222,0.00,777.86,R,Reed Specialist Recrui,Yes
Http://opendatacommunities.org/id/metropolitan-district-council/leeds,Leeds City Council,31/08/2019,Adults and Health,Assessment And Care Management,Employees,Agency Staff,8,15/07/2019,1908-19224,0.00,222.57,R,Reed Specialist Recrui,Yes
Http://opendatacommunities.org/id/metropolitan-district-council/leeds,Leeds City Council,31/08/2019,Adults and Health,Assessment And Care Management,Employees,Agency Staff,8,15/07/2019,1908-19230,0.00,14.40,R,Reed Specialist Recrui,Yes
Http://opendatacommunities.org/id/metropolitan-district-council/leeds,Leeds City Council,31/08/2019,Adults and Health,Assessment And Care Management,Employees,Agency Staff,8,15/07/2019,1908-19232,0.00,964.72,R,Reed Specialist Recrui,Yes
Http://opendatacommunities.org/id/metropolitan-district-council/leeds,Leeds City Council,31/08/2019,Adults and Health,Assessment And Care Management,Employees,Agency Staff,8,15/07/2019,1908-19248,0.00,857.94,R,Reed Specialist Recrui,Yes
Http://opendatacommunities.org/id/metropolitan-district-council/leeds,Leeds City Council,31/08/2019,Adults and Health,Assessment And Care Management,Employees,Agency Staff,8,15/07/2019,1908-19278,0.00,943.80,R,Reed Specialist Recrui,Yes
Http://opendatacommunities.org/id/metropolitan-district-council/leeds,Leeds City Council,31/08/2019,Adults and Health,Assessment And Care Management,Employees,Agency Staff,8,15/07/2019,1908-19283,0.00,943.80,R,Reed Specialist Recrui,Yes
Http://opendatacommunities.org/id/metropolitan-district-council/leeds,Leeds City Council,31/08/2019,Adults and Health,Assessment And Care Management,Employees,Agency Staff,8,15/07/2019,1908-19284,0.00,777.86,R,Reed Specialist Recrui,Yes
Http://opendatacommunities.org/id/metropolitan-district-council/leeds,Leeds City Council,31/08/2019,Adults and Health,Assessment And Care Management,Employees,Agency Staff,8,15/07/2019,1908-19288,0.00,12.60,R,Reed Specialist Recrui,Yes
Http://opendatacommunities.org/id/metropolitan-district-council/leeds,Leeds City Council,31/08/2019,Adults and Health,Assessment And Care Management,Employees,Agency Staff,8,15/07/2019,1908-19321,0.00,943.80,R,Reed Specialist Recrui,Yes
Http://opendatacommunities.org/id/metropolitan-district-council/leeds,Leeds City Council,31/08/2019,Adults and Health,Assessment And Care Management,Employees,Agency Staff,8,15/07/2019,1908-19341,0.00,943.80,R,Reed Specialist Recrui,Yes
Http://opendatacommunities.org/id/metropolitan-district-council/leeds,Leeds City Council,31/08/2019,Adults and Health,Assessment And Care Management,Employees,Agency Staff,8,15/07/2019,1908-19358,0.00,964.72,R,Reed Specialist Recrui,Yes
Http://opendatacommunities.org/id/metropolitan-district-council/leeds,Leeds City Council,31/08/2019,Adults and Health,Assessment And Care Management,Employees,Agency Staff,8,15/07/2019,1908-19371,0.00,844.61,R,Reed Specialist Recrui,Yes
Http://opendatacommunities.org/id/metropolitan-district-council/leeds,Leeds City Council,31/08/2019,Adults and Health,Assessment And Care Management,Employees,Agency Staff,8,15/07/2019,1908-19388,0.00,765.24,R,Reed Specialist Recrui,Yes
Http://opendatacommunities.org/id/metropolitan-district-council/leeds,Leeds City Council,31/08/2019,Adults and Health,Assessment And Care Management,Employees,Agency Staff,8,15/07/2019,1908-19409,0.00,943.80,R,Reed Specialist Recrui,Yes
Http://opendatacommunities.org/id/metropolitan-district-council/leeds,Leeds City Council,31/08/2019,Adults and Health,Assessment And Care Management,Employees,Agency Staff,8,15/07/2019,1908-19413,0.00,854.53,R,Reed Specialist Recrui,Yes
Http://opendatacommunities.org/id/metropolitan-district-council/leeds,Leeds City Council,31/08/2019,Adults and Health,Assessment And Care Management,Employees,Agency Staff,8,15/07/2019,1908-19419,0.00,964.72,R,Reed Specialist Recrui,Yes
Http://opendatacommunities.org/id/metropolitan-district-council/leeds,Leeds City Council,31/08/2019,Adults and Health,Assessment And Care Management,Employees,Agency Staff,8,22/07/2019,1908-19424,0.00,943.80,R,Reed Specialist Recrui,Yes
Http://opendatacommunities.org/id/metropolitan-district-council/leeds,Leeds City Council,31/08/2019,Adults and Health,Assessment And Care Management,Employees,Agency Staff,8,22/07/2019,1908-19432,0.00,684.45,R,Reed Specialist Recrui,Yes
Http://opendatacommunities.org/id/metropolitan-district-council/leeds,Leeds City Council,31/08/2019,Adults and Health,Assessment And Care Management,Employees,Agency Staff,8,22/07/2019,1908-19434,0.00,943.80,R,Reed Specialist Recrui,Yes
Http://opendatacommunities.org/id/metropolitan-district-council/leeds,Leeds City Council,31/08/2019,Adults and Health,Assessment And Care Management,Employees,Agency Staff,8,22/07/2019,1908-19444,0.00,573.94,R,Reed Specialist Recrui,Yes
Http://opendatacommunities.org/id/metropolitan-district-council/leeds,Leeds City Council,31/08/2019,Adults and Health,Assessment And Care Management,Employees,Agency Staff,8,22/07/2019,1908-19451,0.00,1402.63,R,Reed Specialist Recrui,Yes
Http://opendatacommunities.org/id/metropolitan-district-council/leeds,Leeds City Council,31/08/2019,Adults and Health,Assessment And Care Management,Employees,Agency Staff,8,22/07/2019,1908-19452,0.00,964.72,R,Reed Specialist Recrui,Yes
Http://opendatacommunities.org/id/metropolitan-district-council/leeds,Leeds City Council,31/08/2019,Adults and Health,Assessment And Care Management,Employees,Agency Staff,8,22/07/2019,1908-19474,0.00,943.80,R,Reed Specialist Recrui,Yes
Http://opendatacommunities.org/id/metropolitan-district-council/leeds,Leeds City Council,31/08/2019,Adults and Health,Assessment And Care Management,Employees,Agency Staff,8,22/07/2019,1908-19484,0.00,971.33,R,Reed Specialist Recrui,Yes
Http://opendatacommunities.org/id/metropolitan-district-council/leeds,Leeds City Council,31/08/2019,Adults and Health,Assessment And Care Management,Employees,Agency Staff,8,22/07/2019,1908-19489,0.00,943.80,R,Reed Specialist Recrui,Yes
Http://opendatacommunities.org/id/metropolitan-district-council/leeds,Leeds City Council,31/08/2019,Adults and Health,Assessment And Care Management,Employees,Agency Staff,8,22/07/2019,1908-19490,0.00,777.86,R,Reed Specialist Recrui,Yes
Http://opendatacommunities.org/id/metropolitan-district-council/leeds,Leeds City Council,31/08/2019,Adults and Health,Assessment And Care Management,Employees,Agency Staff,8,22/07/2019,1908-19498,0.00,829.02,R,Reed Specialist Recrui,Yes
Http://opendatacommunities.org/id/metropolitan-district-council/leeds,Leeds City Council,31/08/2019,Adults and Health,Assessment And Care Management,Employees,Agency Staff,8,22/07/2019,1908-19504,0.00,943.80,R,Reed Specialist Recrui,Yes
Http://opendatacommunities.org/id/metropolitan-district-council/leeds,Leeds City Council,31/08/2019,Adults and Health,Assessment And Care Management,Employees,Agency Staff,8,22/07/2019,1908-19510,0.00,257.37,R,Reed Specialist Recrui,Yes
Http://opendatacommunities.org/id/metropolitan-district-council/leeds,Leeds City Council,31/08/2019,Adults and Health,Assessment And Care Management,Employees,Agency Staff,8,22/07/2019,1908-19514,0.00,603.45,R,Reed Specialist Recrui,Yes
Http://opendatacommunities.org/id/metropolitan-district-council/leeds,Leeds City Council,31/08/2019,Adults and Health,Assessment And Care Management,Employees,Agency Staff,8,22/07/2019,1908-19538,0.00,964.72,R,Reed Specialist Recrui,Yes
Http://opendatacommunities.org/id/metropolitan-district-council/leeds,Leeds City Council,31/08/2019,Adults and Health,Assessment And Care Management,Employees,Agency Staff,8,22/07/2019,1908-19540,0.00,5.40,R,Reed Specialist Recrui,Yes
Http://opendatacommunities.org/id/metropolitan-district-council/leeds,Leeds City Council,31/08/2019,Adults and Health,Assessment And Care Management,Employees,Agency Staff,8,22/07/2019,1908-19542,0.00,943.80,R,Reed Specialist Recrui,Yes
Http://opendatacommunities.org/id/metropolitan-district-council/leeds,Leeds City Council,31/08/2019,Adults and Health,Assessment And Care Management,Employees,Agency Staff,8,22/07/2019,1908-19554,0.00,382.62,R,Reed Specialist Recrui,Yes
Http://opendatacommunities.org/id/metropolitan-district-council/leeds,Leeds City Council,31/08/2019,Adults and Health,Assessment And Care Management,Employees,Agency Staff,8,22/07/2019,1908-19558,0.00,831.26,R,Reed Specialist Recrui,Yes
Http://opendatacommunities.org/id/metropolitan-district-council/leeds,Leeds City Council,31/08/2019,Adults and Health,Assessment And Care Management,Employees,Agency Staff,8,22/07/2019,1908-19609,0.00,777.86,R,Reed Specialist Recrui,Yes
Http://opendatacommunities.org/id/metropolitan-district-council/leeds,Leeds City Council,31/08/2019,Adults and Health,Assessment And Care Management,Employees,Agency Staff,8,22/07/2019,1908-19629,0.00,943.80,R,Reed Specialist Recrui,Yes
Http://opendatacommunities.org/id/metropolitan-district-council/leeds,Leeds City Council,31/08/2019,Adults and Health,Assessment And Care Management,Employees,Agency Staff,8,22/07/2019,1908-19659,0.00,18.00,R,Reed Specialist Recrui,Yes
Http://opendatacommunities.org/id/metropolitan-district-council/leeds,Leeds City Council,31/08/2019,Adults and Health,Assessment And Care Management,Employees,Agency Staff,8,22/07/2019,1908-19665,0.00,964.72,R,Reed Specialist Recrui,Yes
Http://opendatacommunities.org/id/metropolitan-district-council/leeds,Leeds City Council,31/08/2019,Adults and Health,Assessment And Care Management,Employees,Agency Staff,8,22/07/2019,1908-19669,0.00,393.78,R,Reed Specialist Recrui,Yes
Http://opendatacommunities.org/id/metropolitan-district-council/leeds,Leeds City Council,31/08/2019,Adults and Health,Assessment And Care Management,Employees,Agency Staff,8,29/07/2019,1908-19712,0.00,561.18,R,Reed Specialist Recrui,Yes
Http://opendatacommunities.org/id/metropolitan-district-council/leeds,Leeds City Council,31/08/2019,Adults and Health,Assessment And Care Management,Employees,Agency Staff,8,29/07/2019,1908-19754,0.00,964.72,R,Reed Specialist Recrui,Yes
Http://opendatacommunities.org/id/metropolitan-district-council/leeds,Leeds City Council,31/08/2019,Adults and Health,Assessment And Care Management,Employees,Agency Staff,8,29/07/2019,1908-19758,0.00,943.80,R,Reed Specialist Recrui,Yes
Http://opendatacommunities.org/id/metropolitan-district-council/leeds,Leeds City Council,31/08/2019,Adults and Health,Assessment And Care Management,Employees,Agency Staff,8,29/07/2019,1908-19777,0.00,764.53,R,Reed Specialist Recrui,Yes
Http://opendatacommunities.org/id/metropolitan-district-council/leeds,Leeds City Council,31/08/2019,Adults and Health,Assessment And Care Management,Employees,Agency Staff,8,29/07/2019,1908-19828,0.00,943.80,R,Reed Specialist Recrui,Yes
Http://opendatacommunities.org/id/metropolitan-district-council/leeds,Leeds City Council,31/08/2019,Adults and Health,Assessment And Care Management,Employees,Agency Staff,8,29/07/2019,1908-19832,0.00,1007.58,R,Reed Specialist Recrui,Yes
Http://opendatacommunities.org/id/metropolitan-district-council/leeds,Leeds City Council,31/08/2019,Adults and Health,Assessment And Care Management,Employees,Agency Staff,8,29/07/2019,1908-19840,0.00,764.53,R,Reed Specialist Recrui,Yes
Http://opendatacommunities.org/id/metropolitan-district-council/leeds,Leeds City Council,31/08/2019,Adults and Health,Assessment And Care Management,Employees,Agency Staff,8,29/07/2019,1908-19842,0.00,943.80,R,Reed Specialist Recrui,Yes
Http://opendatacommunities.org/id/metropolitan-district-council/leeds,Leeds City Council,31/08/2019,Adults and Health,Assessment And Care Management,Employees,Agency Staff,8,29/07/2019,1908-19855,0.00,765.24,R,Reed Specialist Recrui,Yes
Http://opendatacommunities.org/id/metropolitan-district-council/leeds,Leeds City Council,31/08/2019,Adults and Health,Assessment And Care Management,Employees,Agency Staff,8,29/07/2019,1908-19861,0.00,943.80,R,Reed Specialist Recrui,Yes
Http://opendatacommunities.org/id/metropolitan-district-council/leeds,Leeds City Council,31/08/2019,Adults and Health,Assessment And Care Management,Employees,Agency Staff,8,29/07/2019,1908-19862,0.00,964.72,R,Reed Specialist Recrui,Yes
Http://opendatacommunities.org/id/metropolitan-district-council/leeds,Leeds City Council,31/08/2019,Adults and Health,Assessment And Care Management,Employees,Agency Staff,8,29/07/2019,1908-19877,0.00,476.50,R,Reed Specialist Recrui,Yes
Http://opendatacommunities.org/id/metropolitan-district-council/leeds,Leeds City Council,31/08/2019,Adults and Health,Assessment And Care Management,Employees,Agency Staff,8,29/07/2019,1908-19907,0.00,1099.18,R,Reed Specialist Recrui,Yes
Http://opendatacommunities.org/id/metropolitan-district-council/leeds,Leeds City Council,31/08/2019,Adults and Health,Assessment And Care Management,Employees,Agency Staff,8,29/07/2019,1908-19917,0.00,831.26,R,Reed Specialist Recrui,Yes
Http://opendatacommunities.org/id/metropolitan-district-council/leeds,Leeds City Council,31/08/2019,Adults and Health,Assessment And Care Management,Employees,Agency Staff,8,29/07/2019,1908-19937,0.00,9.00,R,Reed Specialist Recrui,Yes
Http://opendatacommunities.org/id/metropolitan-district-council/leeds,Leeds City Council,31/08/2019,Adults and Health,Assessment And Care Management,Employees,Agency Staff,8,29/07/2019,1908-19975,0.00,777.86,R,Reed Specialist Recrui,Yes
Http://opendatacommunities.org/id/metropolitan-district-council/leeds,Leeds City Council,31/08/2019,Adults and Health,Assessment And Care Management,Employees,Agency Staff,8,29/07/2019,1908-19980,0.00,854.53,R,Reed Specialist Recrui,Yes
Http://opendatacommunities.org/id/metropolitan-district-council/leeds,Leeds City Council,31/08/2019,Adults and Health,Assessment And Care Management,Employees,Agency Staff,8,05/08/2019,1908-20010,0.00,227.18,R,Reed Specialist Recruitment Ltd,No
Http://opendatacommunities.org/id/metropolitan-district-council/leeds,Leeds City Council,31/08/2019,Adults and Health,Assessment And Care Management,Employees,Agency Staff,8,13/08/2019,1908-20192,0.00,251.75,R,Reed Specialist Recruitment Ltd,No
Http://opendatacommunities.org/id/metropolitan-district-council/leeds,Leeds City Council,31/08/2019,Adults and Health,Assessment And Care Management,Employees,Agency Staff,8,19/08/2019,1908-20233,0.00,251.75,R,Reed Specialist Recruitment Ltd,No
Http://opendatacommunities.org/id/metropolitan-district-council/leeds,Leeds City Council,31/08/2019,Adults and Health,Assessment And Care Management,Employees,Agency Staff,8,23/08/2019,1908-20304,0.00,251.75,R,Reed Specialist Recruitment Ltd,No
Http://opendatacommunities.org/id/metropolitan-district-council/leeds,Leeds City Council,31/08/2019,Adults and Health,Assessment And Care Management,Third Party Payments,Day Centre,564,01/08/2019,1908-21865,0.00,304.00,R,Second Chance Headway Centre,No
Http://opendatacommunities.org/id/metropolitan-district-council/leeds,Leeds City Council,31/08/2019,Adults and Health,Assessment And Care Management,Third Party Payments,Day Centre,564,01/08/2019,1908-21866,0.00,232.00,R,Second Chance Headway Centre,No
Http://opendatacommunities.org/id/metropolitan-district-council/leeds,Leeds City Council,31/08/2019,Adults and Health,Assessment And Care Management,Third Party Payments,Day Centre,564,02/08/2019,1908-21867,0.00,304.00,R,Second Chance Headway Centre,No
Http://opendatacommunities.org/id/metropolitan-district-council/leeds,Leeds City Council,31/08/2019,Adults and Health,Assessment And Care Management,Supplies and Services,Other Hired And Contracted Services,265,30/08/2019,1908-21869,0.00,400.00,R,Secure Care Uk,No
Http://opendatacommunities.org/id/metropolitan-district-council/leeds,Leeds City Council,31/08/2019,Adults and Health,Assessment And Care Management,Supplies and Services,Other Hired And Contracted Services,265,07/08/2019,1908-21875,0.00,103.84,R,Security Plus + Ltd,No
Http://opendatacommunities.org/id/metropolitan-district-council/leeds,Leeds City Council,31/08/2019,Adults and Health,Assessment And Care Management,Supplies and Services,Other Hired And Contracted Services,265,07/08/2019,1908-21876,0.00,71.27,R,Security Plus + Ltd,No
Http://opendatacommunities.org/id/metropolitan-district-council/leeds,Leeds City Council,31/08/2019,Adults and Health,Assessment And Care Management,Supplies and Services,Other Hired And Contracted Services,265,08/08/2019,1908-21891,0.00,11.50,R,Security Plus + Ltd,No
Http://opendatacommunities.org/id/metropolitan-district-council/leeds,Leeds City Council,31/08/2019,Adults and Health,Assessment And Care Management,Supplies and Services,Other Hired And Contracted Services,265,30/08/2019,1908-21913,0.00,96.58,R,Security Plus + Ltd,No
Http://opendatacommunities.org/id/metropolitan-district-council/leeds,Leeds City Council,31/08/2019,Adults and Health,Assessment And Care Management,Supplies and Services,Other Hired And Contracted Services,265,30/08/2019,1908-21914,0.00,54.51,R,Security Plus + Ltd,No
Http://opendatacommunities.org/id/metropolitan-district-council/leeds,Leeds City Council,31/08/2019,Adults and Health,Assessment And Care Management,Supplies and Services,Other Hired And Contracted Services,265,30/08/2019,1908-21915,0.00,71.59,R,Security Plus + Ltd,No
Http://opendatacommunities.org/id/metropolitan-district-council/leeds,Leeds City Council,31/08/2019,Adults and Health,Assessment And Care Management,Third Party Payments,Day Centre,564,19/08/2019,1908-22564,0.00,896.24,R,Specialist Autism Services,No
Http://opendatacommunities.org/id/metropolitan-district-council/leeds,Leeds City Council,31/08/2019,Adults and Health,Assessment And Care Management,Third Party Payments,Day Centre,564,19/08/2019,1908-22565,0.00,304.52,R,Specialist Autism Services,No
Http://opendatacommunities.org/id/metropolitan-district-council/leeds,Leeds City Council,31/08/2019,Adults and Health,Assessment And Care Management,Third Party Payments,Day Centre,564,19/08/2019,1908-22577,0.00,464.52,R,Specialist Autism Services,No
Http://opendatacommunities.org/id/metropolitan-district-council/leeds,Leeds City Council,31/08/2019,Adults and Health,Assessment And Care Management,Third Party Payments,Day Centre,564,19/08/2019,1908-22578,0.00,609.04,R,Specialist Autism Services,No
Http://opendatacommunities.org/id/metropolitan-district-council/leeds,Leeds City Council,31/08/2019,Adults and Health,Assessment And Care Management,Third Party Payments,Day Centre,564,19/08/2019,1908-22580,0.00,304.52,R,Specialist Autism Services,No
Http://opendatacommunities.org/id/metropolitan-district-council/leeds,Leeds City Council,31/08/2019,Adults and Health,Assessment And Care Management,Third Party Payments,Day Centre,564,19/08/2019,1908-22581,0.00,160.00,R,Specialist Autism Services,No
Http://opendatacommunities.org/id/metropolitan-district-council/leeds,Leeds City Council,31/08/2019,Adults and Health,Assessment And Care Management,Third Party Payments,Day Centre,564,19/08/2019,1908-22582,0.00,160.00,R,Specialist Autism Services,No
Http://opendatacommunities.org/id/metropolitan-district-council/leeds,Leeds City Council,31/08/2019,Adults and Health,Assessment And Care Management,Third Party Payments,Home Care,568,23/08/2019,1908-22635,0.00,295.68,R,Springfield Healthcare  (Leeds &,No
Http://opendatacommunities.org/id/metropolitan-district-council/leeds,Leeds City Council,31/08/2019,Adults and Health,Assessment And Care Management,Third Party Payments,Nursing Home,570,21/08/2019,1908-22771,0.00,5550.16,R,St Annes Residential Care,No
Http://opendatacommunities.org/id/metropolitan-district-council/leeds,Leeds City Council,31/08/2019,Adults and Health,Assessment And Care Management,Premises,Hire of meeting rooms,143,01/08/2019,1908-22804,0.00,200.00,R,St James Woodside Pcc,No
Http://opendatacommunities.org/id/metropolitan-district-council/leeds,Leeds City Council,31/08/2019,Adults and Health,Assessment And Care Management,Supplies and Services,Other Hired And Contracted Services,265,23/07/2019,1908-23148,0.00,275.00,R,Swift Memorial Services,Yes
Http://opendatacommunities.org/id/metropolitan-district-council/leeds,Leeds City Council,31/08/2019,Adults and Health,Assessment And Care Management,Third Party Payments,Sheltered Accommodation,569,21/08/2019,1908-23835,0.00,3796.80,R,The Disabilities Trust,No
Http://opendatacommunities.org/id/metropolitan-district-council/leeds,Leeds City Council,31/08/2019,Adults and Health,Assessment And Care Management,Third Party Payments,Residential Care Dementia,571,21/08/2019,1908-23867,0.00,1520.24,R,The Gateway Respite,No
Http://opendatacommunities.org/id/metropolitan-district-council/leeds,Leeds City Council,31/08/2019,Adults and Health,Assessment And Care Management,Third Party Payments,Residential,580,21/08/2019,1908-23882,0.00,1854.64,R,The Heather Residential Home,No
Http://opendatacommunities.org/id/metropolitan-district-council/leeds,Leeds City Council,31/08/2019,Adults and Health,Assessment And Care Management,Supplies and Services,Operational Furniture And Equipment,203,16/08/2019,1908-23889,0.00,2891.00,R,The Helping Hand Company Ltd,No
Http://opendatacommunities.org/id/metropolitan-district-council/leeds,Leeds City Council,31/08/2019,Adults and Health,Assessment And Care Management,Supplies and Services,Childcare Vouchers Service Charge,258,12/08/2019,1908-25289,0.00,3.22,R,Various - Total Expenses,No
Http://opendatacommunities.org/id/metropolitan-district-council/leeds,Leeds City Council,31/08/2019,Adults and Health,Assessment And Care Management,Transport,Public Transport Expenses,310,12/08/2019,1908-25290,0.00,994.74,R,Various - Total Expenses,No
Http://opendatacommunities.org/id/metropolitan-district-council/leeds,Leeds City Council,31/08/2019,Adults and Health,Assessment And Care Management,Transport,Car & Motorcycle Allowances,311,12/08/2019,1908-25291,0.00,8878.00,R,Various - Total Expenses,No
Http://opendatacommunities.org/id/metropolitan-district-council/leeds,Leeds City Council,31/08/2019,Adults and Health,Assessment And Care Management,Transport,Car Parking Fees,312,12/08/2019,1908-25292,0.00,1366.75,R,Various - Total Expenses,No
Http://opendatacommunities.org/id/metropolitan-district-council/leeds,Leeds City Council,31/08/2019,Adults and Health,Assessment And Care Management,Transport,Essential car user  Lump Sum,318,12/08/2019,1908-25293,0.00,13943.61,R,Various - Total Expenses,No
Http://opendatacommunities.org/id/metropolitan-district-council/leeds,Leeds City Council,31/08/2019,Adults and Health,Assessment And Care Management,Third Party Payments,Sheltered Accommodation,569,21/08/2019,1908-25962,0.00,3576.00,R,Voyage Ltd,No
Http://opendatacommunities.org/id/metropolitan-district-council/leeds,Leeds City Council,31/08/2019,Adults and Health,Assessment And Care Management,Third Party Payments,Residential,580,21/08/2019,1908-26686,0.00,7097.60,R,Woodhouse Cottage Priory,No
Http://opendatacommunities.org/id/metropolitan-district-council/leeds,Leeds City Council,31/08/2019,Adults and Health,Assessment And Care Management,Supplies and Services,Clothing & Uniforms,241,09/07/2019,1908-26823,0.00,44.64,R,Www.Arco.Co.Uk,Yes
Http://opendatacommunities.org/id/metropolitan-district-council/leeds,Leeds City Council,31/08/2019,Adults and Health,Assessment And Care Management,Support Services,Internal charge from Resources,487,05/08/2019,1908-27358,0.00,125.00,R,Yorkshire Ambulance Nhs Trust,No
Http://opendatacommunities.org/id/metropolitan-district-council/leeds,Leeds City Council,31/08/2019,Adults and Health,Assessment And Care Management,Support Services,Internal charge from Resources,487,05/08/2019,1908-27359,0.00,125.00,R,Yorkshire Ambulance Nhs Trust,No
Http://opendatacommunities.org/id/metropolitan-district-council/leeds,Leeds City Council,31/08/2019,Adults and Health,Assessment And Care Management,Support Services,Internal charge from Resources,487,05/08/2019,1908-27360,0.00,125.00,R,Yorkshire Ambulance Nhs Trust,No
Http://opendatacommunities.org/id/metropolitan-district-council/leeds,Leeds City Council,31/08/2019,Adults and Health,Assessment And Care Management,Support Services,Internal charge from Resources,487,05/08/2019,1908-27361,0.00,125.00,R,Yorkshire Ambulance Nhs Trust,No
Http://opendatacommunities.org/id/metropolitan-district-council/leeds,Leeds City Council,31/08/2019,Adults and Health,Assessment And Care Management,Supplies and Services,Other Hired And Contracted Services,265,16/08/2019,1908-27362,0.00,125.00,R,Yorkshire Ambulance Nhs Trust,No
Http://opendatacommunities.org/id/metropolitan-district-council/leeds,Leeds City Council,31/08/2019,Adults and Health,Assessment And Care Management,Transport,Miscellaneous Transport Related Costs,324,16/08/2019,1908-27363,0.00,125.00,R,Yorkshire Ambulance Nhs Trust,No
Http://opendatacommunities.org/id/metropolitan-district-council/leeds,Leeds City Council,31/08/2019,Adults and Health,Assessment And Care Management,Supplies and Services,Other Hired And Contracted Services,265,23/08/2019,1908-27364,0.00,125.00,R,Yorkshire Ambulance Nhs Trust,No
Http://opendatacommunities.org/id/metropolitan-district-council/leeds,Leeds City Council,31/08/2019,Adults and Health,Assessment And Care Management,Supplies and Services,Other Hired And Contracted Services,265,23/08/2019,1908-27365,0.00,125.00,R,Yorkshire Ambulance Nhs Trust,No
Http://opendatacommunities.org/id/metropolitan-district-council/leeds,Leeds City Council,31/08/2019,Adults and Health,Assessment And Care Management,Supplies and Services,Other Hired And Contracted Services,265,23/08/2019,1908-27366,0.00,125.00,R,Yorkshire Ambulance Nhs Trust,No
Http://opendatacommunities.org/id/metropolitan-district-council/leeds,Leeds City Council,31/08/2019,Adults and Health,Asylum Seekers,Supplies and Services,Other Hired And Contracted Services,265,07/08/2019,1908-18324,0.00,975.00,R,R D Willis Properties,No
Http://opendatacommunities.org/id/metropolitan-district-council/leeds,Leeds City Council,31/08/2019,Adults and Health,Asylum Seekers,Supplies and Services,Other Hired And Contracted Services,265,07/08/2019,1908-18325,0.00,975.00,R,R D Willis Properties,No
Http://opendatacommunities.org/id/metropolitan-district-council/leeds,Leeds City Council,31/08/2019,Adults and Health,Asylum Seekers,Supplies and Services,Other Hired And Contracted Services,265,07/08/2019,1908-18326,0.00,975.00,R,R D Willis Properties,No
Http://opendatacommunities.org/id/metropolitan-district-council/leeds,Leeds City Council,31/08/2019,Adults and Health,Asylum Seekers,Supplies and Services,Other Hired And Contracted Services,265,07/08/2019,1908-18327,0.00,975.00,R,R D Willis Properties,No
Http://opendatacommunities.org/id/metropolitan-district-council/leeds,Leeds City Council,31/08/2019,Adults and Health,Asylum Seekers,Supplies and Services,Other Hired And Contracted Services,265,30/08/2019,1908-23982,0.00,710.64,R,The Riverside Group Ltd,No
Http://opendatacommunities.org/id/metropolitan-district-council/leeds,Leeds City Council,31/08/2019,Adults and Health,Digital Information Services,Capital,Other Costs,7,13/08/2019,1908-03299,0.00,9281.25,C,Ayup Digital Limited,No
Http://opendatacommunities.org/id/metropolitan-district-council/leeds,Leeds City Council,31/08/2019,Adults and Health,Digital Information Services,Capital,Other Costs,7,22/08/2019,1908-12210,0.00,336.60,C,Kempner & Partners,No
Http://opendatacommunities.org/id/metropolitan-district-council/leeds,Leeds City Council,31/08/2019,Adults and Health,Digital Information Services,Capital,Other Costs,7,27/08/2019,1908-13115,0.00,3206.72,C,Leeds Teaching Hospitals,No
Http://opendatacommunities.org/id/metropolitan-district-council/leeds,Leeds City Council,31/08/2019,Adults and Health,Digital Information Services,Capital,Other Costs,7,30/08/2019,1908-13116,0.00,3206.72,C,Leeds Teaching Hospitals,No
Http://opendatacommunities.org/id/metropolitan-district-council/leeds,Leeds City Council,31/08/2019,Adults and Health,Digital Information Services,Capital,Other Costs,7,30/08/2019,1908-13117,0.00,65337.40,C,Leeds Teaching Hospitals,No
Http://opendatacommunities.org/id/metropolitan-district-council/leeds,Leeds City Council,31/08/2019,Adults and Health,Digital Information Services,Capital,Other Costs,7,15/08/2019,1908-20618,0.00,10957.69,C,Ripple Foundation C.I.C,No
Http://opendatacommunities.org/id/metropolitan-district-council/leeds,Leeds City Council,31/08/2019,Adults and Health,Digital Information Services,Capital,Other Costs,7,02/08/2019,1908-20981,0.00,9855.00,C,Rullion It Plus Limited,No
Http://opendatacommunities.org/id/metropolitan-district-council/leeds,Leeds City Council,31/08/2019,Adults and Health,Digital Information Services,Capital,Other Costs,7,02/08/2019,1908-20986,0.00,4735.13,C,Rullion It Plus Limited,No
Http://opendatacommunities.org/id/metropolitan-district-council/leeds,Leeds City Council,31/08/2019,Adults and Health,Digital Information Services,Capital,Other Costs,7,02/08/2019,1908-20987,0.00,2328.75,C,Rullion It Plus Limited,No
Http://opendatacommunities.org/id/metropolitan-district-council/leeds,Leeds City Council,31/08/2019,Adults and Health,Digital Information Services,Capital,Other Costs,7,30/08/2019,1908-21050,0.00,7659.00,C,Rullion It Plus Limited,No
Http://opendatacommunities.org/id/metropolitan-district-council/leeds,Leeds City Council,31/08/2019,Adults and Health,Digital Information Services,Capital,Other Costs,7,22/08/2019,1908-23304,0.00,22500.00,C,Synanetics Ltd,No
Http://opendatacommunities.org/id/metropolitan-district-council/leeds,Leeds City Council,31/08/2019,Adults and Health,Digital Information Services,Capital,Other Costs,7,22/08/2019,1908-23305,0.00,15887.50,C,Synanetics Ltd,No
Http://opendatacommunities.org/id/metropolitan-district-council/leeds,Leeds City Council,31/08/2019,Adults and Health,Digital Information Services,Capital,Other Costs,7,27/08/2019,1908-24076,0.00,786.00,C,Thompson Brand Partners Ltd,No
Http://opendatacommunities.org/id/metropolitan-district-council/leeds,Leeds City Council,31/08/2019,Adults and Health,Digital Information Services,Capital,Other Costs,7,30/08/2019,1908-24078,0.00,310.00,C,Thompson Brand Partners Ltd,No
Http://opendatacommunities.org/id/metropolitan-district-council/leeds,Leeds City Council,31/08/2019,Adults and Health,Digital Information Services,Capital,Internal Fees,6,27/08/2019,1908-25181,0.00,1142.07,C,Uk Cloud Ltd,No
Http://opendatacommunities.org/id/metropolitan-district-council/leeds,Leeds City Council,31/08/2019,Adults and Health,Drugs Commissioning Service,Third Party Payments,Services Rendered By Voluntary Sector,505,28/08/2019,1908-05224,0.00,124728.25,R,Cgl,No
Http://opendatacommunities.org/id/metropolitan-district-council/leeds,Leeds City Council,31/08/2019,Adults and Health,Drugs Commissioning Service,Third Party Payments,Services Rendered By Voluntary Sector,505,02/08/2019,1908-10815,0.00,77175.00,R,Humankind,No
Http://opendatacommunities.org/id/metropolitan-district-council/leeds,Leeds City Council,31/08/2019,Adults and Health,Drugs Commissioning Service,Third Party Payments,Services Provided By Other NHS Bodies,522,06/08/2019,1908-16078,0.00,5124.13,R,Nhs Supply Chain,No
Http://opendatacommunities.org/id/metropolitan-district-council/leeds,Leeds City Council,31/08/2019,Adults and Health,Drugs Commissioning Service,Third Party Payments,Services Provided By Other NHS Bodies,522,13/08/2019,1908-16079,0.00,5413.85,R,Nhs Supply Chain,No
Http://opendatacommunities.org/id/metropolitan-district-council/leeds,Leeds City Council,31/08/2019,Adults and Health,Drugs Commissioning Service,Third Party Payments,Services Provided By Other NHS Bodies,522,16/08/2019,1908-16080,0.00,429.05,R,Nhs Supply Chain,No
Http://opendatacommunities.org/id/metropolitan-district-council/leeds,Leeds City Council,31/08/2019,Adults and Health,Drugs Commissioning Service,Third Party Payments,Services Provided By Other NHS Bodies,522,23/08/2019,1908-16081,0.00,2123.38,R,Nhs Supply Chain,No
Http://opendatacommunities.org/id/metropolitan-district-council/leeds,Leeds City Council,31/08/2019,Adults and Health,Drugs Commissioning Service,Third Party Payments,Services Provided By Other NHS Bodies,522,30/08/2019,1908-16082,0.00,1707.96,R,Nhs Supply Chain,No
Http://opendatacommunities.org/id/metropolitan-district-council/leeds,Leeds City Council,31/08/2019,Adults and Health,Drugs Commissioning Service,Supplies and Services,Waste Disposal Charges,236,30/08/2019,1908-22671,0.00,708.40,R,Srcl Ltd,No
Http://opendatacommunities.org/id/metropolitan-district-council/leeds,Leeds City Council,31/08/2019,Adults and Health,Drugs Commissioning Service,Third Party Payments,Services Provided By Other Public Bodies,521,16/08/2019,1908-26161,0.00,7250.00,R,West Yorkshire Community Rehabilitation,No
Http://opendatacommunities.org/id/metropolitan-district-council/leeds,Leeds City Council,31/08/2019,Adults and Health,Home Care Services,Supplies and Services,Operational Furniture And Equipment,203,09/08/2019,1908-00716,0.00,480.00,R,Alams Beautiful Blinds,No
Http://opendatacommunities.org/id/metropolitan-district-council/leeds,Leeds City Council,31/08/2019,Adults and Health,Home Care Services,Supplies and Services,Postages,212,22/08/2019,1908-15129,0.00,5.95,R,Matrix Uniforms,No
Http://opendatacommunities.org/id/metropolitan-district-council/leeds,Leeds City Council,31/08/2019,Adults and Health,Home Care Services,Supplies and Services,Clothing & Uniforms,241,22/08/2019,1908-15130,0.00,53.10,R,Matrix Uniforms,No
Http://opendatacommunities.org/id/metropolitan-district-council/leeds,Leeds City Council,31/08/2019,Adults and Health,Home Care Services,Supplies and Services,Clothing & Uniforms,241,28/08/2019,1908-15131,0.00,1110.67,R,Matrix Uniforms,No
Http://opendatacommunities.org/id/metropolitan-district-council/leeds,Leeds City Council,31/08/2019,Adults and Health,Home Care Services,Premises,Cleaning Maintenance & Toiletries,127,05/07/2019,1908-16891,0.00,5.96,R,P H S Group Plc,Yes
Http://opendatacommunities.org/id/metropolitan-district-council/leeds,Leeds City Council,31/08/2019,Adults and Health,Home Care Services,Supplies and Services,Conference Meetings,253,27/08/2019,1908-24097,0.00,50.00,R,Tiger 11 Ltd,No
Http://opendatacommunities.org/id/metropolitan-district-council/leeds,Leeds City Council,31/08/2019,Adults and Health,Home Care Services,Premises,Cleaning Maintenance & Toiletries,127,04/07/2019,1908-24561,0.00,296.40,R,Trevor Iles Ltd,Yes
Http://opendatacommunities.org/id/metropolitan-district-council/leeds,Leeds City Council,31/08/2019,Adults and Health,Home Care Services,Premises,Cleaning Maintenance & Toiletries,127,10/07/2019,1908-24646,0.00,26.00,R,Trevor Iles Ltd,Yes
Http://opendatacommunities.org/id/metropolitan-district-council/leeds,Leeds City Council,31/08/2019,Adults and Health,Home Care Services,Premises,Cleaning Maintenance & Toiletries,127,10/07/2019,1908-24649,0.00,85.03,R,Trevor Iles Ltd,Yes
Http://opendatacommunities.org/id/metropolitan-district-council/leeds,Leeds City Council,31/08/2019,Adults and Health,Home Care Services,Premises,Cleaning Maintenance & Toiletries,127,11/07/2019,1908-24681,0.00,75.19,R,Trevor Iles Ltd,Yes
Http://opendatacommunities.org/id/metropolitan-district-council/leeds,Leeds City Council,31/08/2019,Adults and Health,Home Care Services,Premises,Cleaning Maintenance & Toiletries,127,11/07/2019,1908-24687,0.00,191.00,R,Trevor Iles Ltd,Yes
Http://opendatacommunities.org/id/metropolitan-district-council/leeds,Leeds City Council,31/08/2019,Adults and Health,Home Care Services,Premises,Cleaning Maintenance & Toiletries,127,15/07/2019,1908-24729,0.00,113.60,R,Trevor Iles Ltd,Yes
Http://opendatacommunities.org/id/metropolitan-district-council/leeds,Leeds City Council,31/08/2019,Adults and Health,Home Care Services,Supplies and Services,Operational Materials,205,22/08/2019,1908-25032,0.00,50.13,R,Trevor Iles Ltd,No
Http://opendatacommunities.org/id/metropolitan-district-council/leeds,Leeds City Council,31/08/2019,Adults and Health,Home Care Services,Transport,Public Transport Expenses,310,12/08/2019,1908-25294,0.00,1427.36,R,Various - Total Expenses,No
Http://opendatacommunities.org/id/metropolitan-district-council/leeds,Leeds City Council,31/08/2019,Adults and Health,Home Care Services,Transport,Car & Motorcycle Allowances,311,12/08/2019,1908-25295,0.00,15342.90,R,Various - Total Expenses,No
Http://opendatacommunities.org/id/metropolitan-district-council/leeds,Leeds City Council,31/08/2019,Adults and Health,Home Care Services,Transport,Car Parking Fees,312,12/08/2019,1908-25296,0.00,69.87,R,Various - Total Expenses,No
Http://opendatacommunities.org/id/metropolitan-district-council/leeds,Leeds City Council,31/08/2019,Adults and Health,Home Care Services,Transport,Essential car user  Lump Sum,318,12/08/2019,1908-25297,0.00,8938.63,R,Various - Total Expenses,No
Http://opendatacommunities.org/id/metropolitan-district-council/leeds,Leeds City Council,31/08/2019,Adults and Health,Home Care Services,Premises,Cleaning Maintenance & Toiletries,127,24/07/2019,1908-26958,0.00,37.20,R,Www.Ilesgroup.Co.Uk,Yes
Http://opendatacommunities.org/id/metropolitan-district-council/leeds,Leeds City Council,31/08/2019,Adults and Health,Other Adult Services,Supplies and Services,Food & Drink,231,18/07/2019,1908-02388,0.00,32.50,R,Asda Groceries Online,Yes
Http://opendatacommunities.org/id/metropolitan-district-council/leeds,Leeds City Council,31/08/2019,Adults and Health,Other Adult Services,Supplies and Services,Conference Meetings,253,08/07/2019,1908-05100,0.00,22.80,R,Carrier Bag Shop,Yes
Http://opendatacommunities.org/id/metropolitan-district-council/leeds,Leeds City Council,31/08/2019,Adults and Health,Other Adult Services,Supplies and Services,Computer Software & Equipment,214,26/07/2019,1908-05799,0.00,140.82,R,Comparex UK Ltd,Yes
Http://opendatacommunities.org/id/metropolitan-district-council/leeds,Leeds City Council,31/08/2019,Adults and Health,Other Adult Services,Supplies and Services,Operational Materials,205,15/07/2019,1908-10442,0.00,80.00,R,Highstreetvouchers,Yes
Http://opendatacommunities.org/id/metropolitan-district-council/leeds,Leeds City Council,31/08/2019,Adults and Health,Other Adult Services,Supplies and Services,Conference Meetings,253,01/08/2019,1908-10470,0.00,750.00,R,Hippo Digital Ltd,No
Http://opendatacommunities.org/id/metropolitan-district-council/leeds,Leeds City Council,31/08/2019,Adults and Health,Other Adult Services,Third Party Payments,Residential - Drugs & Alcohol,583,02/08/2019,1908-10664,0.00,718.70,R,Holgate House Ltd,No
Http://opendatacommunities.org/id/metropolitan-district-council/leeds,Leeds City Council,31/08/2019,Adults and Health,Other Adult Services,Third Party Payments,Residential - Drugs & Alcohol,583,02/08/2019,1908-10665,0.00,2114.40,R,Holgate House Ltd,No
Http://opendatacommunities.org/id/metropolitan-district-council/leeds,Leeds City Council,31/08/2019,Adults and Health,Other Adult Services,Third Party Payments,Residential - Drugs & Alcohol,583,02/08/2019,1908-10666,0.00,2235.90,R,Holgate House Ltd,No
Http://opendatacommunities.org/id/metropolitan-district-council/leeds,Leeds City Council,31/08/2019,Adults and Health,Other Adult Services,Third Party Payments,Residential - Drugs & Alcohol,583,02/08/2019,1908-10667,0.00,2235.90,R,Holgate House Ltd,No
Http://opendatacommunities.org/id/metropolitan-district-council/leeds,Leeds City Council,31/08/2019,Adults and Health,Other Adult Services,Third Party Payments,Residential - Drugs & Alcohol,583,02/08/2019,1908-10668,0.00,2129.40,R,Holgate House Ltd,No
Http://opendatacommunities.org/id/metropolitan-district-council/leeds,Leeds City Council,31/08/2019,Adults and Health,Other Adult Services,Supplies and Services,Food & Drink,231,13/07/2019,1908-10896,0.00,45.00,R,Ikea Ltd 261 Leeds Main,Yes
Http://opendatacommunities.org/id/metropolitan-district-council/leeds,Leeds City Council,31/08/2019,Adults and Health,Other Adult Services,Supplies and Services,Grant Related Expenditure,290,19/08/2019,1908-12938,0.00,5000.00,R,Leeds Community Foundation,No
Http://opendatacommunities.org/id/metropolitan-district-council/leeds,Leeds City Council,31/08/2019,Adults and Health,Other Adult Services,Supplies and Services,Commissioned Services,264,15/08/2019,1908-12952,0.00,400000.00,R,Leeds Community Healthcare Nhs Trust,No
Http://opendatacommunities.org/id/metropolitan-district-council/leeds,Leeds City Council,31/08/2019,Adults and Health,Other Adult Services,Supplies and Services,Commissioned Services,264,15/08/2019,1908-12953,0.00,130000.00,R,Leeds Community Healthcare Nhs Trust,No
Http://opendatacommunities.org/id/metropolitan-district-council/leeds,Leeds City Council,31/08/2019,Adults and Health,Other Adult Services,Supplies and Services,Commissioned Services,264,15/08/2019,1908-12954,0.00,103000.00,R,Leeds Community Healthcare Nhs Trust,No
Http://opendatacommunities.org/id/metropolitan-district-council/leeds,Leeds City Council,31/08/2019,Adults and Health,Other Adult Services,Third Party Payments,Residential - Drugs & Alcohol,583,22/08/2019,1908-13490,0.00,2567.46,R,Littledale Hall Therapeutic Community,No
Http://opendatacommunities.org/id/metropolitan-district-council/leeds,Leeds City Council,31/08/2019,Adults and Health,Other Adult Services,Third Party Payments,Residential - Drugs & Alcohol,583,22/08/2019,1908-13491,0.00,1711.64,R,Littledale Hall Therapeutic Community,No
Http://opendatacommunities.org/id/metropolitan-district-council/leeds,Leeds City Council,31/08/2019,Adults and Health,Other Adult Services,Third Party Payments,Residential - Drugs & Alcohol,583,22/08/2019,1908-13492,0.00,1711.64,R,Littledale Hall Therapeutic Community,No
Http://opendatacommunities.org/id/metropolitan-district-council/leeds,Leeds City Council,31/08/2019,Adults and Health,Other Adult Services,Third Party Payments,Residential - Drugs & Alcohol,583,02/08/2019,1908-16426,0.00,2293.24,R,Oasis Recovery Communities Limited,No
Http://opendatacommunities.org/id/metropolitan-district-council/leeds,Leeds City Council,31/08/2019,Adults and Health,Other Adult Services,Third Party Payments,Payments To Voluntary Organisations,561,06/08/2019,1908-17235,0.00,17500.00,R,Pcg Technology Solutions,No
Http://opendatacommunities.org/id/metropolitan-district-council/leeds,Leeds City Council,31/08/2019,Adults and Health,Other Adult Services,Third Party Payments,Residential - Drugs & Alcohol,583,30/08/2019,1908-17473,0.00,510.78,R,Phoenix House,No
Http://opendatacommunities.org/id/metropolitan-district-council/leeds,Leeds City Council,31/08/2019,Adults and Health,Other Adult Services,Third Party Payments,Residential - Drugs & Alcohol,583,30/08/2019,1908-17474,0.00,121.80,R,Phoenix House,No
Http://opendatacommunities.org/id/metropolitan-district-council/leeds,Leeds City Council,31/08/2019,Adults and Health,Other Adult Services,Third Party Payments,Residential - Drugs & Alcohol,583,30/08/2019,1908-17475,0.00,202.34,R,Phoenix House,No
Http://opendatacommunities.org/id/metropolitan-district-council/leeds,Leeds City Council,31/08/2019,Adults and Health,Other Adult Services,Supplies and Services,Food & Drink,231,17/07/2019,1908-17728,0.00,4.17,R,Poundland Ltd 1168,Yes
Http://opendatacommunities.org/id/metropolitan-district-council/leeds,Leeds City Council,31/08/2019,Adults and Health,Other Adult Services,Employees,Agency Staff,8,01/07/2019,1908-18696,0.00,691.17,R,Reed Specialist Recrui,Yes
Http://opendatacommunities.org/id/metropolitan-district-council/leeds,Leeds City Council,31/08/2019,Adults and Health,Other Adult Services,Employees,Agency Staff,8,01/07/2019,1908-18782,0.00,5.40,R,Reed Specialist Recrui,Yes
Http://opendatacommunities.org/id/metropolitan-district-council/leeds,Leeds City Council,31/08/2019,Adults and Health,Other Adult Services,Employees,Agency Staff,8,08/07/2019,1908-19088,0.00,691.17,R,Reed Specialist Recrui,Yes
Http://opendatacommunities.org/id/metropolitan-district-council/leeds,Leeds City Council,31/08/2019,Adults and Health,Other Adult Services,Employees,Agency Staff,8,15/07/2019,1908-19308,0.00,10.93,R,Reed Specialist Recrui,Yes
Http://opendatacommunities.org/id/metropolitan-district-council/leeds,Leeds City Council,31/08/2019,Adults and Health,Other Adult Services,Employees,Agency Staff,8,15/07/2019,1908-19370,0.00,691.17,R,Reed Specialist Recrui,Yes
Http://opendatacommunities.org/id/metropolitan-district-council/leeds,Leeds City Council,31/08/2019,Adults and Health,Other Adult Services,Employees,Agency Staff,8,22/07/2019,1908-19534,0.00,691.17,R,Reed Specialist Recrui,Yes
Http://opendatacommunities.org/id/metropolitan-district-council/leeds,Leeds City Council,31/08/2019,Adults and Health,Other Adult Services,Employees,Agency Staff,8,29/07/2019,1908-19837,0.00,691.17,R,Reed Specialist Recrui,Yes
Http://opendatacommunities.org/id/metropolitan-district-council/leeds,Leeds City Council,31/08/2019,Adults and Health,Other Adult Services,Supplies and Services,Office Consumables,210,11/07/2019,1908-21079,0.00,5.07,R,Ryman,Yes
Http://opendatacommunities.org/id/metropolitan-district-council/leeds,Leeds City Council,31/08/2019,Adults and Health,Other Adult Services,Third Party Payments,Nursing Home - Drugs & Alcohol,573,21/08/2019,1908-22752,0.00,111546.00,R,St Annes Community Services,No
Http://opendatacommunities.org/id/metropolitan-district-council/leeds,Leeds City Council,31/08/2019,Adults and Health,Other Adult Services,Supplies and Services,Childcare Vouchers Service Charge,258,12/08/2019,1908-25298,0.00,0.46,R,Various - Total Expenses,No
Http://opendatacommunities.org/id/metropolitan-district-council/leeds,Leeds City Council,31/08/2019,Adults and Health,Other Adult Services,Transport,Public Transport Expenses,310,12/08/2019,1908-25299,0.00,4.48,R,Various - Total Expenses,No
Http://opendatacommunities.org/id/metropolitan-district-council/leeds,Leeds City Council,31/08/2019,Adults and Health,Other Adult Services,Third Party Payments,Payments To Voluntary Organisations,561,08/08/2019,1908-25872,0.00,54742.16,R,Volition,No
Http://opendatacommunities.org/id/metropolitan-district-council/leeds,Leeds City Council,31/08/2019,Adults and Health,Other Adult Services,Supplies and Services,Conference Meetings,253,12/08/2019,1908-26066,0.00,678.10,R,Weetwood Hall Limited,No
Http://opendatacommunities.org/id/metropolitan-district-council/leeds,Leeds City Council,31/08/2019,Adults and Health,Other Generic Services,Third Party Payments,Fees To Carers,563,23/08/2019,1908-00035,0.00,27.80,R,REDACTED PERSONAL DATA,No
Http://opendatacommunities.org/id/metropolitan-district-council/leeds,Leeds City Council,31/08/2019,Adults and Health,Other Generic Services,Supplies and Services,Conference Meetings,253,08/08/2019,1908-00865,0.00,15.00,R,REDACTED PERSONAL DATA,No
Http://opendatacommunities.org/id/metropolitan-district-council/leeds,Leeds City Council,31/08/2019,Adults and Health,Other Generic Services,Third Party Payments,Home Care,568,02/08/2019,1908-00886,0.00,8501.27,R,Allied Healthcare,No
Http://opendatacommunities.org/id/metropolitan-district-council/leeds,Leeds City Council,31/08/2019,Adults and Health,Other Generic Services,Employees,Best Value Training,70,17/07/2019,1908-01475,0.00,16.99,R,Amznmktplace,Yes
Http://opendatacommunities.org/id/metropolitan-district-council/leeds,Leeds City Council,31/08/2019,Adults and Health,Other Generic Services,Third Party Payments,Fees To Carers,563,16/08/2019,1908-01906,0.00,109.50,R,REDACTED PERSONAL DATA,No
Http://opendatacommunities.org/id/metropolitan-district-council/leeds,Leeds City Council,31/08/2019,Adults and Health,Other Generic Services,Supplies and Services,Clothing & Uniforms,241,15/07/2019,1908-02063,0.00,22.01,R,Arco Ltd,Yes
Http://opendatacommunities.org/id/metropolitan-district-council/leeds,Leeds City Council,31/08/2019,Adults and Health,Other Generic Services,Supplies and Services,Clothing & Uniforms,241,22/07/2019,1908-02120,0.00,6.11,R,Arco Ltd,Yes
Http://opendatacommunities.org/id/metropolitan-district-council/leeds,Leeds City Council,31/08/2019,Adults and Health,Other Generic Services,Supplies and Services,Clothing & Uniforms,241,24/07/2019,1908-02137,0.00,6.02,R,Arco Ltd,Yes
Http://opendatacommunities.org/id/metropolitan-district-council/leeds,Leeds City Council,31/08/2019,Adults and Health,Other Generic Services,Premises,Removal Of Workplace Waste,126,01/08/2019,1908-02990,0.00,231.87,R,Associated Waste Management Limited,No
Http://opendatacommunities.org/id/metropolitan-district-council/leeds,Leeds City Council,31/08/2019,Adults and Health,Other Generic Services,Premises,Removal Of Workplace Waste,126,09/08/2019,1908-03050,0.00,191.19,R,Associated Waste Management Limited,No
Http://opendatacommunities.org/id/metropolitan-district-council/leeds,Leeds City Council,31/08/2019,Adults and Health,Other Generic Services,Premises,Removal Of Workplace Waste,126,15/08/2019,1908-03075,0.00,358.20,R,Associated Waste Management Limited,No
Http://opendatacommunities.org/id/metropolitan-district-council/leeds,Leeds City Council,31/08/2019,Adults and Health,Other Generic Services,Premises,Removal Of Workplace Waste,126,22/08/2019,1908-03095,0.00,136.00,R,Associated Waste Management Limited,No
Http://opendatacommunities.org/id/metropolitan-district-council/leeds,Leeds City Council,31/08/2019,Adults and Health,Other Generic Services,Premises,Removal Of Workplace Waste,126,30/08/2019,1908-03126,0.00,319.58,R,Associated Waste Management Limited,No
Http://opendatacommunities.org/id/metropolitan-district-council/leeds,Leeds City Council,31/08/2019,Adults and Health,Other Generic Services,Supplies and Services,Publication And Promotion,267,09/08/2019,1908-03219,0.00,1761.92,R,Autograph Promotional Gifts Limited,No
Http://opendatacommunities.org/id/metropolitan-district-council/leeds,Leeds City Council,31/08/2019,Adults and Health,Other Generic Services,Supplies and Services,Publication And Promotion,267,09/08/2019,1908-03220,0.00,1033.20,R,Autograph Promotional Gifts Limited,No
Http://opendatacommunities.org/id/metropolitan-district-council/leeds,Leeds City Council,31/08/2019,Adults and Health,Other Generic Services,Premises,Cleaning Maintenance & Toiletries,127,02/08/2019,1908-04088,0.00,132.36,R,Bolt And Nut Supplies Ltd,No
Http://opendatacommunities.org/id/metropolitan-district-council/leeds,Leeds City Council,31/08/2019,Adults and Health,Other Generic Services,Premises,Cleaning Maintenance & Toiletries,127,16/08/2019,1908-04090,0.00,12.48,R,Bolt And Nut Supplies Ltd,No
Http://opendatacommunities.org/id/metropolitan-district-council/leeds,Leeds City Council,31/08/2019,Adults and Health,Other Generic Services,Third Party Payments,Fees To Carers,563,23/08/2019,1908-04257,0.00,328.50,R,REDACTED PERSONAL DATA,No
Http://opendatacommunities.org/id/metropolitan-district-council/leeds,Leeds City Council,31/08/2019,Adults and Health,Other Generic Services,Supplies and Services,Telephones,213,09/08/2019,1908-04331,0.00,139.12,R,British Telecom,No
Http://opendatacommunities.org/id/metropolitan-district-council/leeds,Leeds City Council,31/08/2019,Adults and Health,Other Generic Services,Supplies and Services,Telephones,213,09/08/2019,1908-04332,0.00,117.60,R,British Telecom,No
Http://opendatacommunities.org/id/metropolitan-district-council/leeds,Leeds City Council,31/08/2019,Adults and Health,Other Generic Services,Supplies and Services,Telephones,213,09/08/2019,1908-04333,0.00,517.37,R,British Telecom,No
Http://opendatacommunities.org/id/metropolitan-district-council/leeds,Leeds City Council,31/08/2019,Adults and Health,Other Generic Services,Supplies and Services,Telephones,213,09/08/2019,1908-04334,0.00,139.12,R,British Telecom,No
Http://opendatacommunities.org/id/metropolitan-district-council/leeds,Leeds City Council,31/08/2019,Adults and Health,Other Generic Services,Supplies and Services,Telephones,213,09/08/2019,1908-04335,0.00,117.60,R,British Telecom,No
Http://opendatacommunities.org/id/metropolitan-district-council/leeds,Leeds City Council,31/08/2019,Adults and Health,Other Generic Services,Supplies and Services,Telephones,213,09/08/2019,1908-04336,0.00,517.37,R,British Telecom,No
Http://opendatacommunities.org/id/metropolitan-district-council/leeds,Leeds City Council,31/08/2019,Adults and Health,Other Generic Services,Supplies and Services,Telephones,213,09/08/2019,1908-04337,0.00,139.12,R,British Telecom,No
Http://opendatacommunities.org/id/metropolitan-district-council/leeds,Leeds City Council,31/08/2019,Adults and Health,Other Generic Services,Supplies and Services,Telephones,213,09/08/2019,1908-04338,0.00,117.60,R,British Telecom,No
Http://opendatacommunities.org/id/metropolitan-district-council/leeds,Leeds City Council,31/08/2019,Adults and Health,Other Generic Services,Supplies and Services,Telephones,213,09/08/2019,1908-04339,0.00,185.75,R,British Telecom,No
Http://opendatacommunities.org/id/metropolitan-district-council/leeds,Leeds City Council,31/08/2019,Adults and Health,Other Generic Services,Supplies and Services,Telephones,213,09/08/2019,1908-04340,0.00,222.52,R,British Telecom,No
Http://opendatacommunities.org/id/metropolitan-district-council/leeds,Leeds City Council,31/08/2019,Adults and Health,Other Generic Services,Supplies and Services,Telephones,213,09/08/2019,1908-04341,0.00,228.67,R,British Telecom,No
Http://opendatacommunities.org/id/metropolitan-district-council/leeds,Leeds City Council,31/08/2019,Adults and Health,Other Generic Services,Supplies and Services,Telephones,213,09/08/2019,1908-04342,0.00,185.75,R,British Telecom,No
Http://opendatacommunities.org/id/metropolitan-district-council/leeds,Leeds City Council,31/08/2019,Adults and Health,Other Generic Services,Supplies and Services,Telephones,213,09/08/2019,1908-04343,0.00,222.52,R,British Telecom,No
Http://opendatacommunities.org/id/metropolitan-district-council/leeds,Leeds City Council,31/08/2019,Adults and Health,Other Generic Services,Supplies and Services,Telephones,213,09/08/2019,1908-04344,0.00,228.67,R,British Telecom,No
Http://opendatacommunities.org/id/metropolitan-district-council/leeds,Leeds City Council,31/08/2019,Adults and Health,Other Generic Services,Supplies and Services,Telephones,213,09/08/2019,1908-04345,0.00,185.75,R,British Telecom,No
Http://opendatacommunities.org/id/metropolitan-district-council/leeds,Leeds City Council,31/08/2019,Adults and Health,Other Generic Services,Supplies and Services,Telephones,213,09/08/2019,1908-04346,0.00,222.52,R,British Telecom,No
Http://opendatacommunities.org/id/metropolitan-district-council/leeds,Leeds City Council,31/08/2019,Adults and Health,Other Generic Services,Supplies and Services,Telephones,213,09/08/2019,1908-04347,0.00,210.12,R,British Telecom,No
Http://opendatacommunities.org/id/metropolitan-district-council/leeds,Leeds City Council,31/08/2019,Adults and Health,Other Generic Services,Supplies and Services,Telephones,213,09/08/2019,1908-04348,0.00,201.39,R,British Telecom,No
Http://opendatacommunities.org/id/metropolitan-district-council/leeds,Leeds City Council,31/08/2019,Adults and Health,Other Generic Services,Supplies and Services,Telephones,213,09/08/2019,1908-04349,0.00,49.54,R,British Telecom,No
Http://opendatacommunities.org/id/metropolitan-district-council/leeds,Leeds City Council,31/08/2019,Adults and Health,Other Generic Services,Supplies and Services,Telephones,213,09/08/2019,1908-04350,0.00,210.12,R,British Telecom,No
Http://opendatacommunities.org/id/metropolitan-district-council/leeds,Leeds City Council,31/08/2019,Adults and Health,Other Generic Services,Supplies and Services,Telephones,213,09/08/2019,1908-04351,0.00,201.39,R,British Telecom,No
Http://opendatacommunities.org/id/metropolitan-district-council/leeds,Leeds City Council,31/08/2019,Adults and Health,Other Generic Services,Supplies and Services,Telephones,213,09/08/2019,1908-04352,0.00,49.54,R,British Telecom,No
Http://opendatacommunities.org/id/metropolitan-district-council/leeds,Leeds City Council,31/08/2019,Adults and Health,Other Generic Services,Supplies and Services,Telephones,213,09/08/2019,1908-04353,0.00,210.12,R,British Telecom,No
Http://opendatacommunities.org/id/metropolitan-district-council/leeds,Leeds City Council,31/08/2019,Adults and Health,Other Generic Services,Supplies and Services,Telephones,213,09/08/2019,1908-04354,0.00,201.39,R,British Telecom,No
Http://opendatacommunities.org/id/metropolitan-district-council/leeds,Leeds City Council,31/08/2019,Adults and Health,Other Generic Services,Supplies and Services,Operational Furniture And Equipment,203,30/08/2019,1908-04947,0.00,488.40,R,Care & Repair Leeds,No
Http://opendatacommunities.org/id/metropolitan-district-council/leeds,Leeds City Council,31/08/2019,Adults and Health,Other Generic Services,Third Party Payments,Fees To Carers,563,09/08/2019,1908-05188,0.00,27.80,R,REDACTED PERSONAL DATA,No
Http://opendatacommunities.org/id/metropolitan-district-council/leeds,Leeds City Council,31/08/2019,Adults and Health,Other Generic Services,Third Party Payments,Home Care,568,06/08/2019,1908-05713,0.00,23737.50,R,Comfort Call,No
Http://opendatacommunities.org/id/metropolitan-district-council/leeds,Leeds City Council,31/08/2019,Adults and Health,Other Generic Services,Supplies and Services,Operational Furniture And Equipment,203,19/08/2019,1908-06438,0.00,516.10,R,Crown Lift Trucks Limited,No
Http://opendatacommunities.org/id/metropolitan-district-council/leeds,Leeds City Council,31/08/2019,Adults and Health,Other Generic Services,Third Party Payments,Residential,580,30/08/2019,1908-06501,0.00,3900.00,R,Czajka Properties Ltd (All Homes),No
Http://opendatacommunities.org/id/metropolitan-district-council/leeds,Leeds City Council,31/08/2019,Adults and Health,Other Generic Services,Third Party Payments,Fees To Carers,563,23/08/2019,1908-06550,0.00,109.50,R,REDACTED PERSONAL DATA,No
Http://opendatacommunities.org/id/metropolitan-district-council/leeds,Leeds City Council,31/08/2019,Adults and Health,Other Generic Services,Third Party Payments,Fees To Carers,563,23/08/2019,1908-06552,0.00,328.50,R,REDACTED PERSONAL DATA,No
Http://opendatacommunities.org/id/metropolitan-district-council/leeds,Leeds City Council,31/08/2019,Adults and Health,Other Generic Services,Supplies and Services,Computer Software & Equipment,214,12/08/2019,1908-06875,0.00,960.00,R,Dizions Ltd T/A Charitylog,No
Http://opendatacommunities.org/id/metropolitan-district-council/leeds,Leeds City Council,31/08/2019,Adults and Health,Other Generic Services,Third Party Payments,Fees To Carers,563,23/08/2019,1908-06945,0.00,27.80,R,REDACTED PERSONAL DATA,No
Http://opendatacommunities.org/id/metropolitan-district-council/leeds,Leeds City Council,31/08/2019,Adults and Health,Other Generic Services,Third Party Payments,Fees To Carers,563,09/08/2019,1908-07196,0.00,134.10,R,REDACTED PERSONAL DATA,No
Http://opendatacommunities.org/id/metropolitan-district-council/leeds,Leeds City Council,31/08/2019,Adults and Health,Other Generic Services,Third Party Payments,Fees To Carers,563,23/08/2019,1908-07197,0.00,223.50,R,REDACTED PERSONAL DATA,No
Http://opendatacommunities.org/id/metropolitan-district-council/leeds,Leeds City Council,31/08/2019,Adults and Health,Other Generic Services,Premises,Cleaning Maintenance & Toiletries,127,23/08/2019,1908-07645,0.00,452.64,R,Elsan Ltd,No
Http://opendatacommunities.org/id/metropolitan-district-council/leeds,Leeds City Council,31/08/2019,Adults and Health,Other Generic Services,Third Party Payments,Fees To Carers,563,16/08/2019,1908-07934,0.00,249.38,R,REDACTED PERSONAL DATA,No
Http://opendatacommunities.org/id/metropolitan-district-council/leeds,Leeds City Council,31/08/2019,Adults and Health,Other Generic Services,Third Party Payments,Fees To Carers,563,02/08/2019,1908-09001,0.00,18.25,R,REDACTED PERSONAL DATA,No
Http://opendatacommunities.org/id/metropolitan-district-council/leeds,Leeds City Council,31/08/2019,Adults and Health,Other Generic Services,Third Party Payments,Fees To Carers,563,16/08/2019,1908-09002,0.00,18.25,R,REDACTED PERSONAL DATA,No
Http://opendatacommunities.org/id/metropolitan-district-council/leeds,Leeds City Council,31/08/2019,Adults and Health,Other Generic Services,Supplies and Services,Clothing & Uniforms,241,16/07/2019,1908-09393,0.00,29.87,R,Greenham Trading Ltd,Yes
Http://opendatacommunities.org/id/metropolitan-district-council/leeds,Leeds City Council,31/08/2019,Adults and Health,Other Generic Services,Supplies and Services,Telephones,213,02/08/2019,1908-11403,0.00,59.44,R,REDACTED PERSONAL DATA,No
Http://opendatacommunities.org/id/metropolitan-district-council/leeds,Leeds City Council,31/08/2019,Adults and Health,Other Generic Services,Third Party Payments,Fees To Carers,563,02/08/2019,1908-11413,0.00,146.00,R,REDACTED PERSONAL DATA,No
Http://opendatacommunities.org/id/metropolitan-district-council/leeds,Leeds City Council,31/08/2019,Adults and Health,Other Generic Services,Third Party Payments,Fees To Carers,563,09/08/2019,1908-11414,0.00,18.25,R,REDACTED PERSONAL DATA,No
Http://opendatacommunities.org/id/metropolitan-district-council/leeds,Leeds City Council,31/08/2019,Adults and Health,Other Generic Services,Third Party Payments,Fees To Carers,563,16/08/2019,1908-11415,0.00,109.50,R,REDACTED PERSONAL DATA,No
Http://opendatacommunities.org/id/metropolitan-district-council/leeds,Leeds City Council,31/08/2019,Adults and Health,Other Generic Services,Third Party Payments,Fees To Carers,563,23/08/2019,1908-11416,0.00,146.00,R,REDACTED PERSONAL DATA,No
Http://opendatacommunities.org/id/metropolitan-district-council/leeds,Leeds City Council,31/08/2019,Adults and Health,Other Generic Services,Third Party Payments,Fees To Carers,563,09/08/2019,1908-11638,0.00,27.80,R,REDACTED PERSONAL DATA,No
Http://opendatacommunities.org/id/metropolitan-district-council/leeds,Leeds City Council,31/08/2019,Adults and Health,Other Generic Services,Supplies and Services,Conference Meetings,253,08/08/2019,1908-12121,0.00,30.00,R,REDACTED PERSONAL DATA,No
Http://opendatacommunities.org/id/metropolitan-district-council/leeds,Leeds City Council,31/08/2019,Adults and Health,Other Generic Services,Third Party Payments,Fees To Carers,563,16/08/2019,1908-12146,0.00,140.00,R,REDACTED PERSONAL DATA,No
Http://opendatacommunities.org/id/metropolitan-district-council/leeds,Leeds City Council,31/08/2019,Adults and Health,Other Generic Services,Third Party Payments,Fees To Carers,563,16/08/2019,1908-12147,0.00,17.85,R,REDACTED PERSONAL DATA,No
Http://opendatacommunities.org/id/metropolitan-district-council/leeds,Leeds City Council,31/08/2019,Adults and Health,Other Generic Services,Third Party Payments,Fees To Carers,563,16/08/2019,1908-12148,0.00,14.50,R,REDACTED PERSONAL DATA,No
Http://opendatacommunities.org/id/metropolitan-district-council/leeds,Leeds City Council,31/08/2019,Adults and Health,Other Generic Services,Third Party Payments,Home Care,568,22/08/2019,1908-13028,0.00,9540.80,R,Leeds Jewish Welfare Board,No
Http://opendatacommunities.org/id/metropolitan-district-council/leeds,Leeds City Council,31/08/2019,Adults and Health,Other Generic Services,Third Party Payments,Fees To Carers,563,09/08/2019,1908-13400,0.00,670.50,R,REDACTED PERSONAL DATA,No
Http://opendatacommunities.org/id/metropolitan-district-council/leeds,Leeds City Council,31/08/2019,Adults and Health,Other Generic Services,Third Party Payments,Fees To Carers,563,16/08/2019,1908-13401,0.00,35.00,R,REDACTED PERSONAL DATA,No
Http://opendatacommunities.org/id/metropolitan-district-council/leeds,Leeds City Council,31/08/2019,Adults and Health,Other Generic Services,Third Party Payments,Fees To Carers,563,16/08/2019,1908-13402,0.00,210.00,R,REDACTED PERSONAL DATA,No
Http://opendatacommunities.org/id/metropolitan-district-council/leeds,Leeds City Council,31/08/2019,Adults and Health,Other Generic Services,Third Party Payments,Fees To Carers,563,16/08/2019,1908-13403,0.00,249.38,R,REDACTED PERSONAL DATA,No
Http://opendatacommunities.org/id/metropolitan-district-council/leeds,Leeds City Council,31/08/2019,Adults and Health,Other Generic Services,Third Party Payments,Fees To Carers,563,16/08/2019,1908-13404,0.00,140.00,R,REDACTED PERSONAL DATA,No
Http://opendatacommunities.org/id/metropolitan-district-council/leeds,Leeds City Council,31/08/2019,Adults and Health,Other Generic Services,Third Party Payments,Fees To Carers,563,16/08/2019,1908-13405,0.00,201.26,R,REDACTED PERSONAL DATA,No
Http://opendatacommunities.org/id/metropolitan-district-council/leeds,Leeds City Council,31/08/2019,Adults and Health,Other Generic Services,Third Party Payments,Fees To Carers,563,16/08/2019,1908-13406,0.00,280.02,R,REDACTED PERSONAL DATA,No
Http://opendatacommunities.org/id/metropolitan-district-council/leeds,Leeds City Council,31/08/2019,Adults and Health,Other Generic Services,Third Party Payments,Fees To Carers,563,16/08/2019,1908-13407,0.00,92.10,R,REDACTED PERSONAL DATA,No
Http://opendatacommunities.org/id/metropolitan-district-council/leeds,Leeds City Council,31/08/2019,Adults and Health,Other Generic Services,Third Party Payments,Fees To Carers,563,23/08/2019,1908-13408,0.00,536.40,R,REDACTED PERSONAL DATA,No
Http://opendatacommunities.org/id/metropolitan-district-council/leeds,Leeds City Council,31/08/2019,Adults and Health,Other Generic Services,Third Party Payments,Fees To Carers,563,16/08/2019,1908-13410,0.00,328.50,R,REDACTED PERSONAL DATA,No
Http://opendatacommunities.org/id/metropolitan-district-council/leeds,Leeds City Council,31/08/2019,Adults and Health,Other Generic Services,Third Party Payments,Fees To Carers,563,16/08/2019,1908-13411,0.00,13.90,R,REDACTED PERSONAL DATA,No
Http://opendatacommunities.org/id/metropolitan-district-council/leeds,Leeds City Council,31/08/2019,Adults and Health,Other Generic Services,Third Party Payments,Fees To Carers,563,23/08/2019,1908-13412,0.00,27.80,R,REDACTED PERSONAL DATA,No
Http://opendatacommunities.org/id/metropolitan-district-council/leeds,Leeds City Council,31/08/2019,Adults and Health,Other Generic Services,Third Party Payments,Fees To Carers,563,02/08/2019,1908-13754,0.00,134.10,R,REDACTED PERSONAL DATA,No
Http://opendatacommunities.org/id/metropolitan-district-council/leeds,Leeds City Council,31/08/2019,Adults and Health,Other Generic Services,Third Party Payments,Fees To Carers,563,09/08/2019,1908-13755,0.00,13.90,R,REDACTED PERSONAL DATA,No
Http://opendatacommunities.org/id/metropolitan-district-council/leeds,Leeds City Council,31/08/2019,Adults and Health,Other Generic Services,Third Party Payments,Fees To Carers,563,16/08/2019,1908-13756,0.00,306.25,R,REDACTED PERSONAL DATA,No
Http://opendatacommunities.org/id/metropolitan-district-council/leeds,Leeds City Council,31/08/2019,Adults and Health,Other Generic Services,Third Party Payments,Fees To Carers,563,16/08/2019,1908-13757,0.00,140.32,R,REDACTED PERSONAL DATA,No
Http://opendatacommunities.org/id/metropolitan-district-council/leeds,Leeds City Council,31/08/2019,Adults and Health,Other Generic Services,Third Party Payments,Fees To Carers,563,16/08/2019,1908-13758,0.00,262.50,R,REDACTED PERSONAL DATA,No
Http://opendatacommunities.org/id/metropolitan-district-council/leeds,Leeds City Council,31/08/2019,Adults and Health,Other Generic Services,Third Party Payments,Fees To Carers,563,16/08/2019,1908-13759,0.00,17.85,R,REDACTED PERSONAL DATA,No
Http://opendatacommunities.org/id/metropolitan-district-council/leeds,Leeds City Council,31/08/2019,Adults and Health,Other Generic Services,Third Party Payments,Fees To Carers,563,16/08/2019,1908-13760,0.00,63.00,R,REDACTED PERSONAL DATA,No
Http://opendatacommunities.org/id/metropolitan-district-council/leeds,Leeds City Council,31/08/2019,Adults and Health,Other Generic Services,Third Party Payments,Fees To Carers,563,23/08/2019,1908-13761,0.00,134.10,R,REDACTED PERSONAL DATA,No
Http://opendatacommunities.org/id/metropolitan-district-council/leeds,Leeds City Council,31/08/2019,Adults and Health,Other Generic Services,Supplies and Services,Office Consumables,210,28/06/2019,1908-13803,0.00,55.00,R,Lyreco UK Ltd,Yes
Http://opendatacommunities.org/id/metropolitan-district-council/leeds,Leeds City Council,31/08/2019,Adults and Health,Other Generic Services,Supplies and Services,Office Consumables,210,09/07/2019,1908-13931,0.00,66.50,R,Lyreco UK Ltd,Yes
Http://opendatacommunities.org/id/metropolitan-district-council/leeds,Leeds City Council,31/08/2019,Adults and Health,Other Generic Services,Supplies and Services,Office Consumables,210,18/07/2019,1908-14090,0.00,4.11,R,Lyreco UK Ltd,Yes
Http://opendatacommunities.org/id/metropolitan-district-council/leeds,Leeds City Council,31/08/2019,Adults and Health,Other Generic Services,Third Party Payments,Home Care,568,30/08/2019,1908-15265,0.00,3708.90,R,Mears Care Limited,No
Http://opendatacommunities.org/id/metropolitan-district-council/leeds,Leeds City Council,31/08/2019,Adults and Health,Other Generic Services,Third Party Payments,Home Care,568,30/08/2019,1908-15266,0.00,5816.95,R,Mears Care Limited,No
Http://opendatacommunities.org/id/metropolitan-district-council/leeds,Leeds City Council,31/08/2019,Adults and Health,Other Generic Services,Third Party Payments,Fees To Carers,563,02/08/2019,1908-16937,0.00,22.33,R,REDACTED PERSONAL DATA,No
Http://opendatacommunities.org/id/metropolitan-district-council/leeds,Leeds City Council,31/08/2019,Adults and Health,Other Generic Services,Supplies and Services,Conference Meetings,253,08/08/2019,1908-17466,0.00,60.00,R,REDACTED PERSONAL DATA,No
Http://opendatacommunities.org/id/metropolitan-district-council/leeds,Leeds City Council,31/08/2019,Adults and Health,Other Generic Services,Premises,Cleaning Maintenance & Toiletries,127,09/08/2019,1908-18128,0.00,470.00,R,Professional Paper Supplies Ltd,No
Http://opendatacommunities.org/id/metropolitan-district-council/leeds,Leeds City Council,31/08/2019,Adults and Health,Other Generic Services,Third Party Payments,Fees To Carers,563,12/08/2019,1908-18320,0.00,27.80,R,REDACTED PERSONAL DATA,No
Http://opendatacommunities.org/id/metropolitan-district-council/leeds,Leeds City Council,31/08/2019,Adults and Health,Other Generic Services,Employees,Agency Staff,8,01/07/2019,1908-18699,0.00,13.95,R,Reed Specialist Recrui,Yes
Http://opendatacommunities.org/id/metropolitan-district-council/leeds,Leeds City Council,31/08/2019,Adults and Health,Other Generic Services,Employees,Agency Staff,8,01/07/2019,1908-18906,0.00,1054.54,R,Reed Specialist Recrui,Yes
Http://opendatacommunities.org/id/metropolitan-district-council/leeds,Leeds City Council,31/08/2019,Adults and Health,Other Generic Services,Employees,Agency Staff,8,08/07/2019,1908-19075,0.00,261.35,R,Reed Specialist Recrui,Yes
Http://opendatacommunities.org/id/metropolitan-district-council/leeds,Leeds City Council,31/08/2019,Adults and Health,Other Generic Services,Employees,Agency Staff,8,08/07/2019,1908-19168,0.00,1054.54,R,Reed Specialist Recrui,Yes
Http://opendatacommunities.org/id/metropolitan-district-council/leeds,Leeds City Council,31/08/2019,Adults and Health,Other Generic Services,Employees,Agency Staff,8,15/07/2019,1908-19235,0.00,1054.54,R,Reed Specialist Recrui,Yes
Http://opendatacommunities.org/id/metropolitan-district-council/leeds,Leeds City Council,31/08/2019,Adults and Health,Other Generic Services,Employees,Agency Staff,8,15/07/2019,1908-19270,0.00,261.35,R,Reed Specialist Recrui,Yes
Http://opendatacommunities.org/id/metropolitan-district-council/leeds,Leeds City Council,31/08/2019,Adults and Health,Other Generic Services,Employees,Agency Staff,8,15/07/2019,1908-19392,0.00,22.65,R,Reed Specialist Recrui,Yes
Http://opendatacommunities.org/id/metropolitan-district-council/leeds,Leeds City Council,31/08/2019,Adults and Health,Other Generic Services,Employees,Agency Staff,8,22/07/2019,1908-19486,0.00,14.40,R,Reed Specialist Recrui,Yes
Http://opendatacommunities.org/id/metropolitan-district-council/leeds,Leeds City Council,31/08/2019,Adults and Health,Other Generic Services,Employees,Agency Staff,8,22/07/2019,1908-19511,0.00,255.03,R,Reed Specialist Recrui,Yes
Http://opendatacommunities.org/id/metropolitan-district-council/leeds,Leeds City Council,31/08/2019,Adults and Health,Other Generic Services,Employees,Agency Staff,8,22/07/2019,1908-19565,0.00,1054.54,R,Reed Specialist Recrui,Yes
Http://opendatacommunities.org/id/metropolitan-district-council/leeds,Leeds City Council,31/08/2019,Adults and Health,Other Generic Services,Employees,Agency Staff,8,29/07/2019,1908-19772,0.00,20.70,R,Reed Specialist Recrui,Yes
Http://opendatacommunities.org/id/metropolitan-district-council/leeds,Leeds City Council,31/08/2019,Adults and Health,Other Generic Services,Employees,Agency Staff,8,29/07/2019,1908-19830,0.00,191.88,R,Reed Specialist Recrui,Yes
Http://opendatacommunities.org/id/metropolitan-district-council/leeds,Leeds City Council,31/08/2019,Adults and Health,Other Generic Services,Employees,Agency Staff,8,29/07/2019,1908-19873,0.00,1054.54,R,Reed Specialist Recrui,Yes
Http://opendatacommunities.org/id/metropolitan-district-council/leeds,Leeds City Council,31/08/2019,Adults and Health,Other Generic Services,Third Party Payments,Fees To Carers,563,02/08/2019,1908-20907,0.00,255.50,R,REDACTED PERSONAL DATA,No
Http://opendatacommunities.org/id/metropolitan-district-council/leeds,Leeds City Council,31/08/2019,Adults and Health,Other Generic Services,Third Party Payments,Fees To Carers,563,09/08/2019,1908-20908,0.00,27.80,R,REDACTED PERSONAL DATA,No
Http://opendatacommunities.org/id/metropolitan-district-council/leeds,Leeds City Council,31/08/2019,Adults and Health,Other Generic Services,Third Party Payments,Fees To Carers,563,09/08/2019,1908-20909,0.00,255.50,R,REDACTED PERSONAL DATA,No
Http://opendatacommunities.org/id/metropolitan-district-council/leeds,Leeds City Council,31/08/2019,Adults and Health,Other Generic Services,Third Party Payments,Fees To Carers,563,16/08/2019,1908-20910,0.00,255.50,R,REDACTED PERSONAL DATA,No
Http://opendatacommunities.org/id/metropolitan-district-council/leeds,Leeds City Council,31/08/2019,Adults and Health,Other Generic Services,Third Party Payments,Fees To Carers,563,23/08/2019,1908-20911,0.00,255.50,R,REDACTED PERSONAL DATA,No
Http://opendatacommunities.org/id/metropolitan-district-council/leeds,Leeds City Council,31/08/2019,Adults and Health,Other Generic Services,Third Party Payments,Fees To Carers,563,08/08/2019,1908-21271,0.00,13.90,R,REDACTED PERSONAL DATA,No
Http://opendatacommunities.org/id/metropolitan-district-council/leeds,Leeds City Council,31/08/2019,Adults and Health,Other Generic Services,Third Party Payments,Fees To Carers,563,22/08/2019,1908-21272,0.00,292.00,R,REDACTED PERSONAL DATA,No
Http://opendatacommunities.org/id/metropolitan-district-council/leeds,Leeds City Council,31/08/2019,Adults and Health,Other Generic Services,Third Party Payments,Fees To Carers,563,29/08/2019,1908-21273,0.00,13.90,R,REDACTED PERSONAL DATA,No
Http://opendatacommunities.org/id/metropolitan-district-council/leeds,Leeds City Council,31/08/2019,Adults and Health,Other Generic Services,Third Party Payments,Fees To Carers,563,02/08/2019,1908-21277,0.00,73.00,R,REDACTED PERSONAL DATA,No
Http://opendatacommunities.org/id/metropolitan-district-council/leeds,Leeds City Council,31/08/2019,Adults and Health,Other Generic Services,Third Party Payments,Fees To Carers,563,09/08/2019,1908-21318,0.00,109.50,R,REDACTED PERSONAL DATA,No
Http://opendatacommunities.org/id/metropolitan-district-council/leeds,Leeds City Council,31/08/2019,Adults and Health,Other Generic Services,Third Party Payments,Home Care,568,23/08/2019,1908-21989,0.00,9363.95,R,Sevacare Uk Ltd,No
Http://opendatacommunities.org/id/metropolitan-district-council/leeds,Leeds City Council,31/08/2019,Adults and Health,Other Generic Services,Supplies and Services,Memberships,226,23/08/2019,1908-22028,0.00,170.00,R,Shared Lives Plus,No
Http://opendatacommunities.org/id/metropolitan-district-council/leeds,Leeds City Council,31/08/2019,Adults and Health,Other Generic Services,Employees,Training & Development,70,29/08/2019,1908-22029,0.00,150.32,R,Shared Lives Plus,No
Http://opendatacommunities.org/id/metropolitan-district-council/leeds,Leeds City Council,31/08/2019,Adults and Health,Other Generic Services,Third Party Payments,Fees To Carers,563,23/08/2019,1908-22916,0.00,13.90,R,REDACTED PERSONAL DATA,No
Http://opendatacommunities.org/id/metropolitan-district-council/leeds,Leeds City Council,31/08/2019,Adults and Health,Other Generic Services,Supplies and Services,Conference Meetings,253,23/08/2019,1908-23592,0.00,1050.00,R,Tec Services Association Cic,No
Http://opendatacommunities.org/id/metropolitan-district-council/leeds,Leeds City Council,31/08/2019,Adults and Health,Other Generic Services,Supplies and Services,Conference Meetings,253,23/08/2019,1908-23593,0.00,350.00,R,Tec Services Association Cic,No
Http://opendatacommunities.org/id/metropolitan-district-council/leeds,Leeds City Council,31/08/2019,Adults and Health,Other Generic Services,Premises,Cleaning Maintenance & Toiletries,127,09/08/2019,1908-25024,0.00,289.52,R,Trevor Iles Ltd,No
Http://opendatacommunities.org/id/metropolitan-district-council/leeds,Leeds City Council,31/08/2019,Adults and Health,Other Generic Services,Premises,Cleaning Maintenance & Toiletries,127,30/08/2019,1908-25036,0.00,772.59,R,Trevor Iles Ltd,No
Http://opendatacommunities.org/id/metropolitan-district-council/leeds,Leeds City Council,31/08/2019,Adults and Health,Other Generic Services,Supplies and Services,Computer Software & Equipment,214,16/08/2019,1908-25105,0.00,21702.07,R,Tunstall Healthcare (Uk) Ltd,No
Http://opendatacommunities.org/id/metropolitan-district-council/leeds,Leeds City Council,31/08/2019,Adults and Health,Other Generic Services,Supplies and Services,Childcare Vouchers Service Charge,258,12/08/2019,1908-25300,0.00,0.09,R,Various - Total Expenses,No
Http://opendatacommunities.org/id/metropolitan-district-council/leeds,Leeds City Council,31/08/2019,Adults and Health,Other Generic Services,Transport,Public Transport Expenses,310,12/08/2019,1908-25301,0.00,139.00,R,Various - Total Expenses,No
Http://opendatacommunities.org/id/metropolitan-district-council/leeds,Leeds City Council,31/08/2019,Adults and Health,Other Generic Services,Transport,Car & Motorcycle Allowances,311,12/08/2019,1908-25302,0.00,73.42,R,Various - Total Expenses,No
Http://opendatacommunities.org/id/metropolitan-district-council/leeds,Leeds City Council,31/08/2019,Adults and Health,Other Generic Services,Transport,Car Parking Fees,312,12/08/2019,1908-25303,0.00,12.79,R,Various - Total Expenses,No
Http://opendatacommunities.org/id/metropolitan-district-council/leeds,Leeds City Council,31/08/2019,Adults and Health,Other Generic Services,Transport,Essential car user  Lump Sum,318,12/08/2019,1908-25304,0.00,321.00,R,Various - Total Expenses,No
Http://opendatacommunities.org/id/metropolitan-district-council/leeds,Leeds City Council,31/08/2019,Adults and Health,Other Generic Services,Third Party Payments,Fees To Carers,563,16/08/2019,1908-25547,0.00,245.00,R,REDACTED PERSONAL DATA,No
Http://opendatacommunities.org/id/metropolitan-district-council/leeds,Leeds City Council,31/08/2019,Adults and Health,Other Generic Services,Supplies and Services,Food & Drink,231,25/07/2019,1908-26515,0.00,4.55,R,Wm Morrisons Store,Yes
Http://opendatacommunities.org/id/metropolitan-district-council/leeds,Leeds City Council,31/08/2019,Adults and Health,Other Generic Services,Third Party Payments,Fees To Carers,563,16/08/2019,1908-27538,0.00,284.39,R,REDACTED PERSONAL DATA,No
Http://opendatacommunities.org/id/metropolitan-district-council/leeds,Leeds City Council,31/08/2019,Adults and Health,Other Generic Services,Third Party Payments,Fees To Carers,563,16/08/2019,1908-27539,0.00,3.30,R,REDACTED PERSONAL DATA,No
Http://opendatacommunities.org/id/metropolitan-district-council/leeds,Leeds City Council,31/08/2019,Adults and Health,Public Health,Third Party Payments,Public Health Commissioned Services,526,08/08/2019,1908-00444,0.00,172.00,R,Addlestone & Partners,No
Http://opendatacommunities.org/id/metropolitan-district-council/leeds,Leeds City Council,31/08/2019,Adults and Health,Public Health,Third Party Payments,Services Rendered By Voluntary Sector,505,16/08/2019,1908-00614,0.00,30000.00,R,Age Uk Leeds,No
Http://opendatacommunities.org/id/metropolitan-district-council/leeds,Leeds City Council,31/08/2019,Adults and Health,Public Health,Third Party Payments,Public Health Commissioned Services,526,08/08/2019,1908-00659,0.00,28.00,R,Aireborough Family Practice,No
Http://opendatacommunities.org/id/metropolitan-district-council/leeds,Leeds City Council,31/08/2019,Adults and Health,Public Health,Supplies and Services,Office Consumables,210,12/07/2019,1908-01074,0.00,27.50,R,Amazon.Co.Uk*m69ib5yh4 Am,Yes
Http://opendatacommunities.org/id/metropolitan-district-council/leeds,Leeds City Council,31/08/2019,Adults and Health,Public Health,Supplies and Services,Office Consumables,210,14/07/2019,1908-01100,0.00,37.71,R,Amazon.Co.Uk*mh3bm9oq4 Am,Yes
Http://opendatacommunities.org/id/metropolitan-district-council/leeds,Leeds City Council,31/08/2019,Adults and Health,Public Health,Supplies and Services,Office Consumables,210,14/07/2019,1908-01137,0.00,17.50,R,Amazon.Co.Uk*mh6wx7od4 Am,Yes
Http://opendatacommunities.org/id/metropolitan-district-council/leeds,Leeds City Council,31/08/2019,Adults and Health,Public Health,Supplies and Services,Office Consumables,210,12/07/2019,1908-01434,0.00,42.08,R,Amznmktplace,Yes
Http://opendatacommunities.org/id/metropolitan-district-council/leeds,Leeds City Council,31/08/2019,Adults and Health,Public Health,Supplies and Services,Office Consumables,210,26/07/2019,1908-01730,0.00,5.00,R,Amznmktplace Amazon.Co.Uk,Yes
Http://opendatacommunities.org/id/metropolitan-district-council/leeds,Leeds City Council,31/08/2019,Adults and Health,Public Health,Supplies and Services,Teaching Materials,202,30/07/2019,1908-01739,0.00,16.91,R,Amznmktplace Amazon.Co.Uk,Yes
Http://opendatacommunities.org/id/metropolitan-district-council/leeds,Leeds City Council,31/08/2019,Adults and Health,Public Health,Supplies and Services,Teaching Materials,202,30/07/2019,1908-01740,0.00,14.99,R,Amznmktplace Amazon.Co.Uk,Yes
Http://opendatacommunities.org/id/metropolitan-district-council/leeds,Leeds City Council,31/08/2019,Adults and Health,Public Health,Supplies and Services,Postages,212,30/07/2019,1908-01741,0.00,2.80,R,Amznmktplace Amazon.Co.Uk,Yes
Http://opendatacommunities.org/id/metropolitan-district-council/leeds,Leeds City Council,31/08/2019,Adults and Health,Public Health,Third Party Payments,Public Health Commissioned Services,526,08/08/2019,1908-02264,0.00,8.00,R,Armley Medical Practice,No
Http://opendatacommunities.org/id/metropolitan-district-council/leeds,Leeds City Council,31/08/2019,Adults and Health,Public Health,Third Party Payments,Public Health Commissioned Services,526,08/08/2019,1908-02514,0.00,188.00,R,Ashfield Medical Centre,No
Http://opendatacommunities.org/id/metropolitan-district-council/leeds,Leeds City Council,31/08/2019,Adults and Health,Public Health,Third Party Payments,Public Health Commissioned Services,526,22/08/2019,1908-02636,0.00,126.00,R,Ashton View Medical Centre,No
Http://opendatacommunities.org/id/metropolitan-district-council/leeds,Leeds City Council,31/08/2019,Adults and Health,Public Health,Supplies and Services,Memberships,226,01/08/2019,1908-03182,0.00,5450.00,R,Association Of Directors Of Public,No
Http://opendatacommunities.org/id/metropolitan-district-council/leeds,Leeds City Council,31/08/2019,Adults and Health,Public Health,Supplies and Services,Teaching Materials,202,26/07/2019,1908-03402,0.00,12.00,R,Baby Milk Action,Yes
Http://opendatacommunities.org/id/metropolitan-district-council/leeds,Leeds City Council,31/08/2019,Adults and Health,Public Health,Third Party Payments,Public Health Commissioned Services,526,22/08/2019,1908-03449,0.00,42.00,R,Balaji & Partners,No
Http://opendatacommunities.org/id/metropolitan-district-council/leeds,Leeds City Council,31/08/2019,Adults and Health,Public Health,Third Party Payments,Services Rendered By Voluntary Sector,505,01/08/2019,1908-03530,0.00,35765.00,R,Barca - Leeds,No
Http://opendatacommunities.org/id/metropolitan-district-council/leeds,Leeds City Council,31/08/2019,Adults and Health,Public Health,Third Party Payments,Public Health Commissioned Services,526,21/08/2019,1908-03712,0.00,371.00,R,Bellbrooke Surgery,No
Http://opendatacommunities.org/id/metropolitan-district-council/leeds,Leeds City Council,31/08/2019,Adults and Health,Public Health,Supplies and Services,Teaching Materials,202,25/07/2019,1908-04157,0.00,10.00,R,Book People Voucher,Yes
Http://opendatacommunities.org/id/metropolitan-district-council/leeds,Leeds City Council,31/08/2019,Adults and Health,Public Health,Third Party Payments,Services Rendered By Voluntary Sector,505,16/08/2019,1908-04219,0.00,7500.00,R,Bramley Elderly Action,No
Http://opendatacommunities.org/id/metropolitan-district-council/leeds,Leeds City Council,31/08/2019,Adults and Health,Public Health,Third Party Payments,Public Health Commissioned Services,526,08/08/2019,1908-04587,0.00,32.00,R,Burley Park Doctors,No
Http://opendatacommunities.org/id/metropolitan-district-council/leeds,Leeds City Council,31/08/2019,Adults and Health,Public Health,Third Party Payments,Public Health Commissioned Services,526,27/08/2019,1908-04810,0.00,1199.00,R,Calderdale & Huddersfield Nhs,No
Http://opendatacommunities.org/id/metropolitan-district-council/leeds,Leeds City Council,31/08/2019,Adults and Health,Public Health,Supplies and Services,Food & Drink,231,08/08/2019,1908-05130,0.00,52.96,R,Cash Public Health Resource Centre,No
Http://opendatacommunities.org/id/metropolitan-district-council/leeds,Leeds City Council,31/08/2019,Adults and Health,Public Health,Supplies and Services,Other Hired And Contracted Services,265,08/08/2019,1908-05131,0.00,50.00,R,Cash Public Health Resource Centre,No
Http://opendatacommunities.org/id/metropolitan-district-council/leeds,Leeds City Council,31/08/2019,Adults and Health,Public Health,Supplies and Services,Publication And Promotion,267,08/08/2019,1908-05132,0.00,110.00,R,Cash Public Health Resource Centre,No
Http://opendatacommunities.org/id/metropolitan-district-council/leeds,Leeds City Council,31/08/2019,Adults and Health,Public Health,Third Party Payments,Public Health Commissioned Services,526,28/08/2019,1908-05194,0.00,379.00,R,Central & North West London Nhs Ft,No
Http://opendatacommunities.org/id/metropolitan-district-council/leeds,Leeds City Council,31/08/2019,Adults and Health,Public Health,Third Party Payments,Public Health Commissioned Services,526,28/08/2019,1908-05195,0.00,136.00,R,Central & North West London Nhs Ft,No
Http://opendatacommunities.org/id/metropolitan-district-council/leeds,Leeds City Council,31/08/2019,Adults and Health,Public Health,Third Party Payments,Public Health Commissioned Services,526,22/08/2019,1908-06012,0.00,154.00,R,Conway Medical Centre,No
Http://opendatacommunities.org/id/metropolitan-district-council/leeds,Leeds City Council,31/08/2019,Adults and Health,Public Health,Third Party Payments,Public Health Commissioned Services,526,30/08/2019,1908-06122,0.00,376.00,R,County Durham And Darlington Nhs Ft,No
Http://opendatacommunities.org/id/metropolitan-district-council/leeds,Leeds City Council,31/08/2019,Adults and Health,Public Health,Third Party Payments,Public Health Commissioned Services,526,30/08/2019,1908-06123,0.00,525.00,R,County Durham And Darlington Nhs Ft,No
Http://opendatacommunities.org/id/metropolitan-district-council/leeds,Leeds City Council,31/08/2019,Adults and Health,Public Health,Third Party Payments,Public Health Commissioned Services,526,28/08/2019,1908-06125,0.00,128.00,R,Coventry And Warwickshire Partnership,No
Http://opendatacommunities.org/id/metropolitan-district-council/leeds,Leeds City Council,31/08/2019,Adults and Health,Public Health,Third Party Payments,Public Health Commissioned Services,526,08/08/2019,1908-06163,0.00,12.00,R,Craven Road Medical Practice,No
Http://opendatacommunities.org/id/metropolitan-district-council/leeds,Leeds City Council,31/08/2019,Adults and Health,Public Health,Third Party Payments,Public Health Commissioned Services,526,30/08/2019,1908-06164,0.00,25000.00,R,Craven Road Medical Practice,No
Http://opendatacommunities.org/id/metropolitan-district-council/leeds,Leeds City Council,31/08/2019,Adults and Health,Public Health,Third Party Payments,Public Health Commissioned Services,526,14/08/2019,1908-06912,0.00,429.80,R,Doncaster & Bassetlaw Teaching Ft,No
Http://opendatacommunities.org/id/metropolitan-district-council/leeds,Leeds City Council,31/08/2019,Adults and Health,Public Health,Third Party Payments,Public Health Commissioned Services,526,08/08/2019,1908-07045,0.00,8.00,R,Drs Balaji & Partners,No
Http://opendatacommunities.org/id/metropolitan-district-council/leeds,Leeds City Council,31/08/2019,Adults and Health,Public Health,Employees,Best Value Training,70,18/07/2019,1908-07281,0.00,128.29,R,Eb *suicide Bereavemen,Yes
Http://opendatacommunities.org/id/metropolitan-district-council/leeds,Leeds City Council,31/08/2019,Adults and Health,Public Health,Third Party Payments,Public Health Commissioned Services,526,22/08/2019,1908-07756,0.00,20.00,R,Enimed Group,No
Http://opendatacommunities.org/id/metropolitan-district-council/leeds,Leeds City Council,31/08/2019,Adults and Health,Public Health,Third Party Payments,Services Rendered By Voluntary Sector,505,01/08/2019,1908-08273,0.00,87427.50,R,Feel Good Factor,No
Http://opendatacommunities.org/id/metropolitan-district-council/leeds,Leeds City Council,31/08/2019,Adults and Health,Public Health,Third Party Payments,Public Health Commissioned Services,526,08/08/2019,1908-08870,0.00,12.00,R,G S Khan & C A Renwick,No
Http://opendatacommunities.org/id/metropolitan-district-council/leeds,Leeds City Council,31/08/2019,Adults and Health,Public Health,Supplies and Services,Teaching Materials,202,16/07/2019,1908-10115,0.00,58.00,R,Health Edco,Yes
Http://opendatacommunities.org/id/metropolitan-district-council/leeds,Leeds City Council,31/08/2019,Adults and Health,Public Health,Supplies and Services,Postages,212,16/07/2019,1908-10116,0.00,8.00,R,Health Edco,Yes
Http://opendatacommunities.org/id/metropolitan-district-council/leeds,Leeds City Council,31/08/2019,Adults and Health,Public Health,Third Party Payments,Services Rendered By Voluntary Sector,505,19/08/2019,1908-10123,0.00,56927.50,R,Health For All (Leeds),No
Http://opendatacommunities.org/id/metropolitan-district-council/leeds,Leeds City Council,31/08/2019,Adults and Health,Public Health,Third Party Payments,Public Health Commissioned Services,526,08/08/2019,1908-10423,0.00,12.00,R,Hicks & Mcpeake,No
Http://opendatacommunities.org/id/metropolitan-district-council/leeds,Leeds City Council,31/08/2019,Adults and Health,Public Health,Third Party Payments,Public Health Commissioned Services,526,08/08/2019,1908-10805,0.00,268.00,R,Hudson & Partners,No
Http://opendatacommunities.org/id/metropolitan-district-council/leeds,Leeds City Council,31/08/2019,Adults and Health,Public Health,Third Party Payments,Services Rendered By Voluntary Sector,505,02/08/2019,1908-10817,0.00,1914932.50,R,Humankind,No
Http://opendatacommunities.org/id/metropolitan-district-council/leeds,Leeds City Council,31/08/2019,Adults and Health,Public Health,Third Party Payments,Services Rendered By Voluntary Sector,505,21/08/2019,1908-10819,0.00,74597.82,R,Humankind,No
Http://opendatacommunities.org/id/metropolitan-district-council/leeds,Leeds City Council,31/08/2019,Adults and Health,Public Health,Third Party Payments,Services Rendered By Voluntary Sector,505,22/08/2019,1908-10820,0.00,5077.49,R,Humankind,No
Http://opendatacommunities.org/id/metropolitan-district-council/leeds,Leeds City Council,31/08/2019,Adults and Health,Public Health,Third Party Payments,Services Rendered By Voluntary Sector,505,22/08/2019,1908-10821,0.00,16570.43,R,Humankind,No
Http://opendatacommunities.org/id/metropolitan-district-council/leeds,Leeds City Council,31/08/2019,Adults and Health,Public Health,Third Party Payments,Public Health Commissioned Services,526,22/08/2019,1908-10822,0.00,9314.45,R,Humankind,No
Http://opendatacommunities.org/id/metropolitan-district-council/leeds,Leeds City Council,31/08/2019,Adults and Health,Public Health,Third Party Payments,Services Rendered By Voluntary Sector,505,22/08/2019,1908-10823,0.00,3600.00,R,Humankind,No
Http://opendatacommunities.org/id/metropolitan-district-council/leeds,Leeds City Council,31/08/2019,Adults and Health,Public Health,Third Party Payments,Services Rendered By Voluntary Sector,505,22/08/2019,1908-10824,0.00,3120.00,R,Humankind,No
Http://opendatacommunities.org/id/metropolitan-district-council/leeds,Leeds City Council,31/08/2019,Adults and Health,Public Health,Third Party Payments,Public Health Commissioned Services,526,08/08/2019,1908-10838,0.00,12.00,R,Hyde Park Surgery,No
Http://opendatacommunities.org/id/metropolitan-district-council/leeds,Leeds City Council,31/08/2019,Adults and Health,Public Health,Third Party Payments,Public Health Commissioned Services,526,22/08/2019,1908-12078,0.00,119.00,R,Kami Healthcare Ltd,No
Http://opendatacommunities.org/id/metropolitan-district-council/leeds,Leeds City Council,31/08/2019,Adults and Health,Public Health,Third Party Payments,Public Health Commissioned Services,526,22/08/2019,1908-12244,0.00,12.00,R,Khan Pharmacy,No
Http://opendatacommunities.org/id/metropolitan-district-council/leeds,Leeds City Council,31/08/2019,Adults and Health,Public Health,Third Party Payments,Public Health Commissioned Services,526,08/08/2019,1908-12724,0.00,16.00,R,Laurel Bank Surgery,No
Http://opendatacommunities.org/id/metropolitan-district-council/leeds,Leeds City Council,31/08/2019,Adults and Health,Public Health,Third Party Payments,Public Health Commissioned Services,526,07/08/2019,1908-12779,0.00,1833.33,R,Leeds And York Partnership Nhs Ft,No
Http://opendatacommunities.org/id/metropolitan-district-council/leeds,Leeds City Council,31/08/2019,Adults and Health,Public Health,Third Party Payments,Public Health Commissioned Services,526,07/08/2019,1908-12794,0.00,4965.50,R,Leeds Beckett University,No
Http://opendatacommunities.org/id/metropolitan-district-council/leeds,Leeds City Council,31/08/2019,Adults and Health,Public Health,Supplies and Services,Food & Drink,231,16/08/2019,1908-12797,0.00,195.70,R,Leeds Beckett University,No
Http://opendatacommunities.org/id/metropolitan-district-council/leeds,Leeds City Council,31/08/2019,Adults and Health,Public Health,Third Party Payments,Public Health Commissioned Services,526,29/08/2019,1908-12939,0.00,57950.00,R,Leeds Community Foundation,No
Http://opendatacommunities.org/id/metropolitan-district-council/leeds,Leeds City Council,31/08/2019,Adults and Health,Public Health,Third Party Payments,Public Health Commissioned Services,526,08/08/2019,1908-12948,0.00,487608.33,R,Leeds Community Healthcare Nhs Trust,No
Http://opendatacommunities.org/id/metropolitan-district-council/leeds,Leeds City Council,31/08/2019,Adults and Health,Public Health,Third Party Payments,Public Health Commissioned Services,526,08/08/2019,1908-12949,0.00,44100.00,R,Leeds Community Healthcare Nhs Trust,No
Http://opendatacommunities.org/id/metropolitan-district-council/leeds,Leeds City Council,31/08/2019,Adults and Health,Public Health,Third Party Payments,Public Health Commissioned Services,526,08/08/2019,1908-12950,0.00,769.17,R,Leeds Community Healthcare Nhs Trust,No
Http://opendatacommunities.org/id/metropolitan-district-council/leeds,Leeds City Council,31/08/2019,Adults and Health,Public Health,Third Party Payments,Public Health Commissioned Services,526,30/08/2019,1908-12959,0.00,898266.67,R,Leeds Community Healthcare Nhs Trust,No
Http://opendatacommunities.org/id/metropolitan-district-council/leeds,Leeds City Council,31/08/2019,Adults and Health,Public Health,Third Party Payments,Public Health Commissioned Services,526,20/08/2019,1908-12998,0.00,102521.00,R,Leeds General Practice Confederation Ltd,No
Http://opendatacommunities.org/id/metropolitan-district-council/leeds,Leeds City Council,31/08/2019,Adults and Health,Public Health,Third Party Payments,Services Rendered By Voluntary Sector,505,02/08/2019,1908-13010,0.00,12500.00,R,Leeds Irish Health & Homes,No
Http://opendatacommunities.org/id/metropolitan-district-council/leeds,Leeds City Council,31/08/2019,Adults and Health,Public Health,Third Party Payments,Services Rendered By Voluntary Sector,505,07/08/2019,1908-13069,0.00,2498.75,R,Leeds Rugby Foundation,No
Http://opendatacommunities.org/id/metropolitan-district-council/leeds,Leeds City Council,31/08/2019,Adults and Health,Public Health,Third Party Payments,Public Health Commissioned Services,526,09/08/2019,1908-13112,0.00,5500.00,R,Leeds Teaching Hospitals,No
Http://opendatacommunities.org/id/metropolitan-district-council/leeds,Leeds City Council,31/08/2019,Adults and Health,Public Health,Third Party Payments,Public Health Commissioned Services,526,07/08/2019,1908-13177,0.00,444.00,R,Leigh View Surgery Development Ltd,No
Http://opendatacommunities.org/id/metropolitan-district-council/leeds,Leeds City Council,31/08/2019,Adults and Health,Public Health,Third Party Payments,Public Health Commissioned Services,526,08/08/2019,1908-13228,0.00,128.00,R,Lewis And Partners,No
Http://opendatacommunities.org/id/metropolitan-district-council/leeds,Leeds City Council,31/08/2019,Adults and Health,Public Health,Third Party Payments,Public Health Commissioned Services,526,08/08/2019,1908-13418,0.00,216.00,R,Lingwell Croft Surgery,No
Http://opendatacommunities.org/id/metropolitan-district-council/leeds,Leeds City Council,31/08/2019,Adults and Health,Public Health,Third Party Payments,Public Health Commissioned Services,526,09/08/2019,1908-13549,0.00,1603.00,R,Locala Community Partnership C.I.C.,No
Http://opendatacommunities.org/id/metropolitan-district-council/leeds,Leeds City Council,31/08/2019,Adults and Health,Public Health,Third Party Payments,Public Health Commissioned Services,526,09/08/2019,1908-13550,0.00,4226.00,R,Locala Community Partnership C.I.C.,No
Http://opendatacommunities.org/id/metropolitan-district-council/leeds,Leeds City Council,31/08/2019,Adults and Health,Public Health,Third Party Payments,Services Rendered By Voluntary Sector,505,01/08/2019,1908-13719,0.00,5139.00,R,Ls-Ten Ltd,No
Http://opendatacommunities.org/id/metropolitan-district-council/leeds,Leeds City Council,31/08/2019,Adults and Health,Public Health,Third Party Payments,Public Health Commissioned Services,526,19/08/2019,1908-13738,0.00,316.02,R,Luton And Dunstable Hospital Nhs,No
Http://opendatacommunities.org/id/metropolitan-district-council/leeds,Leeds City Council,31/08/2019,Adults and Health,Public Health,Supplies and Services,Publication And Promotion,267,23/08/2019,1908-14422,0.00,3000.00,R,Magpie Creative Communications Ltd,No
Http://opendatacommunities.org/id/metropolitan-district-council/leeds,Leeds City Council,31/08/2019,Adults and Health,Public Health,Third Party Payments,Public Health Commissioned Services,526,13/08/2019,1908-14459,0.00,1956.00,R,Manchester University Nhsft,No
Http://opendatacommunities.org/id/metropolitan-district-council/leeds,Leeds City Council,31/08/2019,Adults and Health,Public Health,Third Party Payments,Public Health Commissioned Services,526,13/08/2019,1908-14460,0.00,-1456.00,R,Manchester University Nhsft,No
Http://opendatacommunities.org/id/metropolitan-district-council/leeds,Leeds City Council,31/08/2019,Adults and Health,Public Health,Third Party Payments,Public Health Commissioned Services,526,16/08/2019,1908-14461,0.00,523.00,R,Manchester University Nhsft,No
Http://opendatacommunities.org/id/metropolitan-district-council/leeds,Leeds City Council,31/08/2019,Adults and Health,Public Health,Third Party Payments,Public Health Commissioned Services,526,19/08/2019,1908-14462,0.00,396.00,R,Manchester University Nhsft,No
Http://opendatacommunities.org/id/metropolitan-district-council/leeds,Leeds City Council,31/08/2019,Adults and Health,Public Health,Third Party Payments,Public Health Commissioned Services,526,19/08/2019,1908-14463,0.00,-132.00,R,Manchester University Nhsft,No
Http://opendatacommunities.org/id/metropolitan-district-council/leeds,Leeds City Council,31/08/2019,Adults and Health,Public Health,Third Party Payments,Public Health Commissioned Services,526,08/08/2019,1908-14496,0.00,524.00,R,Manor Park Surgery,No
Http://opendatacommunities.org/id/metropolitan-district-council/leeds,Leeds City Council,31/08/2019,Adults and Health,Public Health,Third Party Payments,Public Health Commissioned Services,526,08/08/2019,1908-15245,0.00,52.00,R,Meanwood Group Practice,No
Http://opendatacommunities.org/id/metropolitan-district-council/leeds,Leeds City Council,31/08/2019,Adults and Health,Public Health,Third Party Payments,Public Health Commissioned Services,526,08/08/2019,1908-15417,0.00,304.00,R,Menston & Guisley Practice,No
Http://opendatacommunities.org/id/metropolitan-district-council/leeds,Leeds City Council,31/08/2019,Adults and Health,Public Health,Third Party Payments,Public Health Commissioned Services,526,08/08/2019,1908-15782,0.00,244.00,R,Mulberry Street Medical Practice,No
Http://opendatacommunities.org/id/metropolitan-district-council/leeds,Leeds City Council,31/08/2019,Adults and Health,Public Health,Third Party Payments,Public Health Commissioned Services,526,08/08/2019,1908-15895,0.00,212.00,R,N Saddiq,No
Http://opendatacommunities.org/id/metropolitan-district-council/leeds,Leeds City Council,31/08/2019,Adults and Health,Public Health,Third Party Payments,Public Health Commissioned Services,526,16/08/2019,1908-16073,0.00,155612.90,R,Nhs Business Services Authority,No
Http://opendatacommunities.org/id/metropolitan-district-council/leeds,Leeds City Council,31/08/2019,Adults and Health,Public Health,Third Party Payments,Public Health Commissioned Services,526,16/08/2019,1908-16076,0.00,483920.00,R,Nhs Leeds Clinical Commissioning Group,No
Http://opendatacommunities.org/id/metropolitan-district-council/leeds,Leeds City Council,31/08/2019,Adults and Health,Public Health,Third Party Payments,Public Health Commissioned Services,526,08/08/2019,1908-16167,0.00,400.00,R,North Leeds Medical Practice,No
Http://opendatacommunities.org/id/metropolitan-district-council/leeds,Leeds City Council,31/08/2019,Adults and Health,Public Health,Third Party Payments,Public Health Commissioned Services,526,22/08/2019,1908-16170,0.00,35.00,R,North Leeds Medical Practice,No
Http://opendatacommunities.org/id/metropolitan-district-council/leeds,Leeds City Council,31/08/2019,Adults and Health,Public Health,Third Party Payments,Public Health Commissioned Services,526,09/08/2019,1908-16189,0.00,107.00,R,Northamptonshire Healthcare,No
Http://opendatacommunities.org/id/metropolitan-district-council/leeds,Leeds City Council,31/08/2019,Adults and Health,Public Health,Third Party Payments,Public Health Commissioned Services,526,08/08/2019,1908-16424,0.00,368.00,R,Oakwood Lane Medical Practice,No
Http://opendatacommunities.org/id/metropolitan-district-council/leeds,Leeds City Council,31/08/2019,Adults and Health,Public Health,Third Party Payments,Public Health Commissioned Services,526,08/08/2019,1908-16425,0.00,28.00,R,Oakwood Surgery,No
Http://opendatacommunities.org/id/metropolitan-district-council/leeds,Leeds City Council,31/08/2019,Adults and Health,Public Health,Third Party Payments,Services Rendered By Voluntary Sector,505,23/08/2019,1908-16502,0.00,7500.00,R,Opal,No
Http://opendatacommunities.org/id/metropolitan-district-council/leeds,Leeds City Council,31/08/2019,Adults and Health,Public Health,Third Party Payments,Public Health Commissioned Services,526,07/08/2019,1908-16610,0.00,78.75,R,Oxford University Hospitals Nhs Ft,No
Http://opendatacommunities.org/id/metropolitan-district-council/leeds,Leeds City Council,31/08/2019,Adults and Health,Public Health,Third Party Payments,Public Health Commissioned Services,526,19/08/2019,1908-16611,0.00,158.90,R,Oxford University Hospitals Nhs Ft,No
Http://opendatacommunities.org/id/metropolitan-district-council/leeds,Leeds City Council,31/08/2019,Adults and Health,Public Health,Third Party Payments,Public Health Commissioned Services,526,08/08/2019,1908-16938,0.00,200.00,R,P Shelvin K Gibbs H Devitt,No
Http://opendatacommunities.org/id/metropolitan-district-council/leeds,Leeds City Council,31/08/2019,Adults and Health,Public Health,Third Party Payments,Public Health Commissioned Services,526,08/08/2019,1908-17119,0.00,128.00,R,Park Edge Practice,No
Http://opendatacommunities.org/id/metropolitan-district-council/leeds,Leeds City Council,31/08/2019,Adults and Health,Public Health,Supplies and Services,Publication And Promotion,267,23/08/2019,1908-17125,0.00,540.00,R,Parkers Branded,No
Http://opendatacommunities.org/id/metropolitan-district-council/leeds,Leeds City Council,31/08/2019,Adults and Health,Public Health,Supplies and Services,Operational Materials,205,09/08/2019,1908-17128,0.00,294.00,R,Pasante Healthcare Limited,No
Http://opendatacommunities.org/id/metropolitan-district-council/leeds,Leeds City Council,31/08/2019,Adults and Health,Public Health,Supplies and Services,Operational Materials,205,09/08/2019,1908-17129,0.00,87.50,R,Pasante Healthcare Limited,No
Http://opendatacommunities.org/id/metropolitan-district-council/leeds,Leeds City Council,31/08/2019,Adults and Health,Public Health,Third Party Payments,Public Health Commissioned Services,526,08/08/2019,1908-17270,0.00,240.00,R,Penn & Partners,No
Http://opendatacommunities.org/id/metropolitan-district-council/leeds,Leeds City Council,31/08/2019,Adults and Health,Public Health,Third Party Payments,Public Health Commissioned Services,526,23/08/2019,1908-17644,0.00,101.00,R,Plymouth Hospitals Nhs Trust,No
Http://opendatacommunities.org/id/metropolitan-district-council/leeds,Leeds City Council,31/08/2019,Adults and Health,Public Health,Third Party Payments,Public Health Commissioned Services,526,01/08/2019,1908-17811,0.00,116.20,R,Preventx Limited,No
Http://opendatacommunities.org/id/metropolitan-district-council/leeds,Leeds City Council,31/08/2019,Adults and Health,Public Health,Supplies and Services,Publication And Promotion,267,23/08/2019,1908-18455,0.00,1100.00,R,Radio Asian Fever Ltd,No
Http://opendatacommunities.org/id/metropolitan-district-council/leeds,Leeds City Council,31/08/2019,Adults and Health,Public Health,Third Party Payments,Public Health Commissioned Services,526,30/08/2019,1908-18657,0.00,134925.83,R,Reed Momenta Limited,No
Http://opendatacommunities.org/id/metropolitan-district-council/leeds,Leeds City Council,31/08/2019,Adults and Health,Public Health,Employees,Agency Staff,8,01/07/2019,1908-18779,0.00,244.13,R,Reed Specialist Recrui,Yes
Http://opendatacommunities.org/id/metropolitan-district-council/leeds,Leeds City Council,31/08/2019,Adults and Health,Public Health,Employees,Agency Staff,8,01/07/2019,1908-18788,0.00,255.98,R,Reed Specialist Recrui,Yes
Http://opendatacommunities.org/id/metropolitan-district-council/leeds,Leeds City Council,31/08/2019,Adults and Health,Public Health,Employees,Agency Staff,8,08/07/2019,1908-19071,0.00,324.24,R,Reed Specialist Recrui,Yes
Http://opendatacommunities.org/id/metropolitan-district-council/leeds,Leeds City Council,31/08/2019,Adults and Health,Public Health,Employees,Agency Staff,8,08/07/2019,1908-19184,0.00,255.98,R,Reed Specialist Recrui,Yes
Http://opendatacommunities.org/id/metropolitan-district-council/leeds,Leeds City Council,31/08/2019,Adults and Health,Public Health,Employees,Agency Staff,8,15/07/2019,1908-19294,0.00,255.98,R,Reed Specialist Recrui,Yes
Http://opendatacommunities.org/id/metropolitan-district-council/leeds,Leeds City Council,31/08/2019,Adults and Health,Public Health,Employees,Agency Staff,8,15/07/2019,1908-19368,0.00,324.24,R,Reed Specialist Recrui,Yes
Http://opendatacommunities.org/id/metropolitan-district-council/leeds,Leeds City Council,31/08/2019,Adults and Health,Public Health,Employees,Agency Staff,8,22/07/2019,1908-19580,0.00,324.24,R,Reed Specialist Recrui,Yes
Http://opendatacommunities.org/id/metropolitan-district-council/leeds,Leeds City Council,31/08/2019,Adults and Health,Public Health,Employees,Agency Staff,8,22/07/2019,1908-19606,0.00,255.98,R,Reed Specialist Recrui,Yes
Http://opendatacommunities.org/id/metropolitan-district-council/leeds,Leeds City Council,31/08/2019,Adults and Health,Public Health,Employees,Agency Staff,8,29/07/2019,1908-19737,0.00,261.71,R,Reed Specialist Recrui,Yes
Http://opendatacommunities.org/id/metropolitan-district-council/leeds,Leeds City Council,31/08/2019,Adults and Health,Public Health,Employees,Agency Staff,8,29/07/2019,1908-19920,0.00,324.24,R,Reed Specialist Recrui,Yes
Http://opendatacommunities.org/id/metropolitan-district-council/leeds,Leeds City Council,31/08/2019,Adults and Health,Public Health,Employees,Agency Staff,8,29/07/2019,1908-19961,0.00,87.24,R,Reed Specialist Recrui,Yes
Http://opendatacommunities.org/id/metropolitan-district-council/leeds,Leeds City Council,31/08/2019,Adults and Health,Public Health,Third Party Payments,Public Health Commissioned Services,526,08/08/2019,1908-20735,0.00,340.00,R,Robin Lane Practice,No
Http://opendatacommunities.org/id/metropolitan-district-council/leeds,Leeds City Council,31/08/2019,Adults and Health,Public Health,Third Party Payments,Public Health Commissioned Services,526,22/08/2019,1908-20905,0.00,77.00,R,Roundhay Road Surgery,No
Http://opendatacommunities.org/id/metropolitan-district-council/leeds,Leeds City Council,31/08/2019,Adults and Health,Public Health,Third Party Payments,Public Health Commissioned Services,526,28/08/2019,1908-20913,0.00,262.00,R,Royal Berkshire  Nhs Foundation Trust,No
Http://opendatacommunities.org/id/metropolitan-district-council/leeds,Leeds City Council,31/08/2019,Adults and Health,Public Health,Third Party Payments,Public Health Commissioned Services,526,14/08/2019,1908-20916,0.00,402.00,R,Royal Liverpool & Broadgreen University,No
Http://opendatacommunities.org/id/metropolitan-district-council/leeds,Leeds City Council,31/08/2019,Adults and Health,Public Health,Third Party Payments,Public Health Commissioned Services,526,30/08/2019,1908-20917,0.00,137.00,R,Royal Liverpool & Broadgreen University,No
Http://opendatacommunities.org/id/metropolitan-district-council/leeds,Leeds City Council,31/08/2019,Adults and Health,Public Health,Third Party Payments,Public Health Commissioned Services,526,22/08/2019,1908-21315,0.00,84.00,R,S Laybourn & Partners,No
Http://opendatacommunities.org/id/metropolitan-district-council/leeds,Leeds City Council,31/08/2019,Adults and Health,Public Health,Third Party Payments,Public Health Commissioned Services,526,22/08/2019,1908-22021,0.00,91.00,R,Shakespeare Medical Centre,No
Http://opendatacommunities.org/id/metropolitan-district-council/leeds,Leeds City Council,31/08/2019,Adults and Health,Public Health,Third Party Payments,Public Health Commissioned Services,526,14/08/2019,1908-22054,0.00,131.00,R,Sheffield Teaching Hospitals Nhs,No
Http://opendatacommunities.org/id/metropolitan-district-council/leeds,Leeds City Council,31/08/2019,Adults and Health,Public Health,Third Party Payments,Public Health Commissioned Services,526,23/08/2019,1908-22055,0.00,487.00,R,Sheffield Teaching Hospitals Nhs,No
Http://opendatacommunities.org/id/metropolitan-district-council/leeds,Leeds City Council,31/08/2019,Adults and Health,Public Health,Third Party Payments,Public Health Commissioned Services,526,23/08/2019,1908-22056,0.00,-131.00,R,Sheffield Teaching Hospitals Nhs,No
Http://opendatacommunities.org/id/metropolitan-district-council/leeds,Leeds City Council,31/08/2019,Adults and Health,Public Health,Third Party Payments,Public Health Commissioned Services,526,28/08/2019,1908-22057,0.00,359.00,R,Sheffield Teaching Hospitals Nhs,No
Http://opendatacommunities.org/id/metropolitan-district-council/leeds,Leeds City Council,31/08/2019,Adults and Health,Public Health,Third Party Payments,Public Health Commissioned Services,526,14/08/2019,1908-22067,0.00,-17.50,R,Sherwood Forest Hospitals Nhs Foundation,No
Http://opendatacommunities.org/id/metropolitan-district-council/leeds,Leeds City Council,31/08/2019,Adults and Health,Public Health,Third Party Payments,Public Health Commissioned Services,526,14/08/2019,1908-22068,0.00,145.50,R,Sherwood Forest Hospitals Nhs Foundation,No
Http://opendatacommunities.org/id/metropolitan-district-council/leeds,Leeds City Council,31/08/2019,Adults and Health,Public Health,Third Party Payments,Public Health Commissioned Services,526,14/08/2019,1908-22408,0.00,272.00,R,Somerset Partnership Nhs Ft,No
Http://opendatacommunities.org/id/metropolitan-district-council/leeds,Leeds City Council,31/08/2019,Adults and Health,Public Health,Supplies and Services,Teaching Materials,202,12/07/2019,1908-22527,0.00,114.00,R,Sp * Focusgamesltd,Yes
Http://opendatacommunities.org/id/metropolitan-district-council/leeds,Leeds City Council,31/08/2019,Adults and Health,Public Health,Supplies and Services,Postages,212,12/07/2019,1908-22528,0.00,10.56,R,Sp * Focusgamesltd,Yes
Http://opendatacommunities.org/id/metropolitan-district-council/leeds,Leeds City Council,31/08/2019,Adults and Health,Public Health,Third Party Payments,Public Health Commissioned Services,526,23/08/2019,1908-22593,0.00,99.00,R,Spectrum Community Health,No
Http://opendatacommunities.org/id/metropolitan-district-council/leeds,Leeds City Council,31/08/2019,Adults and Health,Public Health,Third Party Payments,Public Health Commissioned Services,526,23/08/2019,1908-22594,0.00,5584.00,R,Spectrum Community Health,No
Http://opendatacommunities.org/id/metropolitan-district-council/leeds,Leeds City Council,31/08/2019,Adults and Health,Public Health,Third Party Payments,Services Rendered By Voluntary Sector,505,29/08/2019,1908-22765,0.00,22162.25,R,St Annes Community Services,No
Http://opendatacommunities.org/id/metropolitan-district-council/leeds,Leeds City Council,31/08/2019,Adults and Health,Public Health,Premises,Hire of meeting rooms,143,30/08/2019,1908-22789,0.00,299.00,R,St Gemmas Hospice,No
Http://opendatacommunities.org/id/metropolitan-district-council/leeds,Leeds City Council,31/08/2019,Adults and Health,Public Health,Third Party Payments,Public Health Commissioned Services,526,08/08/2019,1908-22813,0.00,76.00,R,St Martins Practice,No
Http://opendatacommunities.org/id/metropolitan-district-council/leeds,Leeds City Council,31/08/2019,Adults and Health,Public Health,Third Party Payments,Public Health Commissioned Services,526,22/08/2019,1908-23864,0.00,14.00,R,The Garden Surgery,No
Http://opendatacommunities.org/id/metropolitan-district-council/leeds,Leeds City Council,31/08/2019,Adults and Health,Public Health,Premises,Hire of meeting rooms,143,23/08/2019,1908-23942,0.00,400.00,R,The Osmondthorpe Hub,No
Http://opendatacommunities.org/id/metropolitan-district-council/leeds,Leeds City Council,31/08/2019,Adults and Health,Public Health,Third Party Payments,Public Health Commissioned Services,526,08/08/2019,1908-23946,0.00,140.00,R,The Partners Of Hillfoot Surgery,No
Http://opendatacommunities.org/id/metropolitan-district-council/leeds,Leeds City Council,31/08/2019,Adults and Health,Public Health,Third Party Payments,Public Health Commissioned Services,526,22/08/2019,1908-23957,0.00,63.00,R,The Practice Harehills Surgery,No
Http://opendatacommunities.org/id/metropolitan-district-council/leeds,Leeds City Council,31/08/2019,Adults and Health,Public Health,Third Party Payments,Public Health Commissioned Services,526,22/08/2019,1908-23958,0.00,7.00,R,The Practice Surgeries Ltd,No
Http://opendatacommunities.org/id/metropolitan-district-council/leeds,Leeds City Council,31/08/2019,Adults and Health,Public Health,Third Party Payments,Public Health Commissioned Services,526,08/08/2019,1908-24041,0.00,8.00,R,The Whitefield Practice,No
Http://opendatacommunities.org/id/metropolitan-district-council/leeds,Leeds City Council,31/08/2019,Adults and Health,Public Health,Supplies and Services,Childcare Vouchers Service Charge,258,12/08/2019,1908-25305,0.00,1.56,R,Various - Total Expenses,No
Http://opendatacommunities.org/id/metropolitan-district-council/leeds,Leeds City Council,31/08/2019,Adults and Health,Public Health,Transport,Public Transport Expenses,310,12/08/2019,1908-25306,0.00,10.63,R,Various - Total Expenses,No
Http://opendatacommunities.org/id/metropolitan-district-council/leeds,Leeds City Council,31/08/2019,Adults and Health,Public Health,Transport,Car & Motorcycle Allowances,311,12/08/2019,1908-25307,0.00,96.98,R,Various - Total Expenses,No
Http://opendatacommunities.org/id/metropolitan-district-council/leeds,Leeds City Council,31/08/2019,Adults and Health,Public Health,Transport,Car Parking Fees,312,12/08/2019,1908-25308,0.00,46.00,R,Various - Total Expenses,No
Http://opendatacommunities.org/id/metropolitan-district-council/leeds,Leeds City Council,31/08/2019,Adults and Health,Public Health,Transport,Car & Motorcycle Allowances,311,19/08/2019,1908-25498,0.00,190.77,R,Various - Total Expenses,No
Http://opendatacommunities.org/id/metropolitan-district-council/leeds,Leeds City Council,31/08/2019,Adults and Health,Public Health,Transport,Car Parking Fees,312,19/08/2019,1908-25499,0.00,147.18,R,Various - Total Expenses,No
Http://opendatacommunities.org/id/metropolitan-district-council/leeds,Leeds City Council,31/08/2019,Adults and Health,Public Health,Third Party Payments,Public Health Commissioned Services,526,16/08/2019,1908-25571,0.00,131.00,R,Virgin Care Services Limited,No
Http://opendatacommunities.org/id/metropolitan-district-council/leeds,Leeds City Council,31/08/2019,Adults and Health,Public Health,Employees,Best Value Training,70,11/07/2019,1908-26052,0.00,100.00,R,Waterstones,Yes
Http://opendatacommunities.org/id/metropolitan-district-council/leeds,Leeds City Council,31/08/2019,Adults and Health,Public Health,Third Party Payments,Public Health Commissioned Services,526,22/08/2019,1908-26113,0.00,8.00,R,Well,No
Http://opendatacommunities.org/id/metropolitan-district-council/leeds,Leeds City Council,31/08/2019,Adults and Health,Public Health,Third Party Payments,Public Health Commissioned Services,526,19/08/2019,1908-26173,0.00,28.26,R,Western Sussex Hospitals Nhs Foundation,No
Http://opendatacommunities.org/id/metropolitan-district-council/leeds,Leeds City Council,31/08/2019,Adults and Health,Public Health,Third Party Payments,Public Health Commissioned Services,526,08/08/2019,1908-26177,0.00,16.00,R,Westfield Medical Centre,No
Http://opendatacommunities.org/id/metropolitan-district-council/leeds,Leeds City Council,31/08/2019,Adults and Health,Public Health,Third Party Payments,Public Health Commissioned Services,526,29/08/2019,1908-26181,0.00,133.00,R,Weston Area Health Trust,No
Http://opendatacommunities.org/id/metropolitan-district-council/leeds,Leeds City Council,31/08/2019,Adults and Health,Public Health,Third Party Payments,Public Health Commissioned Services,526,08/08/2019,1908-26235,0.00,168.00,R,Whitehall Surgery,No
Http://opendatacommunities.org/id/metropolitan-district-council/leeds,Leeds City Council,31/08/2019,Adults and Health,Public Health,Third Party Payments,Services Rendered By Voluntary Sector,505,23/08/2019,1908-26679,0.00,3385.00,R,Womens Health Matters,No
Http://opendatacommunities.org/id/metropolitan-district-council/leeds,Leeds City Council,31/08/2019,Adults and Health,Public Health,Third Party Payments,Services Rendered By Voluntary Sector,505,23/08/2019,1908-26680,0.00,14400.00,R,Womens Health Matters,No
Http://opendatacommunities.org/id/metropolitan-district-council/leeds,Leeds City Council,31/08/2019,Adults and Health,Public Health,Third Party Payments,Public Health Commissioned Services,526,08/08/2019,1908-26690,0.00,28.00,R,Woodhouse Medical Practice,No
Http://opendatacommunities.org/id/metropolitan-district-council/leeds,Leeds City Council,31/08/2019,Adults and Health,Public Health,Employees,Best Value Training,70,17/07/2019,1908-27098,0.00,90.00,R,Www.Tenpin.Co.Uk,Yes
Http://opendatacommunities.org/id/metropolitan-district-council/leeds,Leeds City Council,31/08/2019,Adults and Health,Public Health,Third Party Payments,Public Health Commissioned Services,526,16/08/2019,1908-27242,0.00,42.00,R,Xerox (Uk) Ltd,No
Http://opendatacommunities.org/id/metropolitan-district-council/leeds,Leeds City Council,31/08/2019,Adults and Health,Public Health,Third Party Payments,Public Health Commissioned Services,526,27/08/2019,1908-27352,0.00,-202.00,R,York Teaching Hospital Nhs Ft,No
Http://opendatacommunities.org/id/metropolitan-district-council/leeds,Leeds City Council,31/08/2019,Adults and Health,Public Health,Third Party Payments,Public Health Commissioned Services,526,27/08/2019,1908-27353,0.00,-303.00,R,York Teaching Hospital Nhs Ft,No
Http://opendatacommunities.org/id/metropolitan-district-council/leeds,Leeds City Council,31/08/2019,Adults and Health,Public Health,Third Party Payments,Public Health Commissioned Services,526,27/08/2019,1908-27354,0.00,-128.00,R,York Teaching Hospital Nhs Ft,No
Http://opendatacommunities.org/id/metropolitan-district-council/leeds,Leeds City Council,31/08/2019,Adults and Health,Public Health,Third Party Payments,Public Health Commissioned Services,526,27/08/2019,1908-27355,0.00,-101.00,R,York Teaching Hospital Nhs Ft,No
Http://opendatacommunities.org/id/metropolitan-district-council/leeds,Leeds City Council,31/08/2019,Adults and Health,Public Health,Third Party Payments,Public Health Commissioned Services,526,27/08/2019,1908-27356,0.00,7477.00,R,York Teaching Hospital Nhs Ft,No
Http://opendatacommunities.org/id/metropolitan-district-council/leeds,Leeds City Council,31/08/2019,Adults and Health,Public Health,Third Party Payments,Public Health Commissioned Services,526,30/08/2019,1908-27357,0.00,5901.00,R,York Teaching Hospital Nhs Ft,No
Http://opendatacommunities.org/id/metropolitan-district-council/leeds,Leeds City Council,31/08/2019,Adults and Health,Public Health,Third Party Payments,Services Rendered By Voluntary Sector,505,14/08/2019,1908-27428,0.00,40400.00,R,Yorkshire Mesmac,No
Http://opendatacommunities.org/id/metropolitan-district-council/leeds,Leeds City Council,31/08/2019,Adults and Health,Public Health,Supplies and Services,Food & Drink,231,26/07/2019,1908-27473,0.00,10.69,R,Yorkshire Purchasing O,Yes
Http://opendatacommunities.org/id/metropolitan-district-council/leeds,Leeds City Council,31/08/2019,Adults and Health,Service Strategy,Supplies and Services,Publication And Promotion,267,09/07/2019,1908-01664,0.00,25.40,R,Amznmktplace Amazon.Co.Uk,Yes
Http://opendatacommunities.org/id/metropolitan-district-council/leeds,Leeds City Council,31/08/2019,Adults and Health,Service Strategy,Supplies and Services,Other Hired And Contracted Services,265,22/08/2019,1908-04254,0.00,1000.00,R,REDACTED PERSONAL DATA,No
Http://opendatacommunities.org/id/metropolitan-district-council/leeds,Leeds City Council,31/08/2019,Adults and Health,Service Strategy,Supplies and Services,Subsistence,256,23/07/2019,1908-05169,0.00,125.00,R,Cedar Court Wakefield,Yes
Http://opendatacommunities.org/id/metropolitan-district-council/leeds,Leeds City Council,31/08/2019,Adults and Health,Service Strategy,Supplies and Services,Consultancy Services,259,02/08/2019,1908-05584,0.00,600.00,R,Clgdottv Limited,No
Http://opendatacommunities.org/id/metropolitan-district-council/leeds,Leeds City Council,31/08/2019,Adults and Health,Service Strategy,Supplies and Services,Publication And Promotion,267,08/07/2019,1908-08482,0.00,477.00,R,Flexiform/asgard,Yes
Http://opendatacommunities.org/id/metropolitan-district-council/leeds,Leeds City Council,31/08/2019,Adults and Health,Service Strategy,Supplies and Services,Other Hired And Contracted Services,265,29/08/2019,1908-11575,0.00,1188.00,R,REDACTED PERSONAL DATA,No
Http://opendatacommunities.org/id/metropolitan-district-council/leeds,Leeds City Council,31/08/2019,Adults and Health,Service Strategy,Supplies and Services,Publication And Promotion,267,01/07/2019,1908-17714,0.00,825.25,R,Posturite Ltd,Yes
Http://opendatacommunities.org/id/metropolitan-district-council/leeds,Leeds City Council,31/08/2019,Adults and Health,Service Strategy,Supplies and Services,Operational Furniture And Equipment,203,29/07/2019,1908-17719,0.00,137.95,R,Posturite Ltd,Yes
Http://opendatacommunities.org/id/metropolitan-district-council/leeds,Leeds City Council,31/08/2019,Adults and Health,Service Strategy,Supplies and Services,Other Hired And Contracted Services,265,21/08/2019,1908-20948,0.00,593.75,R,Rrc (Rrconsultancy) Ltd,No
Http://opendatacommunities.org/id/metropolitan-district-council/leeds,Leeds City Council,31/08/2019,Adults and Health,Service Strategy,Supplies and Services,Consultancy Services,259,23/08/2019,1908-23930,0.00,2983.33,R,The Met Hotel Leeds Limited,No
Http://opendatacommunities.org/id/metropolitan-district-council/leeds,Leeds City Council,31/08/2019,Adults and Health,Service Strategy,Supplies and Services,Consultancy Services,259,23/08/2019,1908-23931,0.00,1765.83,R,The Met Hotel Leeds Limited,No
Http://opendatacommunities.org/id/metropolitan-district-council/leeds,Leeds City Council,31/08/2019,Adults and Health,Service Strategy,Supplies and Services,Childcare Vouchers Service Charge,258,12/08/2019,1908-25309,0.00,0.11,R,Various - Total Expenses,No
Http://opendatacommunities.org/id/metropolitan-district-council/leeds,Leeds City Council,31/08/2019,Adults and Health,Service Strategy,Transport,Public Transport Expenses,310,12/08/2019,1908-25310,0.00,159.92,R,Various - Total Expenses,No
Http://opendatacommunities.org/id/metropolitan-district-council/leeds,Leeds City Council,31/08/2019,Adults and Health,Service Strategy,Transport,Car & Motorcycle Allowances,311,12/08/2019,1908-25311,0.00,1031.51,R,Various - Total Expenses,No
Http://opendatacommunities.org/id/metropolitan-district-council/leeds,Leeds City Council,31/08/2019,Adults and Health,Service Strategy,Transport,Car Parking Fees,312,12/08/2019,1908-25312,0.00,11.66,R,Various - Total Expenses,No
Http://opendatacommunities.org/id/metropolitan-district-council/leeds,Leeds City Council,31/08/2019,Adults and Health,Service Strategy,Supplies and Services,Conference Meetings,253,22/07/2019,1908-26807,0.00,499.00,R,Www.Adass.Org.Uk,Yes
Http://opendatacommunities.org/id/metropolitan-district-council/leeds,Leeds City Council,31/08/2019,Adults and Health,Service Strategy,Supplies and Services,Publication And Promotion,267,01/07/2019,1908-26979,0.00,25.00,R,Www.Microlinkpc.Co,Yes
Http://opendatacommunities.org/id/metropolitan-district-council/leeds,Leeds City Council,31/08/2019,Adults and Health,Service Strategy,Supplies and Services,Publication And Promotion,267,09/07/2019,1908-26988,0.00,78.55,R,Www.Microlinkpc.Co,Yes
Http://opendatacommunities.org/id/metropolitan-district-council/leeds,Leeds City Council,31/08/2019,Adults and Health,Services For Adults Under 65 Learn/Dis,Supplies and Services,Office Furniture & Equipment,201,29/07/2019,1908-01156,0.00,5.86,R,Amazon.Co.Uk*mh8pi9xo4 Am,Yes
Http://opendatacommunities.org/id/metropolitan-district-council/leeds,Leeds City Council,31/08/2019,Adults and Health,Services For Adults Under 65 Learn/Dis,Supplies and Services,Office Furniture & Equipment,201,15/07/2019,1908-01449,0.00,17.88,R,Amznmktplace,Yes
Http://opendatacommunities.org/id/metropolitan-district-council/leeds,Leeds City Council,31/08/2019,Adults and Health,Services For Adults Under 65 Learn/Dis,Supplies and Services,Office Furniture & Equipment,201,16/07/2019,1908-01464,0.00,16.23,R,Amznmktplace,Yes
Http://opendatacommunities.org/id/metropolitan-district-council/leeds,Leeds City Council,31/08/2019,Adults and Health,Services For Adults Under 65 Learn/Dis,Supplies and Services,Office Furniture & Equipment,201,18/07/2019,1908-01481,0.00,4.16,R,Amznmktplace,Yes
Http://opendatacommunities.org/id/metropolitan-district-council/leeds,Leeds City Council,31/08/2019,Adults and Health,Services For Adults Under 65 Learn/Dis,Premises,Removal Of Workplace Waste,126,28/06/2019,1908-02949,0.00,24.43,R,Associated Waste Manag,Yes
Http://opendatacommunities.org/id/metropolitan-district-council/leeds,Leeds City Council,31/08/2019,Adults and Health,Services For Adults Under 65 Learn/Dis,Supplies and Services,Office Furniture & Equipment,201,16/07/2019,1908-08419,0.00,439.00,R,Flexiform Business Furni,Yes
Http://opendatacommunities.org/id/metropolitan-district-council/leeds,Leeds City Council,31/08/2019,Adults and Health,Services For Adults Under 65 Learn/Dis,Third Party Payments,Payments To Voluntary Organisations,561,09/08/2019,1908-10118,0.00,43750.00,R,Health For All (Leeds),No
Http://opendatacommunities.org/id/metropolitan-district-council/leeds,Leeds City Council,31/08/2019,Adults and Health,Services For Adults Under 65 Learn/Dis,Employees,Training & Development,70,23/08/2019,1908-12780,0.00,250.00,R,Leeds And York Partnership Nhs Ft,No
Http://opendatacommunities.org/id/metropolitan-district-council/leeds,Leeds City Council,31/08/2019,Adults and Health,Services For Adults Under 65 Learn/Dis,Supplies and Services,PFI Unitary Charges,278,30/08/2019,1908-13006,0.00,483377.74,R,Leeds Independent Living Accommodation,No
Http://opendatacommunities.org/id/metropolitan-district-council/leeds,Leeds City Council,31/08/2019,Adults and Health,Services For Adults Under 65 Learn/Dis,Third Party Payments,Payments To Voluntary Organisations,561,01/08/2019,1908-13132,0.00,2177.75,R,Leep1,No
Http://opendatacommunities.org/id/metropolitan-district-council/leeds,Leeds City Council,31/08/2019,Adults and Health,Services For Adults Under 65 Learn/Dis,Third Party Payments,Payments To Voluntary Organisations,561,23/08/2019,1908-18272,0.00,5199.66,R,Pyramid Of Arts,No
Http://opendatacommunities.org/id/metropolitan-district-council/leeds,Leeds City Council,31/08/2019,Adults and Health,Services For Adults Under 65 Learn/Dis,Employees,Agency Staff,8,01/07/2019,1908-18665,0.00,638.97,R,Reed Specialist Recrui,Yes
Http://opendatacommunities.org/id/metropolitan-district-council/leeds,Leeds City Council,31/08/2019,Adults and Health,Services For Adults Under 65 Learn/Dis,Employees,Agency Staff,8,01/07/2019,1908-18681,0.00,470.91,R,Reed Specialist Recrui,Yes
Http://opendatacommunities.org/id/metropolitan-district-council/leeds,Leeds City Council,31/08/2019,Adults and Health,Services For Adults Under 65 Learn/Dis,Employees,Agency Staff,8,01/07/2019,1908-18807,0.00,15.75,R,Reed Specialist Recrui,Yes
Http://opendatacommunities.org/id/metropolitan-district-council/leeds,Leeds City Council,31/08/2019,Adults and Health,Services For Adults Under 65 Learn/Dis,Employees,Agency Staff,8,01/07/2019,1908-18812,0.00,863.45,R,Reed Specialist Recrui,Yes
Http://opendatacommunities.org/id/metropolitan-district-council/leeds,Leeds City Council,31/08/2019,Adults and Health,Services For Adults Under 65 Learn/Dis,Employees,Agency Staff,8,01/07/2019,1908-18847,0.00,757.76,R,Reed Specialist Recrui,Yes
Http://opendatacommunities.org/id/metropolitan-district-council/leeds,Leeds City Council,31/08/2019,Adults and Health,Services For Adults Under 65 Learn/Dis,Employees,Agency Staff,8,01/07/2019,1908-18863,0.00,943.80,R,Reed Specialist Recrui,Yes
Http://opendatacommunities.org/id/metropolitan-district-council/leeds,Leeds City Council,31/08/2019,Adults and Health,Services For Adults Under 65 Learn/Dis,Employees,Agency Staff,8,01/07/2019,1908-18883,0.00,88.96,R,Reed Specialist Recrui,Yes
Http://opendatacommunities.org/id/metropolitan-district-council/leeds,Leeds City Council,31/08/2019,Adults and Health,Services For Adults Under 65 Learn/Dis,Employees,Agency Staff,8,01/07/2019,1908-18896,0.00,485.54,R,Reed Specialist Recrui,Yes
Http://opendatacommunities.org/id/metropolitan-district-council/leeds,Leeds City Council,31/08/2019,Adults and Health,Services For Adults Under 65 Learn/Dis,Employees,Agency Staff,8,01/07/2019,1908-18918,0.00,611.92,R,Reed Specialist Recrui,Yes
Http://opendatacommunities.org/id/metropolitan-district-council/leeds,Leeds City Council,31/08/2019,Adults and Health,Services For Adults Under 65 Learn/Dis,Employees,Agency Staff,8,08/07/2019,1908-18976,0.00,1274.51,R,Reed Specialist Recrui,Yes
Http://opendatacommunities.org/id/metropolitan-district-council/leeds,Leeds City Council,31/08/2019,Adults and Health,Services For Adults Under 65 Learn/Dis,Employees,Agency Staff,8,08/07/2019,1908-19007,0.00,943.80,R,Reed Specialist Recrui,Yes
Http://opendatacommunities.org/id/metropolitan-district-council/leeds,Leeds City Council,31/08/2019,Adults and Health,Services For Adults Under 65 Learn/Dis,Employees,Agency Staff,8,08/07/2019,1908-19044,0.00,757.76,R,Reed Specialist Recrui,Yes
Http://opendatacommunities.org/id/metropolitan-district-council/leeds,Leeds City Council,31/08/2019,Adults and Health,Services For Adults Under 65 Learn/Dis,Employees,Agency Staff,8,08/07/2019,1908-19072,0.00,470.91,R,Reed Specialist Recrui,Yes
Http://opendatacommunities.org/id/metropolitan-district-council/leeds,Leeds City Council,31/08/2019,Adults and Health,Services For Adults Under 65 Learn/Dis,Employees,Agency Staff,8,08/07/2019,1908-19087,0.00,21.15,R,Reed Specialist Recrui,Yes
Http://opendatacommunities.org/id/metropolitan-district-council/leeds,Leeds City Council,31/08/2019,Adults and Health,Services For Adults Under 65 Learn/Dis,Employees,Agency Staff,8,08/07/2019,1908-19105,0.00,611.92,R,Reed Specialist Recrui,Yes
Http://opendatacommunities.org/id/metropolitan-district-council/leeds,Leeds City Council,31/08/2019,Adults and Health,Services For Adults Under 65 Learn/Dis,Employees,Agency Staff,8,08/07/2019,1908-19125,0.00,1204.37,R,Reed Specialist Recrui,Yes
Http://opendatacommunities.org/id/metropolitan-district-council/leeds,Leeds City Council,31/08/2019,Adults and Health,Services For Adults Under 65 Learn/Dis,Employees,Agency Staff,8,08/07/2019,1908-19167,0.00,13.72,R,Reed Specialist Recrui,Yes
Http://opendatacommunities.org/id/metropolitan-district-council/leeds,Leeds City Council,31/08/2019,Adults and Health,Services For Adults Under 65 Learn/Dis,Employees,Agency Staff,8,15/07/2019,1908-19202,0.00,556.88,R,Reed Specialist Recrui,Yes
Http://opendatacommunities.org/id/metropolitan-district-council/leeds,Leeds City Council,31/08/2019,Adults and Health,Services For Adults Under 65 Learn/Dis,Employees,Agency Staff,8,15/07/2019,1908-19239,0.00,757.76,R,Reed Specialist Recrui,Yes
Http://opendatacommunities.org/id/metropolitan-district-council/leeds,Leeds City Council,31/08/2019,Adults and Health,Services For Adults Under 65 Learn/Dis,Employees,Agency Staff,8,15/07/2019,1908-19251,0.00,11.70,R,Reed Specialist Recrui,Yes
Http://opendatacommunities.org/id/metropolitan-district-council/leeds,Leeds City Council,31/08/2019,Adults and Health,Services For Adults Under 65 Learn/Dis,Employees,Agency Staff,8,15/07/2019,1908-19258,0.00,826.88,R,Reed Specialist Recrui,Yes
Http://opendatacommunities.org/id/metropolitan-district-council/leeds,Leeds City Council,31/08/2019,Adults and Health,Services For Adults Under 65 Learn/Dis,Employees,Agency Staff,8,15/07/2019,1908-19374,0.00,1325.75,R,Reed Specialist Recrui,Yes
Http://opendatacommunities.org/id/metropolitan-district-council/leeds,Leeds City Council,31/08/2019,Adults and Health,Services For Adults Under 65 Learn/Dis,Employees,Agency Staff,8,15/07/2019,1908-19410,0.00,877.97,R,Reed Specialist Recrui,Yes
Http://opendatacommunities.org/id/metropolitan-district-council/leeds,Leeds City Council,31/08/2019,Adults and Health,Services For Adults Under 65 Learn/Dis,Employees,Agency Staff,8,22/07/2019,1908-19475,0.00,7.65,R,Reed Specialist Recrui,Yes
Http://opendatacommunities.org/id/metropolitan-district-council/leeds,Leeds City Council,31/08/2019,Adults and Health,Services For Adults Under 65 Learn/Dis,Employees,Agency Staff,8,22/07/2019,1908-19518,0.00,943.80,R,Reed Specialist Recrui,Yes
Http://opendatacommunities.org/id/metropolitan-district-council/leeds,Leeds City Council,31/08/2019,Adults and Health,Services For Adults Under 65 Learn/Dis,Employees,Agency Staff,8,22/07/2019,1908-19644,0.00,538.85,R,Reed Specialist Recrui,Yes
Http://opendatacommunities.org/id/metropolitan-district-council/leeds,Leeds City Council,31/08/2019,Adults and Health,Services For Adults Under 65 Learn/Dis,Employees,Agency Staff,8,22/07/2019,1908-19658,0.00,964.72,R,Reed Specialist Recrui,Yes
Http://opendatacommunities.org/id/metropolitan-district-council/leeds,Leeds City Council,31/08/2019,Adults and Health,Services For Adults Under 65 Learn/Dis,Employees,Agency Staff,8,29/07/2019,1908-19696,0.00,757.76,R,Reed Specialist Recrui,Yes
Http://opendatacommunities.org/id/metropolitan-district-council/leeds,Leeds City Council,31/08/2019,Adults and Health,Services For Adults Under 65 Learn/Dis,Employees,Agency Staff,8,29/07/2019,1908-19697,0.00,964.72,R,Reed Specialist Recrui,Yes
Http://opendatacommunities.org/id/metropolitan-district-council/leeds,Leeds City Council,31/08/2019,Adults and Health,Services For Adults Under 65 Learn/Dis,Employees,Agency Staff,8,29/07/2019,1908-19714,0.00,621.03,R,Reed Specialist Recrui,Yes
Http://opendatacommunities.org/id/metropolitan-district-council/leeds,Leeds City Council,31/08/2019,Adults and Health,Services For Adults Under 65 Learn/Dis,Employees,Agency Staff,8,29/07/2019,1908-19761,0.00,409.87,R,Reed Specialist Recrui,Yes
Http://opendatacommunities.org/id/metropolitan-district-council/leeds,Leeds City Council,31/08/2019,Adults and Health,Services For Adults Under 65 Learn/Dis,Employees,Agency Staff,8,29/07/2019,1908-19788,0.00,943.80,R,Reed Specialist Recrui,Yes
Http://opendatacommunities.org/id/metropolitan-district-council/leeds,Leeds City Council,31/08/2019,Adults and Health,Services For Adults Under 65 Learn/Dis,Employees,Agency Staff,8,29/07/2019,1908-19789,0.00,7.65,R,Reed Specialist Recrui,Yes
Http://opendatacommunities.org/id/metropolitan-district-council/leeds,Leeds City Council,31/08/2019,Adults and Health,Services For Adults Under 65 Learn/Dis,Employees,Agency Staff,8,29/07/2019,1908-19947,0.00,7.65,R,Reed Specialist Recrui,Yes
Http://opendatacommunities.org/id/metropolitan-district-council/leeds,Leeds City Council,31/08/2019,Adults and Health,Services For Adults Under 65 Learn/Dis,Employees,Agency Staff,8,29/07/2019,1908-19979,0.00,7.20,R,Reed Specialist Recrui,Yes
Http://opendatacommunities.org/id/metropolitan-district-council/leeds,Leeds City Council,31/08/2019,Adults and Health,Services For Adults Under 65 Learn/Dis,Third Party Payments,Payments To Voluntary Organisations,561,14/08/2019,1908-20944,0.00,20000.00,R,Royal Mencap Society,No
Http://opendatacommunities.org/id/metropolitan-district-council/leeds,Leeds City Council,31/08/2019,Adults and Health,Services For Adults Under 65 Learn/Dis,Third Party Payments,Payments To Voluntary Organisations,561,14/08/2019,1908-20945,0.00,20000.00,R,Royal Mencap Society,No
Http://opendatacommunities.org/id/metropolitan-district-council/leeds,Leeds City Council,31/08/2019,Adults and Health,Services For Adults Under 65 Learn/Dis,Third Party Payments,Payments To Voluntary Organisations,561,02/08/2019,1908-22231,0.00,9250.00,R,Slate Cafe And Furniture Store,No
Http://opendatacommunities.org/id/metropolitan-district-council/leeds,Leeds City Council,31/08/2019,Adults and Health,Services For Adults Under 65 Learn/Dis,Supplies and Services,Subsistence,256,12/08/2019,1908-25313,0.00,30.70,R,Various - Total Expenses,No
Http://opendatacommunities.org/id/metropolitan-district-council/leeds,Leeds City Council,31/08/2019,Adults and Health,Services For Adults Under 65 Learn/Dis,Supplies and Services,Childcare Vouchers Service Charge,258,12/08/2019,1908-25314,0.00,1.23,R,Various - Total Expenses,No
Http://opendatacommunities.org/id/metropolitan-district-council/leeds,Leeds City Council,31/08/2019,Adults and Health,Services For Adults Under 65 Learn/Dis,Transport,Public Transport Expenses,310,12/08/2019,1908-25315,0.00,188.71,R,Various - Total Expenses,No
Http://opendatacommunities.org/id/metropolitan-district-council/leeds,Leeds City Council,31/08/2019,Adults and Health,Services For Adults Under 65 Learn/Dis,Transport,Car & Motorcycle Allowances,311,12/08/2019,1908-25316,0.00,2516.28,R,Various - Total Expenses,No
Http://opendatacommunities.org/id/metropolitan-district-council/leeds,Leeds City Council,31/08/2019,Adults and Health,Services For Adults Under 65 Learn/Dis,Transport,Car Parking Fees,312,12/08/2019,1908-25317,0.00,369.11,R,Various - Total Expenses,No
Http://opendatacommunities.org/id/metropolitan-district-council/leeds,Leeds City Council,31/08/2019,Adults and Health,Services For Adults Under 65 Learn/Dis,Transport,Essential car user  Lump Sum,318,12/08/2019,1908-25318,0.00,3771.75,R,Various - Total Expenses,No
Http://opendatacommunities.org/id/metropolitan-district-council/leeds,Leeds City Council,31/08/2019,Adults and Health,Services For Adults Under 65 Mental/Dis,Third Party Payments,Nursing Home,570,21/08/2019,1908-00208,0.00,2284.00,R,Abbey Grange Nursing Home,No
Http://opendatacommunities.org/id/metropolitan-district-council/leeds,Leeds City Council,31/08/2019,Adults and Health,Services For Adults Under 65 Mental/Dis,Third Party Payments,Fees - Level 4,520,14/08/2019,1908-00304,0.00,232.62,R,Abubaker Denja Mohammed,No
Http://opendatacommunities.org/id/metropolitan-district-council/leeds,Leeds City Council,31/08/2019,Adults and Health,Services For Adults Under 65 Mental/Dis,Third Party Payments,Fees - Level 4,520,14/08/2019,1908-00305,0.00,175.00,R,Abubaker Denja Mohammed,No
Http://opendatacommunities.org/id/metropolitan-district-council/leeds,Leeds City Council,31/08/2019,Adults and Health,Services For Adults Under 65 Mental/Dis,Third Party Payments,Fees - Level 4,520,14/08/2019,1908-00306,0.00,175.00,R,Abubaker Denja Mohammed,No
Http://opendatacommunities.org/id/metropolitan-district-council/leeds,Leeds City Council,31/08/2019,Adults and Health,Services For Adults Under 65 Mental/Dis,Third Party Payments,Fees - Level 4,520,14/08/2019,1908-00307,0.00,175.00,R,Abubaker Denja Mohammed,No
Http://opendatacommunities.org/id/metropolitan-district-council/leeds,Leeds City Council,31/08/2019,Adults and Health,Services For Adults Under 65 Mental/Dis,Third Party Payments,Fees - Level 4,520,01/08/2019,1908-00521,0.00,200.00,R,Ae Bia Assessments Limited,No
Http://opendatacommunities.org/id/metropolitan-district-council/leeds,Leeds City Council,31/08/2019,Adults and Health,Services For Adults Under 65 Mental/Dis,Third Party Payments,Fees - Level 4,520,01/08/2019,1908-00522,0.00,200.00,R,Ae Bia Assessments Limited,No
Http://opendatacommunities.org/id/metropolitan-district-council/leeds,Leeds City Council,31/08/2019,Adults and Health,Services For Adults Under 65 Mental/Dis,Third Party Payments,Fees - Level 4,520,01/08/2019,1908-00523,0.00,200.00,R,Ae Bia Assessments Limited,No
Http://opendatacommunities.org/id/metropolitan-district-council/leeds,Leeds City Council,31/08/2019,Adults and Health,Services For Adults Under 65 Mental/Dis,Third Party Payments,Fees - Level 4,520,01/08/2019,1908-00524,0.00,243.86,R,Ae Bia Assessments Limited,No
Http://opendatacommunities.org/id/metropolitan-district-council/leeds,Leeds City Council,31/08/2019,Adults and Health,Services For Adults Under 65 Mental/Dis,Third Party Payments,Fees - Level 4,520,01/08/2019,1908-00525,0.00,243.86,R,Ae Bia Assessments Limited,No
Http://opendatacommunities.org/id/metropolitan-district-council/leeds,Leeds City Council,31/08/2019,Adults and Health,Services For Adults Under 65 Mental/Dis,Third Party Payments,Fees - Level 4,520,02/08/2019,1908-00526,0.00,285.14,R,Ae Bia Assessments Limited,No
Http://opendatacommunities.org/id/metropolitan-district-council/leeds,Leeds City Council,31/08/2019,Adults and Health,Services For Adults Under 65 Mental/Dis,Third Party Payments,Fees - Level 4,520,02/08/2019,1908-00527,0.00,209.89,R,Ae Bia Assessments Limited,No
Http://opendatacommunities.org/id/metropolitan-district-council/leeds,Leeds City Council,31/08/2019,Adults and Health,Services For Adults Under 65 Mental/Dis,Third Party Payments,Fees - Level 4,520,02/08/2019,1908-00528,0.00,245.58,R,Ae Bia Assessments Limited,No
Http://opendatacommunities.org/id/metropolitan-district-council/leeds,Leeds City Council,31/08/2019,Adults and Health,Services For Adults Under 65 Mental/Dis,Third Party Payments,Fees - Level 4,520,07/08/2019,1908-00529,0.00,200.00,R,Ae Bia Assessments Limited,No
Http://opendatacommunities.org/id/metropolitan-district-council/leeds,Leeds City Council,31/08/2019,Adults and Health,Services For Adults Under 65 Mental/Dis,Third Party Payments,Fees - Level 4,520,07/08/2019,1908-00530,0.00,246.44,R,Ae Bia Assessments Limited,No
Http://opendatacommunities.org/id/metropolitan-district-council/leeds,Leeds City Council,31/08/2019,Adults and Health,Services For Adults Under 65 Mental/Dis,Third Party Payments,Fees - Level 4,520,07/08/2019,1908-00531,0.00,200.00,R,Ae Bia Assessments Limited,No
Http://opendatacommunities.org/id/metropolitan-district-council/leeds,Leeds City Council,31/08/2019,Adults and Health,Services For Adults Under 65 Mental/Dis,Third Party Payments,Fees - Level 4,520,14/08/2019,1908-00532,0.00,200.00,R,Ae Bia Assessments Limited,No
Http://opendatacommunities.org/id/metropolitan-district-council/leeds,Leeds City Council,31/08/2019,Adults and Health,Services For Adults Under 65 Mental/Dis,Third Party Payments,Fees - Level 4,520,14/08/2019,1908-00533,0.00,200.00,R,Ae Bia Assessments Limited,No
Http://opendatacommunities.org/id/metropolitan-district-council/leeds,Leeds City Council,31/08/2019,Adults and Health,Services For Adults Under 65 Mental/Dis,Third Party Payments,Fees - Level 4,520,14/08/2019,1908-00534,0.00,200.00,R,Ae Bia Assessments Limited,No
Http://opendatacommunities.org/id/metropolitan-district-council/leeds,Leeds City Council,31/08/2019,Adults and Health,Services For Adults Under 65 Mental/Dis,Third Party Payments,Fees - Level 4,520,27/08/2019,1908-00535,0.00,263.64,R,Ae Bia Assessments Limited,No
Http://opendatacommunities.org/id/metropolitan-district-council/leeds,Leeds City Council,31/08/2019,Adults and Health,Services For Adults Under 65 Mental/Dis,Third Party Payments,Fees - Level 4,520,27/08/2019,1908-00536,0.00,200.00,R,Ae Bia Assessments Limited,No
Http://opendatacommunities.org/id/metropolitan-district-council/leeds,Leeds City Council,31/08/2019,Adults and Health,Services For Adults Under 65 Mental/Dis,Third Party Payments,Fees - Level 4,520,27/08/2019,1908-00537,0.00,200.00,R,Ae Bia Assessments Limited,No
Http://opendatacommunities.org/id/metropolitan-district-council/leeds,Leeds City Council,31/08/2019,Adults and Health,Services For Adults Under 65 Mental/Dis,Third Party Payments,Fees - Level 4,520,30/08/2019,1908-00538,0.00,248.16,R,Ae Bia Assessments Limited,No
Http://opendatacommunities.org/id/metropolitan-district-council/leeds,Leeds City Council,31/08/2019,Adults and Health,Services For Adults Under 65 Mental/Dis,Third Party Payments,Fees - Level 4,520,30/08/2019,1908-00539,0.00,287.72,R,Ae Bia Assessments Limited,No
Http://opendatacommunities.org/id/metropolitan-district-council/leeds,Leeds City Council,31/08/2019,Adults and Health,Services For Adults Under 65 Mental/Dis,Third Party Payments,Home Care,568,21/08/2019,1908-00540,0.00,838.80,R,Aegis Care Solutions Ltd,No
Http://opendatacommunities.org/id/metropolitan-district-council/leeds,Leeds City Council,31/08/2019,Adults and Health,Services For Adults Under 65 Mental/Dis,Third Party Payments,Home Care,568,02/08/2019,1908-00542,0.00,511.36,R,Affinity Trust,No
Http://opendatacommunities.org/id/metropolitan-district-council/leeds,Leeds City Council,31/08/2019,Adults and Health,Services For Adults Under 65 Mental/Dis,Third Party Payments,Home Care,568,23/08/2019,1908-00561,0.00,527.34,R,Affinity Trust,No
Http://opendatacommunities.org/id/metropolitan-district-council/leeds,Leeds City Council,31/08/2019,Adults and Health,Services For Adults Under 65 Mental/Dis,Third Party Payments,Services Provided By Other NHS Bodies,522,07/08/2019,1908-00670,0.00,239.50,R,Ait Mitra Limited,No
Http://opendatacommunities.org/id/metropolitan-district-council/leeds,Leeds City Council,31/08/2019,Adults and Health,Services For Adults Under 65 Mental/Dis,Third Party Payments,Services Provided By Other NHS Bodies,522,07/08/2019,1908-00671,0.00,175.00,R,Ait Mitra Limited,No
Http://opendatacommunities.org/id/metropolitan-district-council/leeds,Leeds City Council,31/08/2019,Adults and Health,Services For Adults Under 65 Mental/Dis,Third Party Payments,Services Provided By Other NHS Bodies,522,07/08/2019,1908-00672,0.00,175.00,R,Ait Mitra Limited,No
Http://opendatacommunities.org/id/metropolitan-district-council/leeds,Leeds City Council,31/08/2019,Adults and Health,Services For Adults Under 65 Mental/Dis,Third Party Payments,Services Provided By Other NHS Bodies,522,07/08/2019,1908-00673,0.00,175.00,R,Ait Mitra Limited,No
Http://opendatacommunities.org/id/metropolitan-district-council/leeds,Leeds City Council,31/08/2019,Adults and Health,Services For Adults Under 65 Mental/Dis,Third Party Payments,Services Provided By Other NHS Bodies,522,07/08/2019,1908-00674,0.00,175.00,R,Ait Mitra Limited,No
Http://opendatacommunities.org/id/metropolitan-district-council/leeds,Leeds City Council,31/08/2019,Adults and Health,Services For Adults Under 65 Mental/Dis,Third Party Payments,Services Provided By Other NHS Bodies,522,07/08/2019,1908-00675,0.00,175.00,R,Ait Mitra Limited,No
Http://opendatacommunities.org/id/metropolitan-district-council/leeds,Leeds City Council,31/08/2019,Adults and Health,Services For Adults Under 65 Mental/Dis,Third Party Payments,Services Provided By Other NHS Bodies,522,07/08/2019,1908-00676,0.00,175.00,R,Ait Mitra Limited,No
Http://opendatacommunities.org/id/metropolitan-district-council/leeds,Leeds City Council,31/08/2019,Adults and Health,Services For Adults Under 65 Mental/Dis,Third Party Payments,Services Provided By Other NHS Bodies,522,28/08/2019,1908-00677,0.00,239.50,R,Ait Mitra Limited,No
Http://opendatacommunities.org/id/metropolitan-district-council/leeds,Leeds City Council,31/08/2019,Adults and Health,Services For Adults Under 65 Mental/Dis,Third Party Payments,Services Provided By Other NHS Bodies,522,28/08/2019,1908-00678,0.00,175.00,R,Ait Mitra Limited,No
Http://opendatacommunities.org/id/metropolitan-district-council/leeds,Leeds City Council,31/08/2019,Adults and Health,Services For Adults Under 65 Mental/Dis,Third Party Payments,Services Provided By Other NHS Bodies,522,28/08/2019,1908-00679,0.00,175.00,R,Ait Mitra Limited,No
Http://opendatacommunities.org/id/metropolitan-district-council/leeds,Leeds City Council,31/08/2019,Adults and Health,Services For Adults Under 65 Mental/Dis,Third Party Payments,Services Provided By Other NHS Bodies,522,28/08/2019,1908-00680,0.00,175.00,R,Ait Mitra Limited,No
Http://opendatacommunities.org/id/metropolitan-district-council/leeds,Leeds City Council,31/08/2019,Adults and Health,Services For Adults Under 65 Mental/Dis,Third Party Payments,Services Provided By Other NHS Bodies,522,28/08/2019,1908-00681,0.00,175.00,R,Ait Mitra Limited,No
Http://opendatacommunities.org/id/metropolitan-district-council/leeds,Leeds City Council,31/08/2019,Adults and Health,Services For Adults Under 65 Mental/Dis,Third Party Payments,Services Provided By Other NHS Bodies,522,28/08/2019,1908-00682,0.00,175.00,R,Ait Mitra Limited,No
Http://opendatacommunities.org/id/metropolitan-district-council/leeds,Leeds City Council,31/08/2019,Adults and Health,Services For Adults Under 65 Mental/Dis,Third Party Payments,Services Provided By Other NHS Bodies,522,28/08/2019,1908-00683,0.00,175.00,R,Ait Mitra Limited,No
Http://opendatacommunities.org/id/metropolitan-district-council/leeds,Leeds City Council,31/08/2019,Adults and Health,Services For Adults Under 65 Mental/Dis,Third Party Payments,Services Provided By Other NHS Bodies,522,28/08/2019,1908-00684,0.00,175.00,R,Ait Mitra Limited,No
Http://opendatacommunities.org/id/metropolitan-district-council/leeds,Leeds City Council,31/08/2019,Adults and Health,Services For Adults Under 65 Mental/Dis,Third Party Payments,Services Provided By Other NHS Bodies,522,28/08/2019,1908-00685,0.00,175.00,R,Ait Mitra Limited,No
Http://opendatacommunities.org/id/metropolitan-district-council/leeds,Leeds City Council,31/08/2019,Adults and Health,Services For Adults Under 65 Mental/Dis,Third Party Payments,Services Provided By Other NHS Bodies,522,28/08/2019,1908-00686,0.00,175.00,R,Ait Mitra Limited,No
Http://opendatacommunities.org/id/metropolitan-district-council/leeds,Leeds City Council,31/08/2019,Adults and Health,Services For Adults Under 65 Mental/Dis,Third Party Payments,Services Provided By Other NHS Bodies,522,28/08/2019,1908-00687,0.00,175.00,R,Ait Mitra Limited,No
Http://opendatacommunities.org/id/metropolitan-district-council/leeds,Leeds City Council,31/08/2019,Adults and Health,Services For Adults Under 65 Mental/Dis,Third Party Payments,Services Provided By Other NHS Bodies,522,28/08/2019,1908-00688,0.00,175.00,R,Ait Mitra Limited,No
Http://opendatacommunities.org/id/metropolitan-district-council/leeds,Leeds City Council,31/08/2019,Adults and Health,Services For Adults Under 65 Mental/Dis,Third Party Payments,Home Care,568,09/08/2019,1908-00873,0.00,1123.50,R,All Seasons Home Care,No
Http://opendatacommunities.org/id/metropolitan-district-council/leeds,Leeds City Council,31/08/2019,Adults and Health,Services For Adults Under 65 Mental/Dis,Third Party Payments,Home Care,568,05/08/2019,1908-00892,0.00,526.56,R,Allied Healthcare,No
Http://opendatacommunities.org/id/metropolitan-district-council/leeds,Leeds City Council,31/08/2019,Adults and Health,Services For Adults Under 65 Mental/Dis,Supplies and Services,Office Consumables,210,08/07/2019,1908-00998,0.00,7.99,R,Amazon Prime*m655s1i64,Yes
Http://opendatacommunities.org/id/metropolitan-district-council/leeds,Leeds City Council,31/08/2019,Adults and Health,Services For Adults Under 65 Mental/Dis,Supplies and Services,Office Consumables,210,08/07/2019,1908-00999,0.00,-7.99,R,Amazon Prime*m655s1i64,Yes
Http://opendatacommunities.org/id/metropolitan-district-council/leeds,Leeds City Council,31/08/2019,Adults and Health,Services For Adults Under 65 Mental/Dis,Third Party Payments,Fees - Level 4,520,09/08/2019,1908-01252,0.00,225.74,R,Amiable Medical Services Limited,No
Http://opendatacommunities.org/id/metropolitan-district-council/leeds,Leeds City Council,31/08/2019,Adults and Health,Services For Adults Under 65 Mental/Dis,Third Party Payments,Fees - Level 4,520,15/08/2019,1908-01253,0.00,175.00,R,Amiable Medical Services Limited,No
Http://opendatacommunities.org/id/metropolitan-district-council/leeds,Leeds City Council,31/08/2019,Adults and Health,Services For Adults Under 65 Mental/Dis,Third Party Payments,Fees - Level 4,520,15/08/2019,1908-01254,0.00,175.00,R,Amiable Medical Services Limited,No
Http://opendatacommunities.org/id/metropolitan-district-council/leeds,Leeds City Council,31/08/2019,Adults and Health,Services For Adults Under 65 Mental/Dis,Third Party Payments,Fees - Level 4,520,15/08/2019,1908-01255,0.00,175.00,R,Amiable Medical Services Limited,No
Http://opendatacommunities.org/id/metropolitan-district-council/leeds,Leeds City Council,31/08/2019,Adults and Health,Services For Adults Under 65 Mental/Dis,Third Party Payments,Fees - Level 4,520,15/08/2019,1908-01256,0.00,175.00,R,Amiable Medical Services Limited,No
Http://opendatacommunities.org/id/metropolitan-district-council/leeds,Leeds City Council,31/08/2019,Adults and Health,Services For Adults Under 65 Mental/Dis,Third Party Payments,Fees - Level 4,520,15/08/2019,1908-01257,0.00,175.00,R,Amiable Medical Services Limited,No
Http://opendatacommunities.org/id/metropolitan-district-council/leeds,Leeds City Council,31/08/2019,Adults and Health,Services For Adults Under 65 Mental/Dis,Third Party Payments,Fees - Level 4,520,15/08/2019,1908-01258,0.00,175.00,R,Amiable Medical Services Limited,No
Http://opendatacommunities.org/id/metropolitan-district-council/leeds,Leeds City Council,31/08/2019,Adults and Health,Services For Adults Under 65 Mental/Dis,Third Party Payments,Fees - Level 4,520,15/08/2019,1908-01259,0.00,175.00,R,Amiable Medical Services Limited,No
Http://opendatacommunities.org/id/metropolitan-district-council/leeds,Leeds City Council,31/08/2019,Adults and Health,Services For Adults Under 65 Mental/Dis,Third Party Payments,Fees - Level 4,520,15/08/2019,1908-01260,0.00,222.30,R,Amiable Medical Services Limited,No
Http://opendatacommunities.org/id/metropolitan-district-council/leeds,Leeds City Council,31/08/2019,Adults and Health,Services For Adults Under 65 Mental/Dis,Third Party Payments,Fees - Level 4,520,15/08/2019,1908-01261,0.00,175.00,R,Amiable Medical Services Limited,No
Http://opendatacommunities.org/id/metropolitan-district-council/leeds,Leeds City Council,31/08/2019,Adults and Health,Services For Adults Under 65 Mental/Dis,Third Party Payments,Fees - Level 4,520,15/08/2019,1908-01262,0.00,175.00,R,Amiable Medical Services Limited,No
Http://opendatacommunities.org/id/metropolitan-district-council/leeds,Leeds City Council,31/08/2019,Adults and Health,Services For Adults Under 65 Mental/Dis,Third Party Payments,Fees - Level 4,520,30/08/2019,1908-01263,0.00,175.00,R,Amiable Medical Services Limited,No
Http://opendatacommunities.org/id/metropolitan-district-council/leeds,Leeds City Council,31/08/2019,Adults and Health,Services For Adults Under 65 Mental/Dis,Third Party Payments,Fees - Level 4,520,30/08/2019,1908-01264,0.00,175.00,R,Amiable Medical Services Limited,No
Http://opendatacommunities.org/id/metropolitan-district-council/leeds,Leeds City Council,31/08/2019,Adults and Health,Services For Adults Under 65 Mental/Dis,Third Party Payments,Fees - Level 4,520,30/08/2019,1908-01265,0.00,175.00,R,Amiable Medical Services Limited,No
Http://opendatacommunities.org/id/metropolitan-district-council/leeds,Leeds City Council,31/08/2019,Adults and Health,Services For Adults Under 65 Mental/Dis,Third Party Payments,Fees - Level 4,520,30/08/2019,1908-01266,0.00,175.00,R,Amiable Medical Services Limited,No
Http://opendatacommunities.org/id/metropolitan-district-council/leeds,Leeds City Council,31/08/2019,Adults and Health,Services For Adults Under 65 Mental/Dis,Third Party Payments,Fees - Level 4,520,30/08/2019,1908-01267,0.00,222.30,R,Amiable Medical Services Limited,No
Http://opendatacommunities.org/id/metropolitan-district-council/leeds,Leeds City Council,31/08/2019,Adults and Health,Services For Adults Under 65 Mental/Dis,Third Party Payments,Fees - Level 4,520,30/08/2019,1908-01268,0.00,175.00,R,Amiable Medical Services Limited,No
Http://opendatacommunities.org/id/metropolitan-district-council/leeds,Leeds City Council,31/08/2019,Adults and Health,Services For Adults Under 65 Mental/Dis,Third Party Payments,Fees - Level 4,520,30/08/2019,1908-01269,0.00,175.00,R,Amiable Medical Services Limited,No
Http://opendatacommunities.org/id/metropolitan-district-council/leeds,Leeds City Council,31/08/2019,Adults and Health,Services For Adults Under 65 Mental/Dis,Third Party Payments,Fees - Level 4,520,30/08/2019,1908-01270,0.00,175.00,R,Amiable Medical Services Limited,No
Http://opendatacommunities.org/id/metropolitan-district-council/leeds,Leeds City Council,31/08/2019,Adults and Health,Services For Adults Under 65 Mental/Dis,Third Party Payments,Home Care,568,15/08/2019,1908-01840,0.00,132.00,R,Angels Housekeeping Cic Ltd,No
Http://opendatacommunities.org/id/metropolitan-district-council/leeds,Leeds City Council,31/08/2019,Adults and Health,Services For Adults Under 65 Mental/Dis,Third Party Payments,Services Provided By Other NHS Bodies,522,02/08/2019,1908-01856,0.00,313.64,R,Ann Sikorska,No
Http://opendatacommunities.org/id/metropolitan-district-council/leeds,Leeds City Council,31/08/2019,Adults and Health,Services For Adults Under 65 Mental/Dis,Third Party Payments,Services Provided By Other NHS Bodies,522,02/08/2019,1908-01857,0.00,250.00,R,Ann Sikorska,No
Http://opendatacommunities.org/id/metropolitan-district-council/leeds,Leeds City Council,31/08/2019,Adults and Health,Services For Adults Under 65 Mental/Dis,Third Party Payments,Services Provided By Other NHS Bodies,522,02/08/2019,1908-01858,0.00,250.00,R,Ann Sikorska,No
Http://opendatacommunities.org/id/metropolitan-district-council/leeds,Leeds City Council,31/08/2019,Adults and Health,Services For Adults Under 65 Mental/Dis,Third Party Payments,Services Provided By Other NHS Bodies,522,02/08/2019,1908-01859,0.00,318.80,R,Ann Sikorska,No
Http://opendatacommunities.org/id/metropolitan-district-council/leeds,Leeds City Council,31/08/2019,Adults and Health,Services For Adults Under 65 Mental/Dis,Third Party Payments,Services Provided By Other NHS Bodies,522,14/08/2019,1908-01860,0.00,291.28,R,Ann Sikorska,No
Http://opendatacommunities.org/id/metropolitan-district-council/leeds,Leeds City Council,31/08/2019,Adults and Health,Services For Adults Under 65 Mental/Dis,Third Party Payments,Services Provided By Other NHS Bodies,522,14/08/2019,1908-01861,0.00,250.00,R,Ann Sikorska,No
Http://opendatacommunities.org/id/metropolitan-district-council/leeds,Leeds City Council,31/08/2019,Adults and Health,Services For Adults Under 65 Mental/Dis,Third Party Payments,Services Provided By Other NHS Bodies,522,14/08/2019,1908-01862,0.00,250.00,R,Ann Sikorska,No
Http://opendatacommunities.org/id/metropolitan-district-council/leeds,Leeds City Council,31/08/2019,Adults and Health,Services For Adults Under 65 Mental/Dis,Third Party Payments,Services Provided By Other NHS Bodies,522,16/08/2019,1908-01863,0.00,250.00,R,Ann Sikorska,No
Http://opendatacommunities.org/id/metropolitan-district-council/leeds,Leeds City Council,31/08/2019,Adults and Health,Services For Adults Under 65 Mental/Dis,Third Party Payments,Services Provided By Other NHS Bodies,522,16/08/2019,1908-01864,0.00,250.00,R,Ann Sikorska,No
Http://opendatacommunities.org/id/metropolitan-district-council/leeds,Leeds City Council,31/08/2019,Adults and Health,Services For Adults Under 65 Mental/Dis,Third Party Payments,Services Provided By Other NHS Bodies,522,16/08/2019,1908-01865,0.00,250.00,R,Ann Sikorska,No
Http://opendatacommunities.org/id/metropolitan-district-council/leeds,Leeds City Council,31/08/2019,Adults and Health,Services For Adults Under 65 Mental/Dis,Third Party Payments,Services Provided By Other NHS Bodies,522,16/08/2019,1908-01866,0.00,250.00,R,Ann Sikorska,No
Http://opendatacommunities.org/id/metropolitan-district-council/leeds,Leeds City Council,31/08/2019,Adults and Health,Services For Adults Under 65 Mental/Dis,Third Party Payments,Services Provided By Other NHS Bodies,522,16/08/2019,1908-01867,0.00,250.00,R,Ann Sikorska,No
Http://opendatacommunities.org/id/metropolitan-district-council/leeds,Leeds City Council,31/08/2019,Adults and Health,Services For Adults Under 65 Mental/Dis,Third Party Payments,Services Provided By Other NHS Bodies,522,23/08/2019,1908-01868,0.00,250.00,R,Ann Sikorska,No
Http://opendatacommunities.org/id/metropolitan-district-council/leeds,Leeds City Council,31/08/2019,Adults and Health,Services For Adults Under 65 Mental/Dis,Third Party Payments,Services Provided By Other NHS Bodies,522,23/08/2019,1908-01869,0.00,309.34,R,Ann Sikorska,No
Http://opendatacommunities.org/id/metropolitan-district-council/leeds,Leeds City Council,31/08/2019,Adults and Health,Services For Adults Under 65 Mental/Dis,Third Party Payments,Services Provided By Other NHS Bodies,522,30/08/2019,1908-01870,0.00,250.00,R,Ann Sikorska,No
Http://opendatacommunities.org/id/metropolitan-district-council/leeds,Leeds City Council,31/08/2019,Adults and Health,Services For Adults Under 65 Mental/Dis,Third Party Payments,Services Provided By Other NHS Bodies,522,30/08/2019,1908-01871,0.00,250.00,R,Ann Sikorska,No
Http://opendatacommunities.org/id/metropolitan-district-council/leeds,Leeds City Council,31/08/2019,Adults and Health,Services For Adults Under 65 Mental/Dis,Third Party Payments,Services Provided By Other NHS Bodies,522,30/08/2019,1908-01872,0.00,250.00,R,Ann Sikorska,No
Http://opendatacommunities.org/id/metropolitan-district-council/leeds,Leeds City Council,31/08/2019,Adults and Health,Services For Adults Under 65 Mental/Dis,Third Party Payments,Services Provided By Other NHS Bodies,522,30/08/2019,1908-01873,0.00,250.00,R,Ann Sikorska,No
Http://opendatacommunities.org/id/metropolitan-district-council/leeds,Leeds City Council,31/08/2019,Adults and Health,Services For Adults Under 65 Mental/Dis,Third Party Payments,Services Provided By Other NHS Bodies,522,30/08/2019,1908-01874,0.00,315.36,R,Ann Sikorska,No
Http://opendatacommunities.org/id/metropolitan-district-council/leeds,Leeds City Council,31/08/2019,Adults and Health,Services For Adults Under 65 Mental/Dis,Premises,Removal Of Workplace Waste,126,28/06/2019,1908-02766,0.00,49.63,R,Associated Waste Manag,Yes
Http://opendatacommunities.org/id/metropolitan-district-council/leeds,Leeds City Council,31/08/2019,Adults and Health,Services For Adults Under 65 Mental/Dis,Premises,Removal Of Workplace Waste,126,28/06/2019,1908-02780,0.00,60.46,R,Associated Waste Manag,Yes
Http://opendatacommunities.org/id/metropolitan-district-council/leeds,Leeds City Council,31/08/2019,Adults and Health,Services For Adults Under 65 Mental/Dis,Premises,Removal Of Workplace Waste,126,28/06/2019,1908-02866,0.00,28.17,R,Associated Waste Manag,Yes
Http://opendatacommunities.org/id/metropolitan-district-council/leeds,Leeds City Council,31/08/2019,Adults and Health,Services For Adults Under 65 Mental/Dis,Premises,Cleaning Maintenance & Toiletries,127,15/07/2019,1908-03398,0.00,30.14,R,B&m Retail Ltd,Yes
Http://opendatacommunities.org/id/metropolitan-district-council/leeds,Leeds City Council,31/08/2019,Adults and Health,Services For Adults Under 65 Mental/Dis,Third Party Payments,Home Care,568,29/08/2019,1908-03643,0.00,654.44,R,Be Caring Ltd,No
Http://opendatacommunities.org/id/metropolitan-district-council/leeds,Leeds City Council,31/08/2019,Adults and Health,Services For Adults Under 65 Mental/Dis,Third Party Payments,Sheltered Accommodation,569,21/08/2019,1908-03666,0.00,4800.00,R,Bedspace,No
Http://opendatacommunities.org/id/metropolitan-district-council/leeds,Leeds City Council,31/08/2019,Adults and Health,Services For Adults Under 65 Mental/Dis,Third Party Payments,Sheltered Accommodation,569,21/08/2019,1908-04224,0.00,4833.44,R,Brandling Court,No
Http://opendatacommunities.org/id/metropolitan-district-council/leeds,Leeds City Council,31/08/2019,Adults and Health,Services For Adults Under 65 Mental/Dis,Third Party Payments,Fees - Level 4,520,21/08/2019,1908-04242,0.00,206.02,R,Brenda Wilkinson,No
Http://opendatacommunities.org/id/metropolitan-district-council/leeds,Leeds City Council,31/08/2019,Adults and Health,Services For Adults Under 65 Mental/Dis,Third Party Payments,Fees - Level 4,520,23/08/2019,1908-04243,0.00,216.04,R,Brenda Wilkinson,No
Http://opendatacommunities.org/id/metropolitan-district-council/leeds,Leeds City Council,31/08/2019,Adults and Health,Services For Adults Under 65 Mental/Dis,Third Party Payments,Residential,580,21/08/2019,1908-04280,0.00,6599.76,R,Britannia Nursing Home,No
Http://opendatacommunities.org/id/metropolitan-district-council/leeds,Leeds City Council,31/08/2019,Adults and Health,Services For Adults Under 65 Mental/Dis,Third Party Payments,Services Provided By Other NHS Bodies,522,02/08/2019,1908-04789,0.00,800.00,R,C Walker,No
Http://opendatacommunities.org/id/metropolitan-district-council/leeds,Leeds City Council,31/08/2019,Adults and Health,Services For Adults Under 65 Mental/Dis,Third Party Payments,Services Provided By Other NHS Bodies,522,09/08/2019,1908-04790,0.00,800.00,R,C Walker,No
Http://opendatacommunities.org/id/metropolitan-district-council/leeds,Leeds City Council,31/08/2019,Adults and Health,Services For Adults Under 65 Mental/Dis,Third Party Payments,Services Provided By Other NHS Bodies,522,16/08/2019,1908-04791,0.00,1000.00,R,C Walker,No
Http://opendatacommunities.org/id/metropolitan-district-council/leeds,Leeds City Council,31/08/2019,Adults and Health,Services For Adults Under 65 Mental/Dis,Third Party Payments,Services Provided By Other NHS Bodies,522,21/08/2019,1908-04792,0.00,1000.00,R,C Walker,No
